BIOGUIDE_ID,OFFICE,QUARTER,CATEGORY,DATE,PAYEE,START DATE,END DATE,PURPOSE,AMOUNT,YEAR,TRANSCODE,TRANSCODELONG,RECORDID,RECIP (orig.)
,OFFICE OF THE SPEAKER,2015Q4,PERSONNEL BENEFITS,10-15,HON JOHN A BOEHNER,10/03/15,11/02/15,OFFICIAL EXPENSES FOR LEADERS,"2,083.33",2015,AP,Accounts payable,00820483,HON JOHN A BOEHNER
,OFFICE OF THE SPEAKER,2015Q4,PERSONNEL COMPENSATION,"","ANDRES,DOUGLAS R",11/13/15,12/31/15,PRESS SECRETARY,"14,000.00",2015,"","","","ANDRES,DOUGLAS R"
,OFFICE OF THE SPEAKER,2015Q4,PERSONNEL COMPENSATION,"","ANDREWS,THOMAS S",10/01/15,11/30/15,SPECIAL ASST TO THE SPEAKER,"11,666.66",2015,"","","","ANDREWS,THOMAS S"
,OFFICE OF THE SPEAKER,2015Q4,PERSONNEL COMPENSATION,"","ANDREWS,THOMAS S",12/01/15,12/31/15,MEMBER SERVICES COORDINATOR,"6,250.00",2015,"","","","ANDREWS,THOMAS S"
,OFFICE OF THE SPEAKER,2015Q4,PERSONNEL COMPENSATION,"","ANDREWS,THOMAS S",10/01/15,10/30/15,SPECIAL ASST TO THE SPEAKER (OTHER COMPENSATION),"3,000.00",2015,"","","","ANDREWS,THOMAS S"
,OFFICE OF THE SPEAKER,2015Q4,PERSONNEL COMPENSATION,"","BAILEY,BRADLEY",10/01/15,12/31/15,ASSIST TO SPEAKER FOR POLICY,"30,000.00",2015,"","","","BAILEY,BRADLEY"
,OFFICE OF THE SPEAKER,2015Q4,PERSONNEL COMPENSATION,"","BAILEY,BRADLEY",10/01/15,10/30/15,ASSIST TO SPEAKER FOR POLICY (OTHER COMPENSATION),"3,000.00",2015,"","","","BAILEY,BRADLEY"
,OFFICE OF THE SPEAKER,2015Q4,PERSONNEL COMPENSATION,"","BECKER,ALEXANDER M",10/01/15,12/31/15,FLOOR ASSISTANT,"13,749.99",2015,"","","","BECKER,ALEXANDER M"
,OFFICE OF THE SPEAKER,2015Q4,PERSONNEL COMPENSATION,"","BECKER,ALEXANDER M",10/01/15,10/30/15,FLOOR ASSISTANT (OTHER COMPENSATION),"3,000.00",2015,"","","","BECKER,ALEXANDER M"
,OFFICE OF THE SPEAKER,2015Q4,PERSONNEL COMPENSATION,"","BENJAMIN, WILLIAM C",10/01/15,12/31/15,DIR OF INFORMATION TECHNOLOGY,"24,500.01",2015,"","","","BENJAMIN, WILLIAM C"
,OFFICE OF THE SPEAKER,2015Q4,PERSONNEL COMPENSATION,"","BENJAMIN, WILLIAM C",10/01/15,10/30/15,DIR OF INFORMATION TECHNOLOGY (OTHER COMPENSATION),"1,500.00",2015,"","","","BENJAMIN, WILLIAM C"
,OFFICE OF THE SPEAKER,2015Q4,PERSONNEL COMPENSATION,"","BLAKE,KRISTENE",10/01/15,10/31/15,DIRECTOR OF SCHDLNG/EXEC ASST,"10,000.00",2015,"","","","BLAKE,KRISTENE"
,OFFICE OF THE SPEAKER,2015Q4,PERSONNEL COMPENSATION,"","BLAKE,KRISTENE",10/01/15,11/30/15,DIR OF SCHEDULING/EXC ASSIST,"10,861.11",2015,"","","","BLAKE,KRISTENE"
,OFFICE OF THE SPEAKER,2015Q4,PERSONNEL COMPENSATION,"","BLAKE,KRISTENE",12/01/15,12/31/15,DIR OF ADMIN OPERATIONS,"10,833.33",2015,"","","","BLAKE,KRISTENE"
,OFFICE OF THE SPEAKER,2015Q4,PERSONNEL COMPENSATION,"","BLAKE,KRISTENE",10/01/15,10/30/15,DIR OF SCHEDULING/EXC ASSIST (OTHER COMPENSATION),"3,000.00",2015,"","","","BLAKE,KRISTENE"
,OFFICE OF THE SPEAKER,2015Q4,PERSONNEL COMPENSATION,"","BLANKENSHIP, APRIL L",12/01/15,12/31/15,FINANCIAL ADVISOR,"2,333.33",2015,"","","","BLANKENSHIP, APRIL L"
,OFFICE OF THE SPEAKER,2015Q4,PERSONNEL COMPENSATION,"","BOLDUC, BRIAN J",11/02/15,12/31/15,DIRECTOR OF SPEECHWRITING,"17,208.33",2015,"","","","BOLDUC, BRIAN J"
,OFFICE OF THE SPEAKER,2015Q4,PERSONNEL COMPENSATION,"","BORDEN III, R C",10/01/15,11/30/15,SHARED EMPLOYEE,"27,833.34",2015,"","","","BORDEN III, R C"
,OFFICE OF THE SPEAKER,2015Q4,PERSONNEL COMPENSATION,"","BOYD,KATHRYN E",10/01/15,10/18/15,ASST COMMUNICATIONS DIRECTOR,"5,000.00",2015,"","","","BOYD,KATHRYN E"
,OFFICE OF THE SPEAKER,2015Q4,PERSONNEL COMPENSATION,"","BOYD,KATHRYN E",10/01/15,10/18/15,ASST COMMUNICATIONS DIRECTOR (OTHER COMPENSATION),"1,500.00",2015,"","","","BOYD,KATHRYN E"
,OFFICE OF THE SPEAKER,2015Q4,PERSONNEL COMPENSATION,"","BROWN,MARYAM S",10/01/15,12/31/15,ASST TO SPEAKER FOR POLICY,"42,000.00",2015,"","","","BROWN,MARYAM S"
,OFFICE OF THE SPEAKER,2015Q4,PERSONNEL COMPENSATION,"","BUCK,BRENDAN K",11/02/15,12/31/15,CHIEF ADV ON COMMUNICATIONS,"28,270.83",2015,"","","","BUCK,BRENDAN K"
,OFFICE OF THE SPEAKER,2015Q4,PERSONNEL COMPENSATION,"","BURKS,JONATHAN",12/04/15,12/31/15,ASST TO SPEAKER FOR POLICY,"12,848.63",2015,"","","","BURKS,JONATHAN"
,OFFICE OF THE SPEAKER,2015Q4,PERSONNEL COMPENSATION,"","CALLAS,GEORGE A",12/11/15,12/31/15,CHIEF TAX COUNSEL,"9,483.11",2015,"","","","CALLAS,GEORGE A"
,OFFICE OF THE SPEAKER,2015Q4,PERSONNEL COMPENSATION,"","COYLE,SARAH M",10/01/15,12/31/15,FLOOR ASSISTANT,"9,750.00",2015,"","","","COYLE,SARAH M"
,OFFICE OF THE SPEAKER,2015Q4,PERSONNEL COMPENSATION,"","COYLE,SARAH M",10/01/15,10/30/15,FLOOR ASSISTANT (OTHER COMPENSATION),"1,000.00",2015,"","","","COYLE,SARAH M"
,OFFICE OF THE SPEAKER,2015Q4,PERSONNEL COMPENSATION,"","CRAVEN, KELLY F",10/01/15,12/31/15,DIRECTOR OF HOUSE OPERATIONS,"43,125.00",2015,"","","","CRAVEN, KELLY F"
,OFFICE OF THE SPEAKER,2015Q4,PERSONNEL COMPENSATION,"","DAY,VANESSA",11/02/15,12/31/15,SENIOR COMMUNICATIONS ADVISOR,"17,208.33",2015,"","","","DAY,VANESSA"
,OFFICE OF THE SPEAKER,2015Q4,PERSONNEL COMPENSATION,"","EASBY-SMITH,ANNE S",10/01/15,12/31/15,SPECIAL EVENTS ASSOCIATE,"16,250.01",2015,"","","","EASBY-SMITH,ANNE S"
,OFFICE OF THE SPEAKER,2015Q4,PERSONNEL COMPENSATION,"","EASBY-SMITH,ANNE S",10/01/15,10/30/15,SPECIAL EVENTS ASSOCIATE (OTHER COMPENSATION),"3,000.00",2015,"","","","EASBY-SMITH,ANNE S"
,OFFICE OF THE SPEAKER,2015Q4,PERSONNEL COMPENSATION,"","ECKARD,NASTASHA",10/01/15,11/30/15,ASSIST TO SPEAKER FOR POLICY,"16,416.66",2015,"","","","ECKARD,NASTASHA"
,OFFICE OF THE SPEAKER,2015Q4,PERSONNEL COMPENSATION,"","ECKARD,NASTASHA",10/01/15,10/30/15,ASSIST TO SPEAKER FOR POLICY (OTHER COMPENSATION),"3,000.00",2015,"","","","ECKARD,NASTASHA"
,OFFICE OF THE SPEAKER,2015Q4,PERSONNEL COMPENSATION,"","EDATTEL,PAUL C",10/01/15,11/30/15,ASST TO SPEAKER FOR POLICY,"25,402.78",2015,"","","","EDATTEL,PAUL C"
,OFFICE OF THE SPEAKER,2015Q4,PERSONNEL COMPENSATION,"","EDATTEL,PAUL C",10/01/15,10/30/15,ASST TO SPEAKER FOR POLICY (OTHER COMPENSATION),"1,100.00",2015,"","","","EDATTEL,PAUL C"
,OFFICE OF THE SPEAKER,2015Q4,PERSONNEL COMPENSATION,"","EDWARDS,SPENCER M",11/13/15,12/31/15,DEPUTY PRESS SECRETARY,"7,333.33",2015,"","","","EDWARDS,SPENCER M"
,OFFICE OF THE SPEAKER,2015Q4,PERSONNEL COMPENSATION,"","EICHHORN, JARED D",10/01/15,12/31/15,CLOAKROOM DIRECTOR,"22,500.00",2015,"","","","EICHHORN, JARED D"
,OFFICE OF THE SPEAKER,2015Q4,PERSONNEL COMPENSATION,"","EICHHORN, JARED D",10/01/15,10/30/15,CLOAKROOM DIRECTOR (OTHER COMPENSATION),"3,000.00",2015,"","","","EICHHORN, JARED D"
,OFFICE OF THE SPEAKER,2015Q4,PERSONNEL COMPENSATION,"","FOLTZ,DEVON N",12/01/15,12/31/15,COUNSEL,"10,000.00",2015,"","","","FOLTZ,DEVON N"
,OFFICE OF THE SPEAKER,2015Q4,PERSONNEL COMPENSATION,"","FRANKS,JESSICA L",10/01/15,11/20/15,STAFF ASSISTANT,"4,861.11",2015,"","","","FRANKS,JESSICA L"
,OFFICE OF THE SPEAKER,2015Q4,PERSONNEL COMPENSATION,"","FRANKS,JESSICA L",09/01/15,11/20/15,STAFF ASSISTANT (OVERTIME),"1,394.51",2015,"","","","FRANKS,JESSICA L"
,OFFICE OF THE SPEAKER,2015Q4,PERSONNEL COMPENSATION,"","FRANKS,JESSICA L",10/01/15,10/30/15,STAFF ASSISTANT (OTHER COMPENSATION),"2,900.00",2015,"","","","FRANKS,JESSICA L"
,OFFICE OF THE SPEAKER,2015Q4,PERSONNEL COMPENSATION,"","FRITZ,CORY M",10/01/15,11/01/15,PRESS SECRETARY,"10,333.33",2015,"","","","FRITZ,CORY M"
,OFFICE OF THE SPEAKER,2015Q4,PERSONNEL COMPENSATION,"","FRITZ,CORY M",10/01/15,10/30/15,PRESS SECRETARY (OTHER COMPENSATION),"3,000.00",2015,"","","","FRITZ,CORY M"
,OFFICE OF THE SPEAKER,2015Q4,PERSONNEL COMPENSATION,"","GEFFERT,REBEKAH L",11/01/15,12/31/15,STAFF ASSISTANT,"3,694.45",2015,"","","","GEFFERT,REBEKAH L"
,OFFICE OF THE SPEAKER,2015Q4,PERSONNEL COMPENSATION,"","GILLESPIE,MAURA M",10/01/15,11/30/15,PRESS ADVISOR,"10,833.34",2015,"","","","GILLESPIE,MAURA M"
,OFFICE OF THE SPEAKER,2015Q4,PERSONNEL COMPENSATION,"","GILLESPIE,MAURA M",10/01/15,10/30/15,PRESS ADVISOR (OTHER COMPENSATION),"3,000.00",2015,"","","","GILLESPIE,MAURA M"
,OFFICE OF THE SPEAKER,2015Q4,PERSONNEL COMPENSATION,"","GOLDOUST,CARAH S",10/01/15,12/31/15,STAFF ASSISTANT,"8,750.01",2015,"","","","GOLDOUST,CARAH S"
,OFFICE OF THE SPEAKER,2015Q4,PERSONNEL COMPENSATION,"","GOLDOUST,CARAH S",09/01/15,11/30/15,STAFF ASSISTANT (OVERTIME),"3,079.29",2015,"","","","GOLDOUST,CARAH S"
,OFFICE OF THE SPEAKER,2015Q4,PERSONNEL COMPENSATION,"","GOLDOUST,CARAH S",10/01/15,10/30/15,STAFF ASSISTANT (OTHER COMPENSATION),"2,900.00",2015,"","","","GOLDOUST,CARAH S"
,OFFICE OF THE SPEAKER,2015Q4,PERSONNEL COMPENSATION,"","GREEN, JO-MARIE S",10/01/15,12/31/15,GEN COUNSEL/CHIEF OF LEG OPS,"43,125.00",2015,"","","","GREEN, JO-MARIE S"
,OFFICE OF THE SPEAKER,2015Q4,PERSONNEL COMPENSATION,"","GREENE,WILLIAM P",10/01/15,11/30/15,DIRECTOR-OUTREACH,"24,166.66",2015,"","","","GREENE,WILLIAM P"
,OFFICE OF THE SPEAKER,2015Q4,PERSONNEL COMPENSATION,"","GREENE,WILLIAM P",10/01/15,10/30/15,DIRECTOR-OUTREACH (OTHER COMPENSATION),"1,900.00",2015,"","","","GREENE,WILLIAM P"
,OFFICE OF THE SPEAKER,2015Q4,PERSONNEL COMPENSATION,"","GRIEVE,ALEXANDER G",10/01/15,11/13/15,STAFF ASSISTANT,"4,180.56",2015,"","","","GRIEVE,ALEXANDER G"
,OFFICE OF THE SPEAKER,2015Q4,PERSONNEL COMPENSATION,"","GRIEVE,ALEXANDER G",09/01/15,11/13/15,STAFF ASSISTANT (OVERTIME),"1,672.15",2015,"","","","GRIEVE,ALEXANDER G"
,OFFICE OF THE SPEAKER,2015Q4,PERSONNEL COMPENSATION,"","GRIEVE,ALEXANDER G",10/01/15,10/30/15,STAFF ASSISTANT (OTHER COMPENSATION),"2,900.00",2015,"","","","GRIEVE,ALEXANDER G"
,OFFICE OF THE SPEAKER,2015Q4,PERSONNEL COMPENSATION,"","HALEY, KATHERINE C",10/01/15,11/30/15,ASST TO SPEAKER FOR POLICY,"18,333.34",2015,"","","","HALEY, KATHERINE C"
,OFFICE OF THE SPEAKER,2015Q4,PERSONNEL COMPENSATION,"","HALEY, KATHERINE C",10/01/15,10/30/15,ASST TO SPEAKER FOR POLICY (OTHER COMPENSATION),"3,000.00",2015,"","","","HALEY, KATHERINE C"
,OFFICE OF THE SPEAKER,2015Q4,PERSONNEL COMPENSATION,"","HERRLE, CYNTHIA A",10/01/15,12/31/15,ASST TO THE SPEAKER FOR POLICY,"42,000.00",2015,"","","","HERRLE, CYNTHIA A"
,OFFICE OF THE SPEAKER,2015Q4,PERSONNEL COMPENSATION,"","HIGGINS,CASEY",11/09/15,12/31/15,ASSIST TO SPEAKER FOR POLICY,"14,444.44",2015,"","","","HIGGINS,CASEY"
,OFFICE OF THE SPEAKER,2015Q4,PERSONNEL COMPENSATION,"","HOPPE,JOHN D",11/01/15,12/31/15,CHIEF OF STAFF,"28,750.00",2015,"","","","HOPPE,JOHN D"
,OFFICE OF THE SPEAKER,2015Q4,PERSONNEL COMPENSATION,"","HUSTON,JOHNATHON B",10/01/15,12/31/15,SHARED EMPLOYEE,"10,250.00",2015,"","","","HUSTON,JOHNATHON B"
,OFFICE OF THE SPEAKER,2015Q4,PERSONNEL COMPENSATION,"","IVANCIC,CHARLOTTE S",09/01/15,09/01/15,ASSIST TO SPEAKER FOR POLICY (OTHER COMPENSATION),"9,333.33",2015,"","","","IVANCIC,CHARLOTTE S"
,OFFICE OF THE SPEAKER,2015Q4,PERSONNEL COMPENSATION,"","JORDON,BENJAMIN D",11/02/15,12/31/15,SPECIAL ASST TO THE SPEAKER,"8,194.45",2015,"","","","JORDON,BENJAMIN D"
,OFFICE OF THE SPEAKER,2015Q4,PERSONNEL COMPENSATION,"","KEARNEY,EMILY M",10/01/15,12/31/15,STAFF ASSISTANT,"10,416.67",2015,"","","","KEARNEY,EMILY M"
,OFFICE OF THE SPEAKER,2015Q4,PERSONNEL COMPENSATION,"","KEARNEY,EMILY M",10/01/15,10/30/15,STAFF ASSISTANT (OTHER COMPENSATION),"1,000.00",2015,"","","","KEARNEY,EMILY M"
,OFFICE OF THE SPEAKER,2015Q4,PERSONNEL COMPENSATION,"","KITTLE,ALLIE M",10/01/15,12/31/15,SHARED EMPLOYEE,"6,125.01",2015,"","","","KITTLE,ALLIE M"
,OFFICE OF THE SPEAKER,2015Q4,PERSONNEL COMPENSATION,"","KOLEGO, TREVOR W",10/01/15,11/30/15,DIR OF MEMBER SERVICES,"28,000.00",2015,"","","","KOLEGO, TREVOR W"
,OFFICE OF THE SPEAKER,2015Q4,PERSONNEL COMPENSATION,"","LAMPERT,JUSTIN",10/01/15,11/30/15,RESEARCH ASSISTANT,"7,500.00",2015,"","","","LAMPERT,JUSTIN"
,OFFICE OF THE SPEAKER,2015Q4,PERSONNEL COMPENSATION,"","LAMPERT,JUSTIN",10/01/15,10/30/15,RESEARCH ASSISTANT (OTHER COMPENSATION),"3,000.00",2015,"","","","LAMPERT,JUSTIN"
,OFFICE OF THE SPEAKER,2015Q4,PERSONNEL COMPENSATION,"","LEOPOLD,PATRICK R",10/01/15,12/31/15,SHARED EMPLOYEE,"24,999.99",2015,"","","","LEOPOLD,PATRICK R"
,OFFICE OF THE SPEAKER,2015Q4,PERSONNEL COMPENSATION,"","LOHMEYER,SONJA M",10/01/15,12/31/15,DIRECTOR OF PUBLIC LIAISON,"37,500.00",2015,"","","","LOHMEYER,SONJA M"
,OFFICE OF THE SPEAKER,2015Q4,PERSONNEL COMPENSATION,"","LOHMEYER,SONJA M",10/01/15,10/30/15,DIRECTOR OF PUBLIC LIAISON (OTHER COMPENSATION),"1,700.00",2015,"","","","LOHMEYER,SONJA M"
,OFFICE OF THE SPEAKER,2015Q4,PERSONNEL COMPENSATION,"","LOZUPONE, AMY S",10/01/15,10/31/15,DIRECTOR OF ADMIN OPERATIONS,"14,375.00",2015,"","","","LOZUPONE, AMY S"
,OFFICE OF THE SPEAKER,2015Q4,PERSONNEL COMPENSATION,"","LOZUPONE, AMY S",11/01/15,12/31/15,TRANSITION ADVISOR,"2,335.66",2015,"","","","LOZUPONE, AMY S"
,OFFICE OF THE SPEAKER,2015Q4,PERSONNEL COMPENSATION,"","MACDONALD, BRIAN C",10/01/15,12/31/15,SHARED EMPLOYEE,"24,999.99",2015,"","","","MACDONALD, BRIAN C"
,OFFICE OF THE SPEAKER,2015Q4,PERSONNEL COMPENSATION,"","MARROLETTI,CHRISTOPHER V",10/01/15,10/31/15,STAFF ASSISTANT,"2,916.67",2015,"","","","MARROLETTI,CHRISTOPHER V"
,OFFICE OF THE SPEAKER,2015Q4,PERSONNEL COMPENSATION,"","MARROLETTI,CHRISTOPHER V",10/01/15,12/31/15,SENIOR STAFF ASSISTANT,"7,019.44",2015,"","","","MARROLETTI,CHRISTOPHER V"
,OFFICE OF THE SPEAKER,2015Q4,PERSONNEL COMPENSATION,"","MARROLETTI,CHRISTOPHER V",09/01/15,09/30/15,STAFF ASSISTANT (OVERTIME),719.34,2015,"","","","MARROLETTI,CHRISTOPHER V"
,OFFICE OF THE SPEAKER,2015Q4,PERSONNEL COMPENSATION,"","MARROLETTI,CHRISTOPHER V",10/01/15,11/30/15,SENIOR STAFF ASSISTANT (OVERTIME),"1,181.23",2015,"","","","MARROLETTI,CHRISTOPHER V"
,OFFICE OF THE SPEAKER,2015Q4,PERSONNEL COMPENSATION,"","MARROLETTI,CHRISTOPHER V",10/01/15,10/30/15,SENIOR STAFF ASSISTANT (OTHER COMPENSATION),"2,900.00",2015,"","","","MARROLETTI,CHRISTOPHER V"
,OFFICE OF THE SPEAKER,2015Q4,PERSONNEL COMPENSATION,"","MCCANN, EDWARD D",11/09/15,12/31/15,ASSIST TO SPEAKER FOR POLICY,"22,388.89",2015,"","","","MCCANN, EDWARD D"
,OFFICE OF THE SPEAKER,2015Q4,PERSONNEL COMPENSATION,"","MEYER, JOYCE Y",11/02/15,12/31/15,DEPUTY CHIEF OF STAFF,"28,270.83",2015,"","","","MEYER, JOYCE Y"
,OFFICE OF THE SPEAKER,2015Q4,PERSONNEL COMPENSATION,"","MILAM,LAURA M",10/01/15,10/31/15,DEPUTY SCHEDULER,"5,833.33",2015,"","","","MILAM,LAURA M"
,OFFICE OF THE SPEAKER,2015Q4,PERSONNEL COMPENSATION,"","MILAM,LAURA M",10/30/15,10/30/15,DISTRICT DIRECTOR (OTHER COMPENSATION),"3,000.00",2015,"","","","MILAM,LAURA M"
,OFFICE OF THE SPEAKER,2015Q4,PERSONNEL COMPENSATION,"","MINKLER,ANN W",10/01/15,12/31/15,FLOOR ASSISTANT,"16,250.01",2015,"","","","MINKLER,ANN W"
,OFFICE OF THE SPEAKER,2015Q4,PERSONNEL COMPENSATION,"","MINKLER,ANN W",10/01/15,10/30/15,FLOOR ASSISTANT (OTHER COMPENSATION),"3,000.00",2015,"","","","MINKLER,ANN W"
,OFFICE OF THE SPEAKER,2015Q4,PERSONNEL COMPENSATION,"","MITCHELL,MAUREEN E",11/01/15,12/31/15,DIRECTOR OF SCHEDULING,"16,666.66",2015,"","","","MITCHELL,MAUREEN E"
,OFFICE OF THE SPEAKER,2015Q4,PERSONNEL COMPENSATION,"","MOORE,DYLAN M",10/01/15,11/15/15,STAFF ASSISTANT,"4,375.00",2015,"","","","MOORE,DYLAN M"
,OFFICE OF THE SPEAKER,2015Q4,PERSONNEL COMPENSATION,"","MOORE,DYLAN M",09/01/15,10/30/15,STAFF ASSISTANT (OVERTIME),"1,041.15",2015,"","","","MOORE,DYLAN M"
,OFFICE OF THE SPEAKER,2015Q4,PERSONNEL COMPENSATION,"","MOORE,DYLAN M",12/01/15,12/31/15,PRESS SECRETARY (OVERTIME),95.19,2015,"","","","MOORE,DYLAN M"
,OFFICE OF THE SPEAKER,2015Q4,PERSONNEL COMPENSATION,"","MOORE,DYLAN M",10/01/15,10/30/15,STAFF ASSISTANT (OTHER COMPENSATION),"2,900.00",2015,"","","","MOORE,DYLAN M"
,OFFICE OF THE SPEAKER,2015Q4,PERSONNEL COMPENSATION,"","PALISI,ANNIE",10/01/15,11/30/15,DEPUTY DIRECTOR OF MEMBER SVCS,"25,833.34",2015,"","","","PALISI,ANNIE"
,OFFICE OF THE SPEAKER,2015Q4,PERSONNEL COMPENSATION,"","PALISI,ANNIE",10/01/15,10/30/15,DEPUTY DIRECTOR OF MEMBER SVCS (OTHER COMPENSATION),"1,300.00",2015,"","","","PALISI,ANNIE"
,OFFICE OF THE SPEAKER,2015Q4,PERSONNEL COMPENSATION,"","PLANNING,DAVID M",11/10/15,12/31/15,STAFF ASSISTANT,"4,958.34",2015,"","","","PLANNING,DAVID M"
,OFFICE OF THE SPEAKER,2015Q4,PERSONNEL COMPENSATION,"","PLANNING,DAVID M",11/10/15,11/30/15,STAFF ASSISTANT (OVERTIME),277.64,2015,"","","","PLANNING,DAVID M"
,OFFICE OF THE SPEAKER,2015Q4,PERSONNEL COMPENSATION,"","POINTER,KATHERINE C",11/30/15,12/31/15,STAFF ASSISTANT,"3,013.89",2015,"","","","POINTER,KATHERINE C"
,OFFICE OF THE SPEAKER,2015Q4,PERSONNEL COMPENSATION,"","REED, HEATHER E",10/01/15,12/31/15,DEPUTY PRESS SECRETARY,"16,250.01",2015,"","","","REED, HEATHER E"
,OFFICE OF THE SPEAKER,2015Q4,PERSONNEL COMPENSATION,"","REED, HEATHER E",10/01/15,10/30/15,DEPUTY PRESS SECRETARY (OTHER COMPENSATION),"3,000.00",2015,"","","","REED, HEATHER E"
,OFFICE OF THE SPEAKER,2015Q4,PERSONNEL COMPENSATION,"","RENZ, BRANDON",10/01/15,12/31/15,SHARED EMPLOYEE,"24,999.99",2015,"","","","RENZ, BRANDON"
,OFFICE OF THE SPEAKER,2015Q4,PERSONNEL COMPENSATION,"","RICCI,MICHAEL",10/01/15,11/30/15,DEPUTY COMMUNICATIONS DIRECTOR,"25,833.34",2015,"","","","RICCI,MICHAEL"
,OFFICE OF THE SPEAKER,2015Q4,PERSONNEL COMPENSATION,"","RICCI,MICHAEL",12/01/15,12/31/15,DIRECTOR OF COMMUNICATIONS,"13,750.00",2015,"","","","RICCI,MICHAEL"
,OFFICE OF THE SPEAKER,2015Q4,PERSONNEL COMPENSATION,"","RICCI,MICHAEL",10/01/15,10/30/15,DEPUTY COMMUNICATIONS DIRECTOR (OTHER COMPENSATION),"1,100.00",2015,"","","","RICCI,MICHAEL"
,OFFICE OF THE SPEAKER,2015Q4,PERSONNEL COMPENSATION,"","ROBINSON,GREGORY J",10/01/15,12/31/15,ASSOCIATE COUNSEL,"15,000.00",2015,"","","","ROBINSON,GREGORY J"
,OFFICE OF THE SPEAKER,2015Q4,PERSONNEL COMPENSATION,"","ROBINSON,GREGORY J",10/01/15,10/30/15,ASSOCIATE COUNSEL (OTHER COMPENSATION),"3,000.00",2015,"","","","ROBINSON,GREGORY J"
,OFFICE OF THE SPEAKER,2015Q4,PERSONNEL COMPENSATION,"","SAGER,MICHAEL J",10/01/15,12/31/15,SYSTEMS ADMINISTRATOR,"21,249.99",2015,"","","","SAGER,MICHAEL J"
,OFFICE OF THE SPEAKER,2015Q4,PERSONNEL COMPENSATION,"","SAGER,MICHAEL J",10/01/15,10/30/15,SYSTEMS ADMINISTRATOR (OTHER COMPENSATION),"3,000.00",2015,"","","","SAGER,MICHAEL J"
,OFFICE OF THE SPEAKER,2015Q4,PERSONNEL COMPENSATION,"","SCHILLINGER,EMILY L",10/01/15,11/30/15,PRESS SECRETARY,"25,833.34",2015,"","","","SCHILLINGER,EMILY L"
,OFFICE OF THE SPEAKER,2015Q4,PERSONNEL COMPENSATION,"","SCHILLINGER,EMILY L",10/01/15,10/30/15,PRESS SECRETARY (OTHER COMPENSATION),"1,100.00",2015,"","","","SCHILLINGER,EMILY L"
,OFFICE OF THE SPEAKER,2015Q4,PERSONNEL COMPENSATION,"","SHAPIRO, MICHAEL I",12/01/15,12/31/15,COMMUNICATIONS ADVISOR,"5,000.00",2015,"","","","SHAPIRO, MICHAEL I"
,OFFICE OF THE SPEAKER,2015Q4,PERSONNEL COMPENSATION,"","SLINGSBY, JULIA K",12/17/15,12/31/15,DEPUTY COMMUNICATIONS DIRECTOR,"3,500.00",2015,"","","","SLINGSBY, JULIA K"
,OFFICE OF THE SPEAKER,2015Q4,PERSONNEL COMPENSATION,"","SMITH, CALEB J",10/01/15,12/31/15,DIGITAL COMMUNICATIONS DIRECTO,"27,541.66",2015,"","","","SMITH, CALEB J"
,OFFICE OF THE SPEAKER,2015Q4,PERSONNEL COMPENSATION,"","SMITH, CALEB J",10/01/15,10/30/15,DIGITAL COMMUNICATIONS DIRECTO (OTHER COMPENSATION),"3,000.00",2015,"","","","SMITH, CALEB J"
,OFFICE OF THE SPEAKER,2015Q4,PERSONNEL COMPENSATION,"","SMITH, KEVIN",10/01/15,11/30/15,DIRECTOR OF COMMUNICATIONS,"28,750.00",2015,"","","","SMITH, KEVIN"
,OFFICE OF THE SPEAKER,2015Q4,PERSONNEL COMPENSATION,"","SMYTHE,AUGUSTINE",11/02/15,12/31/15,POLICY DIRECTOR,"28,270.83",2015,"","","","SMYTHE,AUGUSTINE"
,OFFICE OF THE SPEAKER,2015Q4,PERSONNEL COMPENSATION,"","SOMMERS, MICHAEL J",10/01/15,10/31/15,CHIEF OF STAFF,"14,375.00",2015,"","","","SOMMERS, MICHAEL J"
,OFFICE OF THE SPEAKER,2015Q4,PERSONNEL COMPENSATION,"","SPETH, ANDREW D",11/02/15,12/31/15,SENIOR ADVISOR,"14,135.42",2015,"","","","SPETH, ANDREW D"
,OFFICE OF THE SPEAKER,2015Q4,PERSONNEL COMPENSATION,"","STEWART, DAVID B",10/01/15,11/30/15,POLICY DIRECTOR (STAT),"28,270.83",2015,"","","","STEWART, DAVID B"
,OFFICE OF THE SPEAKER,2015Q4,PERSONNEL COMPENSATION,"","STEWART,JENNIFER M",10/01/15,11/30/15,ASST TO SPEAKER FOR POLICY,"20,000.00",2015,"","","","STEWART,JENNIFER M"
,OFFICE OF THE SPEAKER,2015Q4,PERSONNEL COMPENSATION,"","STEWART,JENNIFER M",12/01/15,12/06/15,DEP STAFF DIR/PLANNING & OVERS,"1,333.33",2015,"","","","STEWART,JENNIFER M"
,OFFICE OF THE SPEAKER,2015Q4,PERSONNEL COMPENSATION,"","STRONG,ASHLEE A",11/01/15,12/31/15,PRESS SECRETARY,"25,000.00",2015,"","","","STRONG,ASHLEE A"
,OFFICE OF THE SPEAKER,2015Q4,PERSONNEL COMPENSATION,"","STRUNK, LYDIA",10/01/15,12/31/15,DEPUTY FLOOR DIRECTOR,"28,749.99",2015,"","","","STRUNK, LYDIA"
,OFFICE OF THE SPEAKER,2015Q4,PERSONNEL COMPENSATION,"","STRUNK, LYDIA",10/01/15,10/30/15,DEPUTY FLOOR DIRECTOR (OTHER COMPENSATION),"3,000.00",2015,"","","","STRUNK, LYDIA"
,OFFICE OF THE SPEAKER,2015Q4,PERSONNEL COMPENSATION,"","SWINEHART,SARAH V",10/01/15,12/31/15,DIRECTOR OF MEDIA AFFAIRS,"24,583.34",2015,"","","","SWINEHART,SARAH V"
,OFFICE OF THE SPEAKER,2015Q4,PERSONNEL COMPENSATION,"","SWINEHART,SARAH V",10/01/15,10/30/15,DIRECTOR OF MEDIA AFFAIRS (OTHER COMPENSATION),"3,000.00",2015,"","","","SWINEHART,SARAH V"
,OFFICE OF THE SPEAKER,2015Q4,PERSONNEL COMPENSATION,"","TALLENT,REBECCA A",10/01/15,11/30/15,ASST TO SPEAKER FOR POLICY,"28,000.00",2015,"","","","TALLENT,REBECCA A"
,OFFICE OF THE SPEAKER,2015Q4,PERSONNEL COMPENSATION,"","THORSEN, ANNE B",10/01/15,12/31/15,FLOOR DIRECTOR,"43,125.00",2015,"","","","THORSEN, ANNE B"
,OFFICE OF THE SPEAKER,2015Q4,PERSONNEL COMPENSATION,"","WHITE, JERRY L",10/01/15,12/31/15,SHARED EMPLOYEE,"22,000.01",2015,"","","","WHITE, JERRY L"
,OFFICE OF THE SPEAKER,2015Q4,PERSONNEL COMPENSATION,"","WICKISER,VICTORIA H",11/02/15,12/31/15,DEPUTY DIRECTOR OF SCHEDULING,"11,472.22",2015,"","","","WICKISER,VICTORIA H"
,OFFICE OF THE SPEAKER,2015Q4,PERSONNEL COMPENSATION,"","WOLKING,MATTHEW D",10/01/15,10/18/15,COMMUNICATIONS ADVISOR,"4,875.00",2015,"","","","WOLKING,MATTHEW D"
,OFFICE OF THE SPEAKER,2015Q4,PERSONNEL COMPENSATION,"","WOLKING,MATTHEW D",10/01/15,10/18/15,COMMUNICATIONS ADVISOR (OTHER COMPENSATION),"3,000.00",2015,"","","","WOLKING,MATTHEW D"
,OFFICE OF THE SPEAKER,2015Q4,PERSONNEL COMPENSATION,"","ZENTMEYER,APRIL E",10/01/15,12/31/15,PROTOCOL & SPECIAL PROJECTS AD,"23,750.01",2015,"","","","ZENTMEYER,APRIL E"
,OFFICE OF THE SPEAKER,2015Q4,PERSONNEL COMPENSATION,"","ZENTMEYER,APRIL E",10/01/15,10/30/15,PROTOCOL & SPECIAL PROJECTS AD (OTHER COMPENSATION),"3,000.00",2015,"","","","ZENTMEYER,APRIL E"
,OFFICE OF THE SPEAKER,2015Q4,PERSONNEL COMPENSATION,"","ZULKOSKY,ERIC T",10/01/15,12/31/15,SHARED EMPLOYEE,"24,999.99",2015,"","","","ZULKOSKY,ERIC T"
,OFFICE OF THE SPEAKER,2015Q4,TRAVEL,10-07,"BAILEY,BRADLEY",06/26/15,09/01/15,TAXI/PARKING/TOLLS,91.39,2015,AP,Accounts payable,E0327169,"BAILEY,BRADLEY"
,OFFICE OF THE SPEAKER,2015Q4,TRAVEL,10-13,"SWINEHART,SARAH V",10/07/15,10/09/15,TRAVEL SUBSISTENCE,355.37,2015,AP,Accounts payable,E0329289,"SWINEHART,SARAH V"
,OFFICE OF THE SPEAKER,2015Q4,TRAVEL,11-03,"SMITH, KEVIN",08/11/15,10/26/15,TAXI/PARKING/TOLLS,220.00,2015,AP,Accounts payable,E0336026,"SMITH, KEVIN"
,OFFICE OF THE SPEAKER,2015Q4,TRAVEL,11-03,"SMITH, KEVIN",10/08/15,10/08/15,COMMERCIAL TRANSPORTATION,358.10,2015,AP,Accounts payable,E0336037,"SMITH, KEVIN"
,OFFICE OF THE SPEAKER,2015Q4,TRAVEL,11-03,"HALEY, KATHERINE C",04/13/15,10/27/15,TAXI/PARKING/TOLLS,115.28,2015,AP,Accounts payable,E0336044,"HALEY, KATHERINE C"
,OFFICE OF THE SPEAKER,2015Q4,TRAVEL,11-06,"HALEY, KATHERINE C",10/07/14,06/23/15,TAXI/PARKING/TOLLS,-242.75,2015,AP,Accounts payable,00822410,"HALEY, KATHERINE C"
,OFFICE OF THE SPEAKER,2015Q4,TRAVEL,11-06,"HALEY, KATHERINE C",01/12/15,04/16/15,TAXI/PARKING/TOLLS,89.75,2015,AP,Accounts payable,00822410,"HALEY, KATHERINE C"
,OFFICE OF THE SPEAKER,2015Q4,TRAVEL,11-24,"HIGGINS, CASEY",11/09/15,11/09/15,TAXI/PARKING/TOLLS,39.90,2015,AP,Accounts payable,E0344209,"HIGGINS, CASEY"
,OFFICE OF THE SPEAKER,2015Q4,TRAVEL,11-25,"DAY,VANESSA",11/10/15,11/15/15,TRAVEL SUBSISTENCE,"1,471.94",2015,AP,Accounts payable,E0344735,"DAY,VANESSA"
,OFFICE OF THE SPEAKER,2015Q4,TRAVEL,11-25,"SWINEHART,SARAH V",11/06/15,11/13/15,TRAVEL SUBSISTENCE,812.04,2015,AP,Accounts payable,E0344736,"SWINEHART,SARAH V"
,OFFICE OF THE SPEAKER,2015Q4,TRAVEL,12-29,"SMITH, CALEB",11/10/15,11/13/15,TRAVEL SUBSISTENCE,"1,136.26",2015,AP,Accounts payable,E0356154,"SMITH, CALEB"
,OFFICE OF THE SPEAKER,2015Q4,TRAVEL,12-29,"STRONG,ASHLEE A",11/08/15,11/12/15,TRAVEL SUBSISTENCE,445.81,2015,AP,Accounts payable,E0356158,"STRONG,ASHLEE A"
,OFFICE OF THE SPEAKER,2015Q4,"RENT, COMMUNICATION, UTILITIES",12-08,FEDEX,10/29/15,10/29/15,POSTAGE / COURIER / BOX RENTAL,196.47,2015,AP,Accounts payable,E0347806,FEDEX
,OFFICE OF THE SPEAKER,2015Q4,"RENT, COMMUNICATION, UTILITIES",12-18,VERIZON,10/01/15,10/31/15,TELECOMSRV/EQ/TOLL CHARGE,33.32,2015,AP,Accounts payable,E0353681,VERIZON
,OFFICE OF THE SPEAKER,2015Q4,"RENT, COMMUNICATION, UTILITIES",12-29,AT&T,11/10/15,12/09/15,TELECOMSRV/EQ/TOLL CHARGE,208.91,2015,AP,Accounts payable,E0356153,AT&T
,OFFICE OF THE SPEAKER,2015Q4,PRINTING AND REPRODUCTION,10-28,"",10/01/15,10/31/15,PHOTOGRAPHIC (TRANSFER),"5,960.80",2015,GL,General ledger,PIX0053371,""
,OFFICE OF THE SPEAKER,2015Q4,PRINTING AND REPRODUCTION,11-24,"",11/01/15,11/30/15,PHOTOGRAPHIC (TRANSFER),446.50,2015,GL,General ledger,PIX0054052,""
,OFFICE OF THE SPEAKER,2015Q4,PRINTING AND REPRODUCTION,12-23,"",12/01/15,12/31/15,PHOTOGRAPHIC (TRANSFER),231.50,2015,GL,General ledger,PIX0054800,""
,OFFICE OF THE SPEAKER,2015Q4,OTHER SERVICES,10-07,DIANA L CARSWELL,01/20/15,01/20/15,NON-TECHNOLOGY SERVICE CONTR,250.00,2015,AP,Accounts payable,E0327115,DIANA L CARSWELL
,OFFICE OF THE SPEAKER,2015Q4,SUPPLIES AND MATERIALS,10-06,COCA-COLA REFRESHMENTS USA INC,09/25/15,09/25/15,FOOD & BEVERAGE,382.56,2015,AP,Accounts payable,E0327123,COCA-COLA REFRESHMENTS USA INC
,OFFICE OF THE SPEAKER,2015Q4,SUPPLIES AND MATERIALS,10-07,"ANDREWS,THOMAS S",09/15/15,09/15/15,FOOD & BEVERAGE,37.80,2015,AP,Accounts payable,E0327122,"ANDREWS,THOMAS S"
,OFFICE OF THE SPEAKER,2015Q4,SUPPLIES AND MATERIALS,10-07,"ZENTMEYER, APRIL E",09/20/15,09/20/15,FOOD & BEVERAGE,61.25,2015,AP,Accounts payable,E0327138,"ZENTMEYER, APRIL E"
,OFFICE OF THE SPEAKER,2015Q4,SUPPLIES AND MATERIALS,10-07,AMARYLLIS INC,09/23/15,09/23/15,HABITATION EXPENSE,"1,030.00",2015,AP,Accounts payable,E0327143,AMARYLLIS INC
,OFFICE OF THE SPEAKER,2015Q4,SUPPLIES AND MATERIALS,10-07,DAIOHS FIRST CHOICE COFFEE SERVICES,08/06/15,09/17/15,FOOD & BEVERAGE,"4,994.58",2015,AP,Accounts payable,E0327144,DAIOHS FIRST CHOICE COFFEE SERVICES
,OFFICE OF THE SPEAKER,2015Q4,SUPPLIES AND MATERIALS,10-16,"LOHMEYER, SONJA M",09/09/15,09/09/15,OFFICE SUPPLIES (OUTSIDE),16.40,2015,AP,Accounts payable,E0331307,"LOHMEYER, SONJA M"
,OFFICE OF THE SPEAKER,2015Q4,SUPPLIES AND MATERIALS,10-19,CITI PCARD-CAPITOL HOST (RIDGEWEL,08/29/15,09/28/15,FOOD & BEVERAGE,105.00,2015,AP,Accounts payable,00822170,CITI PCARD-CAPITOL HOST (RIDGEWEL
,OFFICE OF THE SPEAKER,2015Q4,SUPPLIES AND MATERIALS,10-19,CITI PCARD-CORNER BAKERY,08/29/15,09/28/15,FOOD & BEVERAGE,715.00,2015,AP,Accounts payable,00822170,CITI PCARD-CORNER BAKERY
,OFFICE OF THE SPEAKER,2015Q4,SUPPLIES AND MATERIALS,10-19,CITI PCARD-GIANT,08/29/15,09/28/15,FOOD & BEVERAGE,185.66,2015,AP,Accounts payable,00822170,CITI PCARD-GIANT
,OFFICE OF THE SPEAKER,2015Q4,SUPPLIES AND MATERIALS,10-19,CITI PCARD-HILL COUNTRY BARBECUE,08/29/15,09/28/15,FOOD & BEVERAGE,697.50,2015,AP,Accounts payable,00822170,CITI PCARD-HILL COUNTRY BARBECUE
,OFFICE OF THE SPEAKER,2015Q4,SUPPLIES AND MATERIALS,10-19,CITI PCARD-IMDB,08/29/15,09/28/15,PUBLICATIONS/REFERENCE MAT'L,19.99,2015,AP,Accounts payable,00822170,CITI PCARD-IMDB
,OFFICE OF THE SPEAKER,2015Q4,SUPPLIES AND MATERIALS,10-19,CITI PCARD-MATCHBOX CAPITOL HILL,08/29/15,09/28/15,FOOD & BEVERAGE,936.30,2015,AP,Accounts payable,00822170,CITI PCARD-MATCHBOX CAPITOL HILL
,OFFICE OF THE SPEAKER,2015Q4,SUPPLIES AND MATERIALS,10-19,CITI PCARD-TLF CAPITOL FLORIST AN,08/29/15,09/28/15,HABITATION EXPENSE,228.04,2015,AP,Accounts payable,00822170,CITI PCARD-TLF CAPITOL FLORIST AN
,OFFICE OF THE SPEAKER,2015Q4,SUPPLIES AND MATERIALS,10-19,CITI PCARD-WHO REPRESENTS.COM,08/29/15,09/28/15,PUBLICATIONS/REFERENCE MAT'L,26.97,2015,AP,Accounts payable,00822170,CITI PCARD-WHO REPRESENTS.COM
,OFFICE OF THE SPEAKER,2015Q4,SUPPLIES AND MATERIALS,11-03,PACER SERVICE CENTER,07/01/15,09/30/15,PUBLICATIONS/REFERENCE MAT'L,34.00,2015,AP,Accounts payable,E0336033,PACER SERVICE CENTER
,OFFICE OF THE SPEAKER,2015Q4,SUPPLIES AND MATERIALS,11-03,DESIGN CUISINE,09/24/15,09/24/15,FOOD & BEVERAGE,"31,060.85",2015,AP,Accounts payable,E0336036,DESIGN CUISINE
,OFFICE OF THE SPEAKER,2015Q4,SUPPLIES AND MATERIALS,11-09,"KITTLE, ALLIE M",11/02/15,11/02/15,FOOD & BEVERAGE,20.54,2015,AP,Accounts payable,E0338254,"KITTLE, ALLIE M"
,OFFICE OF THE SPEAKER,2015Q4,SUPPLIES AND MATERIALS,11-09,DAIOHS FIRST CHOICE COFFEE SERVICES,10/31/15,10/31/15,FOOD & BEVERAGE,684.35,2015,AP,Accounts payable,E0338268,DAIOHS FIRST CHOICE COFFEE SERVICES
,OFFICE OF THE SPEAKER,2015Q4,SUPPLIES AND MATERIALS,11-09,"LOHMEYER, SONJA M",10/28/15,10/28/15,FOOD & BEVERAGE,189.60,2015,AP,Accounts payable,E0338270,"LOHMEYER, SONJA M"
,OFFICE OF THE SPEAKER,2015Q4,SUPPLIES AND MATERIALS,11-09,"WHITE, JERRY L",11/02/15,11/02/15,FOOD & BEVERAGE,162.06,2015,AP,Accounts payable,E0338317,"WHITE, JERRY L"
,OFFICE OF THE SPEAKER,2015Q4,SUPPLIES AND MATERIALS,11-20,CITI PCARD-BAKED AND WIRED,10/01/15,10/28/15,FOOD & BEVERAGE,144.25,2015,AP,Accounts payable,00827800,CITI PCARD-BAKED AND WIRED
,OFFICE OF THE SPEAKER,2015Q4,SUPPLIES AND MATERIALS,11-20,CITI PCARD-CAFE RIO MEXICAN GRILL,09/29/15,09/30/15,FOOD & BEVERAGE,492.27,2015,AP,Accounts payable,00827800,CITI PCARD-CAFE RIO MEXICAN GRILL
,OFFICE OF THE SPEAKER,2015Q4,SUPPLIES AND MATERIALS,11-20,CITI PCARD-CAPITOL HOST (RIDGEWEL,09/29/15,09/30/15,FOOD & BEVERAGE,45.00,2015,AP,Accounts payable,00827800,CITI PCARD-CAPITOL HOST (RIDGEWEL
,OFFICE OF THE SPEAKER,2015Q4,SUPPLIES AND MATERIALS,11-20,CITI PCARD-CAPITOL HOST (RIDGEWEL,10/01/15,10/28/15,FOOD & BEVERAGE,60.00,2015,AP,Accounts payable,00827800,CITI PCARD-CAPITOL HOST (RIDGEWEL
,OFFICE OF THE SPEAKER,2015Q4,SUPPLIES AND MATERIALS,11-20,CITI PCARD-CARMINE'S,09/29/15,09/30/15,FOOD & BEVERAGE,869.75,2015,AP,Accounts payable,00827800,CITI PCARD-CARMINE'S
,OFFICE OF THE SPEAKER,2015Q4,SUPPLIES AND MATERIALS,11-20,CITI PCARD-CARMINE'S,10/01/15,10/28/15,FOOD & BEVERAGE,353.00,2015,AP,Accounts payable,00827800,CITI PCARD-CARMINE'S
,OFFICE OF THE SPEAKER,2015Q4,SUPPLIES AND MATERIALS,11-20,CITI PCARD-CORNER BAKERY,10/01/15,10/28/15,FOOD & BEVERAGE,812.00,2015,AP,Accounts payable,00827800,CITI PCARD-CORNER BAKERY
,OFFICE OF THE SPEAKER,2015Q4,SUPPLIES AND MATERIALS,11-20,CITI PCARD-REBILL CAPITOL HOST (R,09/29/15,09/30/15,FOOD & BEVERAGE,105.00,2015,AP,Accounts payable,00827800,CITI PCARD-REBILL CAPITOL HOST (R
,OFFICE OF THE SPEAKER,2015Q4,SUPPLIES AND MATERIALS,11-20,CITI PCARD-TAYLOR GOURMET,09/29/15,09/30/15,FOOD & BEVERAGE,245.74,2015,AP,Accounts payable,00827800,CITI PCARD-TAYLOR GOURMET
,OFFICE OF THE SPEAKER,2015Q4,SUPPLIES AND MATERIALS,11-20,CITI PCARD-TAYLOR GOURMET,10/01/15,10/28/15,FOOD & BEVERAGE,411.46,2015,AP,Accounts payable,00827800,CITI PCARD-TAYLOR GOURMET
,OFFICE OF THE SPEAKER,2015Q4,SUPPLIES AND MATERIALS,11-20,CITI PCARD-WHO REPRESENTS.COM,10/01/15,10/28/15,PUBLICATIONS/REFERENCE MAT'L,26.97,2015,AP,Accounts payable,00827800,CITI PCARD-WHO REPRESENTS.COM
,OFFICE OF THE SPEAKER,2015Q4,SUPPLIES AND MATERIALS,11-20,CITI PCARD-WHOLEFDS PST,10/01/15,10/28/15,FOOD & BEVERAGE,334.95,2015,AP,Accounts payable,00827800,CITI PCARD-WHOLEFDS PST
,OFFICE OF THE SPEAKER,2015Q4,SUPPLIES AND MATERIALS,12-09,"KEARNEY, EMILY M",12/02/15,12/02/15,FOOD & BEVERAGE,47.67,2015,AP,Accounts payable,E0347835,"KEARNEY, EMILY M"
,OFFICE OF THE SPEAKER,2015Q4,SUPPLIES AND MATERIALS,12-14,ALICIA BARTON,12/01/15,12/01/15,HABITATION EXPENSE,588.00,2015,AP,Accounts payable,E0347808,ALICIA BARTON
,OFFICE OF THE SPEAKER,2015Q4,SUPPLIES AND MATERIALS,12-15,"DECK, JAMES",12/02/15,12/02/15,FOOD & BEVERAGE,152.61,2015,AP,Accounts payable,E0351659,"DECK, JAMES"
,OFFICE OF THE SPEAKER,2015Q4,SUPPLIES AND MATERIALS,12-15,"WHITE, JERRY L",12/09/15,12/09/15,FOOD & BEVERAGE,152.61,2015,AP,Accounts payable,E0351672,"WHITE, JERRY L"
,OFFICE OF THE SPEAKER,2015Q4,SUPPLIES AND MATERIALS,12-21,CITI PCARD-LEADERSHIP DIRECTORIES,10/29/15,11/28/15,PUBLICATIONS/REFERENCE MAT'L,635.00,2015,AP,Accounts payable,00833251,CITI PCARD-LEADERSHIP DIRECTORIES
,OFFICE OF THE SPEAKER,2015Q4,SUPPLIES AND MATERIALS,12-29,HAGUE QUALITY WATER OF MD INC,01/03/16,01/02/17,WATER,"3,780.00",2015,AP,Accounts payable,E0347825,HAGUE QUALITY WATER OF MD INC
,OFFICE OF THE SPEAKER,2015Q4,SUPPLIES AND MATERIALS,12-29,LEXIS-NEXIS,12/31/15,12/31/16,PUBLICATIONS/REFERENCE MAT'L,"9,876.00",2015,AP,Accounts payable,E0356152,LEXIS-NEXIS
,OFFICE OF THE SPEAKER,2015Q4,SUPPLIES AND MATERIALS,12-29,"BLAKE, KRISTENE",12/22/15,12/22/15,FOOD & BEVERAGE,58.22,2015,AP,Accounts payable,E0356157,"BLAKE, KRISTENE"
,OFFICE OF THE SPEAKER,2015Q4,TRAVEL,11-06,"HALEY, KATHERINE C",10/17/14,12/18/14,TAXI/PARKING/TOLLS,153.00,2014,AP,Accounts payable,00822410,"HALEY, KATHERINE C"
,OFFICE OF THE MAJORITY LEADER,2015Q4,PERSONNEL COMPENSATION,"","BERRY,TIMOTHY J",10/01/15,12/31/15,CHIEF OF STAFF,"43,125.00",2015,"","","","BERRY,TIMOTHY J"
,OFFICE OF THE MAJORITY LEADER,2015Q4,PERSONNEL COMPENSATION,"","BIEN,CHRISTOPHER A",10/01/15,12/31/15,STAFF ASSISTANT,"11,000.00",2015,"","","","BIEN,CHRISTOPHER A"
,OFFICE OF THE MAJORITY LEADER,2015Q4,PERSONNEL COMPENSATION,"","BORDEN III, R C",10/01/15,12/13/15,DIRECTOR OF OVERSIGHT,"6,675.00",2015,"","","","BORDEN III, R C"
,OFFICE OF THE MAJORITY LEADER,2015Q4,PERSONNEL COMPENSATION,"","BUCHANAN,NATALIE L",10/01/15,12/31/15,DIR OF MEMBER SERVICES,"29,250.00",2015,"","","","BUCHANAN,NATALIE L"
,OFFICE OF THE MAJORITY LEADER,2015Q4,PERSONNEL COMPENSATION,"","BURR,DANIELLE M",10/01/15,12/31/15,DIRECTOR OF EXTERNAL AFFAIRS,"38,500.00",2015,"","","","BURR,DANIELLE M"
,OFFICE OF THE MAJORITY LEADER,2015Q4,PERSONNEL COMPENSATION,"","CAREY,BRITTANY M",10/01/15,12/31/15,EXTERN AFFAIR ASST/ASST TO COS,"15,750.00",2015,"","","","CAREY,BRITTANY M"
,OFFICE OF THE MAJORITY LEADER,2015Q4,PERSONNEL COMPENSATION,"","DIXON, KELLY A",10/01/15,12/31/15,DIR OF LEGISLATIVE OPERATIONS,"32,000.00",2015,"","","","DIXON, KELLY A"
,OFFICE OF THE MAJORITY LEADER,2015Q4,PERSONNEL COMPENSATION,"","DRESSLER,JEFFREY A",10/01/15,12/31/15,SENIOR POLICY ADVISOR,"28,500.00",2015,"","","","DRESSLER,JEFFREY A"
,OFFICE OF THE MAJORITY LEADER,2015Q4,PERSONNEL COMPENSATION,"","FLORIO,JOHN A",10/01/15,12/31/15,SHARED EMPLOYEE,"13,000.00",2015,"","","","FLORIO,JOHN A"
,OFFICE OF THE MAJORITY LEADER,2015Q4,PERSONNEL COMPENSATION,"","GLANCEY,TESSICA M",10/01/15,12/31/15,DIGITAL COORDINATOR,"13,750.00",2015,"","","","GLANCEY,TESSICA M"
,OFFICE OF THE MAJORITY LEADER,2015Q4,PERSONNEL COMPENSATION,"","GOURDIKIAN,ALEXANDRA G",10/01/15,12/31/15,DEPUTY SCHEDULER,"12,500.00",2015,"","","","GOURDIKIAN,ALEXANDRA G"
,OFFICE OF THE MAJORITY LEADER,2015Q4,PERSONNEL COMPENSATION,"","HENEHAN, EMILY A",10/01/15,12/31/15,SENIOR POLICY ADVISOR,"25,500.00",2015,"","","","HENEHAN, EMILY A"
,OFFICE OF THE MAJORITY LEADER,2015Q4,PERSONNEL COMPENSATION,"","HOWARD,BENJAMIN R",10/01/15,12/31/15,DIRECTOR OF FLOOR OPERATIONS,"24,000.00",2015,"","","","HOWARD,BENJAMIN R"
,OFFICE OF THE MAJORITY LEADER,2015Q4,PERSONNEL COMPENSATION,"","KARR,ELIZABETH B",10/01/15,12/31/15,DEPUTY CHIEF OF STAFF FOR POLI,"42,750.00",2015,"","","","KARR,ELIZABETH B"
,OFFICE OF THE MAJORITY LEADER,2015Q4,PERSONNEL COMPENSATION,"","KELLOGG,MATTHEW B",09/28/15,12/31/15,SR POLICY ADVISOR & COUNSEL,"28,350.00",2015,"","","","KELLOGG,MATTHEW B"
,OFFICE OF THE MAJORITY LEADER,2015Q4,PERSONNEL COMPENSATION,"","KLUTTZ,LAWSON T",10/01/15,12/31/15,SPECIAL ASSISTANT,"12,000.00",2015,"","","","KLUTTZ,LAWSON T"
,OFFICE OF THE MAJORITY LEADER,2015Q4,PERSONNEL COMPENSATION,"","LEGANSKI,JOHN G",10/01/15,12/31/15,SHARED EMPLOYEE,"12,000.00",2015,"","","","LEGANSKI,JOHN G"
,OFFICE OF THE MAJORITY LEADER,2015Q4,PERSONNEL COMPENSATION,"","LIRA,MATHEW L",10/01/15,12/31/15,SENIOR ADVISOR,"27,000.00",2015,"","","","LIRA,MATHEW L"
,OFFICE OF THE MAJORITY LEADER,2015Q4,PERSONNEL COMPENSATION,"","LONG,MICHAEL P",10/01/15,12/31/15,COMMUNICATIONS DIRECTOR,"27,250.00",2015,"","","","LONG,MICHAEL P"
,OFFICE OF THE MAJORITY LEADER,2015Q4,PERSONNEL COMPENSATION,"","MAHAN,ROGER A",10/01/15,12/31/15,POLICY ADVISOR,"34,250.00",2015,"","","","MAHAN,ROGER A"
,OFFICE OF THE MAJORITY LEADER,2015Q4,PERSONNEL COMPENSATION,"","MIN, JAMES B",10/01/15,12/31/15,DEPUTY CHIEF OF STAFF/COUNSEL,"9,000.00",2015,"","","","MIN, JAMES B"
,OFFICE OF THE MAJORITY LEADER,2015Q4,PERSONNEL COMPENSATION,"","SPARKS, MATTHEW E",10/01/15,12/31/15,PRESS SECRETARY,"13,500.00",2015,"","","","SPARKS, MATTHEW E"
,OFFICE OF THE MAJORITY LEADER,2015Q4,PERSONNEL COMPENSATION,"","STIPICEVIC, JOHN A",10/01/15,12/18/15,DEP COS FOR FLOOR AND MEM SERV,"35,100.00",2015,"","","","STIPICEVIC, JOHN A"
,OFFICE OF THE MAJORITY LEADER,2015Q4,PERSONNEL COMPENSATION,"","STIPICEVIC, KRISTIN",10/01/15,12/31/15,EXECUTIVE ASSISTANT,"19,500.00",2015,"","","","STIPICEVIC, KRISTIN"
,OFFICE OF THE MAJORITY LEADER,2015Q4,PERSONNEL COMPENSATION,"","TORRES,ALEC C",10/01/15,12/31/15,COMM AIDE AND SPEECHWRITER,"13,250.00",2015,"","","","TORRES,ALEC C"
,OFFICE OF THE MAJORITY LEADER,2015Q4,"RENT, COMMUNICATION, UTILITIES",10-06,FEDERAL EXPRESS CORPORATION,09/12/15,09/18/15,POSTAGE / COURIER / BOX RENTAL,33.28,2015,AP,Accounts payable,00817335,FEDERAL EXPRESS CORPORATION
,OFFICE OF THE MAJORITY LEADER,2015Q4,"RENT, COMMUNICATION, UTILITIES",10-07,FEDERAL EXPRESS CORPORATION,08/21/15,08/28/15,POSTAGE / COURIER / BOX RENTAL,12.15,2015,AP,Accounts payable,00816987,FEDERAL EXPRESS CORPORATION
,OFFICE OF THE MAJORITY LEADER,2015Q4,"RENT, COMMUNICATION, UTILITIES",10-09,FEDERAL EXPRESS CORPORATION,10/03/15,10/09/15,POSTAGE / COURIER / BOX RENTAL,27.74,2015,AP,Accounts payable,00817909,FEDERAL EXPRESS CORPORATION
,OFFICE OF THE MAJORITY LEADER,2015Q4,"RENT, COMMUNICATION, UTILITIES",10-15,FEDERAL EXPRESS CORPORATION,09/05/15,09/11/15,POSTAGE / COURIER / BOX RENTAL,20.03,2015,AP,Accounts payable,00817324,FEDERAL EXPRESS CORPORATION
,OFFICE OF THE MAJORITY LEADER,2015Q4,"RENT, COMMUNICATION, UTILITIES",10-16,FEDERAL EXPRESS CORPORATION,10/12/15,10/16/15,POSTAGE / COURIER / BOX RENTAL,11.32,2015,AP,Accounts payable,00820504,FEDERAL EXPRESS CORPORATION
,OFFICE OF THE MAJORITY LEADER,2015Q4,"RENT, COMMUNICATION, UTILITIES",10-27,FEDERAL EXPRESS CORPORATION,10/19/15,10/23/15,POSTAGE / COURIER / BOX RENTAL,63.46,2015,AP,Accounts payable,00822505,FEDERAL EXPRESS CORPORATION
,OFFICE OF THE MAJORITY LEADER,2015Q4,"RENT, COMMUNICATION, UTILITIES",11-02,FEDERAL EXPRESS CORPORATION,10/26/15,10/30/15,POSTAGE / COURIER / BOX RENTAL,613.42,2015,AP,Accounts payable,00822897,FEDERAL EXPRESS CORPORATION
,OFFICE OF THE MAJORITY LEADER,2015Q4,"RENT, COMMUNICATION, UTILITIES",11-07,FEDERAL EXPRESS CORPORATION,11/02/15,11/06/15,POSTAGE / COURIER / BOX RENTAL,529.57,2015,AP,Accounts payable,00823188,FEDERAL EXPRESS CORPORATION
,OFFICE OF THE MAJORITY LEADER,2015Q4,"RENT, COMMUNICATION, UTILITIES",11-16,FEDERAL EXPRESS CORPORATION,11/09/15,11/13/15,POSTAGE / COURIER / BOX RENTAL,12.41,2015,AP,Accounts payable,00825148,FEDERAL EXPRESS CORPORATION
,OFFICE OF THE MAJORITY LEADER,2015Q4,"RENT, COMMUNICATION, UTILITIES",11-20,CITI PCARD-USPS,10/01/15,10/28/15,POSTAGE / COURIER / BOX RENTAL,57.22,2015,AP,Accounts payable,00827800,CITI PCARD-USPS
,OFFICE OF THE MAJORITY LEADER,2015Q4,"RENT, COMMUNICATION, UTILITIES",11-20,FEDERAL EXPRESS CORPORATION,11/16/15,11/20/15,POSTAGE / COURIER / BOX RENTAL,5.90,2015,AP,Accounts payable,00827817,FEDERAL EXPRESS CORPORATION
,OFFICE OF THE MAJORITY LEADER,2015Q4,"RENT, COMMUNICATION, UTILITIES",12-02,FEDERAL EXPRESS CORPORATION,11/23/15,11/27/15,POSTAGE / COURIER / BOX RENTAL,5.90,2015,AP,Accounts payable,00828204,FEDERAL EXPRESS CORPORATION
,OFFICE OF THE MAJORITY LEADER,2015Q4,"RENT, COMMUNICATION, UTILITIES",12-04,FEDERAL EXPRESS CORPORATION,11/30/15,12/04/15,POSTAGE / COURIER / BOX RENTAL,18.51,2015,AP,Accounts payable,00828347,FEDERAL EXPRESS CORPORATION
,OFFICE OF THE MAJORITY LEADER,2015Q4,"RENT, COMMUNICATION, UTILITIES",12-11,FEDERAL EXPRESS CORPORATION,12/07/15,12/11/15,POSTAGE / COURIER / BOX RENTAL,4.53,2015,AP,Accounts payable,00828692,FEDERAL EXPRESS CORPORATION
,OFFICE OF THE MAJORITY LEADER,2015Q4,"RENT, COMMUNICATION, UTILITIES",12-18,FEDERAL EXPRESS CORPORATION,12/14/15,12/18/15,POSTAGE / COURIER / BOX RENTAL,17.65,2015,AP,Accounts payable,00833097,FEDERAL EXPRESS CORPORATION
,OFFICE OF THE MAJORITY LEADER,2015Q4,"RENT, COMMUNICATION, UTILITIES",12-21,CITI PCARD-USPS,10/29/15,11/28/15,POSTAGE / COURIER / BOX RENTAL,49.00,2015,AP,Accounts payable,00833251,CITI PCARD-USPS
,OFFICE OF THE MAJORITY LEADER,2015Q4,PRINTING AND REPRODUCTION,10-28,"",10/01/15,10/31/15,PHOTOGRAPHIC (TRANSFER),6.50,2015,GL,General ledger,PIX0053371,""
,OFFICE OF THE MAJORITY LEADER,2015Q4,PRINTING AND REPRODUCTION,12-23,"",12/01/15,12/31/15,PHOTOGRAPHIC (TRANSFER),12.80,2015,GL,General ledger,PIX0054800,""
,OFFICE OF THE MAJORITY LEADER,2015Q4,OTHER SERVICES,10-19,ZIGNAL LABS INC,11/01/15,11/30/15,"WEB DEV HST,EMAIL & RLTD SERV","1,000.00",2015,AP,Accounts payable,E0331413,ZIGNAL LABS INC
,OFFICE OF THE MAJORITY LEADER,2015Q4,OTHER SERVICES,10-22,ZIGNAL LABS INC,11/01/15,11/30/15,"WEB DEV HST,EMAIL & RLTD SERV","-1,000.00",2015,AP,Accounts payable,00822475,ZIGNAL LABS INC
,OFFICE OF THE MAJORITY LEADER,2015Q4,OTHER SERVICES,10-23,OUTLAW MEDIA LLC,09/01/15,09/30/15,"WEB DEV HST,EMAIL & RLTD SERV","-2,250.00",2015,AP,Accounts payable,E0319699,OUTLAW MEDIA LLC
,OFFICE OF THE MAJORITY LEADER,2015Q4,SUPPLIES AND MATERIALS,10-16,"MIN, JAMES B",09/01/15,09/01/15,FOOD & BEVERAGE,530.13,2015,AP,Accounts payable,E0330706,"MIN, JAMES B"
,OFFICE OF THE MAJORITY LEADER,2015Q4,SUPPLIES AND MATERIALS,10-19,CITI PCARD-AMAZON.COM,08/29/15,09/28/15,PUBLICATIONS/REFERENCE MAT'L,81.02,2015,AP,Accounts payable,00822170,CITI PCARD-AMAZON.COM
,OFFICE OF THE MAJORITY LEADER,2015Q4,SUPPLIES AND MATERIALS,10-19,CITI PCARD-CORNER BAKERY,08/29/15,09/28/15,FOOD & BEVERAGE,836.00,2015,AP,Accounts payable,00822170,CITI PCARD-CORNER BAKERY
,OFFICE OF THE MAJORITY LEADER,2015Q4,SUPPLIES AND MATERIALS,10-19,CITI PCARD-D J WALL-ST-JOURNAL,08/29/15,09/28/15,PUBLICATIONS/REFERENCE MAT'L,26.43,2015,AP,Accounts payable,00822170,CITI PCARD-D J WALL-ST-JOURNAL
,OFFICE OF THE MAJORITY LEADER,2015Q4,SUPPLIES AND MATERIALS,10-19,CITI PCARD-FIRST CHOICE,08/29/15,09/28/15,FOOD & BEVERAGE,329.15,2015,AP,Accounts payable,00822170,CITI PCARD-FIRST CHOICE
,OFFICE OF THE MAJORITY LEADER,2015Q4,SUPPLIES AND MATERIALS,10-19,CITI PCARD-LA TIMES SUBSCRIPTION,08/29/15,09/28/15,PUBLICATIONS/REFERENCE MAT'L,15.96,2015,AP,Accounts payable,00822170,CITI PCARD-LA TIMES SUBSCRIPTION
,OFFICE OF THE MAJORITY LEADER,2015Q4,SUPPLIES AND MATERIALS,10-19,CITI PCARD-NEW YORK TIMES DIGITAL,08/29/15,09/28/15,PUBLICATIONS/REFERENCE MAT'L,74.02,2015,AP,Accounts payable,00822170,CITI PCARD-NEW YORK TIMES DIGITAL
,OFFICE OF THE MAJORITY LEADER,2015Q4,SUPPLIES AND MATERIALS,10-19,CITI PCARD-THE ITALIAN STORE,08/29/15,09/28/15,FOOD & BEVERAGE,425.69,2015,AP,Accounts payable,00822170,CITI PCARD-THE ITALIAN STORE
,OFFICE OF THE MAJORITY LEADER,2015Q4,SUPPLIES AND MATERIALS,10-19,"MIN, JAMES B",10/15/15,10/15/15,FOOD & BEVERAGE,650.11,2015,AP,Accounts payable,E0331417,"MIN, JAMES B"
,OFFICE OF THE MAJORITY LEADER,2015Q4,SUPPLIES AND MATERIALS,10-20,READYREFRESH BY NESTLE,08/27/15,09/26/15,WATER,425.17,2015,AP,Accounts payable,E0332215,READYREFRESH BY NESTLE
,OFFICE OF THE MAJORITY LEADER,2015Q4,SUPPLIES AND MATERIALS,10-28,"MIN, JAMES B",10/23/15,10/23/15,FOOD & BEVERAGE,539.64,2015,AP,Accounts payable,E0334968,"MIN, JAMES B"
,OFFICE OF THE MAJORITY LEADER,2015Q4,SUPPLIES AND MATERIALS,10-28,"MIN, JAMES B",10/21/15,10/21/15,FOOD & BEVERAGE,121.15,2015,AP,Accounts payable,E0334974,"MIN, JAMES B"
,OFFICE OF THE MAJORITY LEADER,2015Q4,SUPPLIES AND MATERIALS,11-03,DEER PARK,09/30/15,09/30/15,WATER,220.73,2015,AP,Accounts payable,00822893,DEER PARK
,OFFICE OF THE MAJORITY LEADER,2015Q4,SUPPLIES AND MATERIALS,11-12,READYREFRESH BY NESTLE,09/27/15,10/26/15,WATER,547.03,2015,AP,Accounts payable,E0339700,READYREFRESH BY NESTLE
,OFFICE OF THE MAJORITY LEADER,2015Q4,SUPPLIES AND MATERIALS,11-20,CITI PCARD-AMBROSIA SOFTWARE INC,09/29/15,09/30/15,SOFTWARE LESS THAN $500,69.00,2015,AP,Accounts payable,00827800,CITI PCARD-AMBROSIA SOFTWARE INC
,OFFICE OF THE MAJORITY LEADER,2015Q4,SUPPLIES AND MATERIALS,11-20,CITI PCARD-AVAN GATE INC,10/01/15,10/28/15,SOFTWARE LESS THAN $500,29.00,2015,AP,Accounts payable,00827800,CITI PCARD-AVAN GATE INC
,OFFICE OF THE MAJORITY LEADER,2015Q4,SUPPLIES AND MATERIALS,11-20,CITI PCARD-CAPITOL HOST (RIDGEWEL,10/01/15,10/28/15,FOOD & BEVERAGE,912.62,2015,AP,Accounts payable,00827800,CITI PCARD-CAPITOL HOST (RIDGEWEL
,OFFICE OF THE MAJORITY LEADER,2015Q4,SUPPLIES AND MATERIALS,11-20,CITI PCARD-COMMERCIAL TYPE,09/29/15,09/30/15,SOFTWARE LESS THAN $500,375.00,2015,AP,Accounts payable,00827800,CITI PCARD-COMMERCIAL TYPE
,OFFICE OF THE MAJORITY LEADER,2015Q4,SUPPLIES AND MATERIALS,11-20,CITI PCARD-CORNER BAKERY,10/01/15,10/28/15,FOOD & BEVERAGE,297.00,2015,AP,Accounts payable,00827800,CITI PCARD-CORNER BAKERY
,OFFICE OF THE MAJORITY LEADER,2015Q4,SUPPLIES AND MATERIALS,11-20,CITI PCARD-D J WALL-ST-JOURNAL,10/01/15,10/28/15,PUBLICATIONS/REFERENCE MAT'L,26.43,2015,AP,Accounts payable,00827800,CITI PCARD-D J WALL-ST-JOURNAL
,OFFICE OF THE MAJORITY LEADER,2015Q4,SUPPLIES AND MATERIALS,11-20,CITI PCARD-FIRST CHOICE - JOE RAG,10/01/15,10/28/15,FOOD & BEVERAGE,835.19,2015,AP,Accounts payable,00827800,CITI PCARD-FIRST CHOICE - JOE RAG
,OFFICE OF THE MAJORITY LEADER,2015Q4,SUPPLIES AND MATERIALS,11-20,CITI PCARD-HARRIS TEETER,10/01/15,10/28/15,FOOD & BEVERAGE,3.99,2015,AP,Accounts payable,00827800,CITI PCARD-HARRIS TEETER
,OFFICE OF THE MAJORITY LEADER,2015Q4,SUPPLIES AND MATERIALS,11-20,CITI PCARD-LA TIMES SUBSCRIPTION,10/01/15,10/28/15,PUBLICATIONS/REFERENCE MAT'L,15.96,2015,AP,Accounts payable,00827800,CITI PCARD-LA TIMES SUBSCRIPTION
,OFFICE OF THE MAJORITY LEADER,2015Q4,SUPPLIES AND MATERIALS,11-20,CITI PCARD-NEW YORK TIMES DIGITAL,10/01/15,10/28/15,PUBLICATIONS/REFERENCE MAT'L,37.01,2015,AP,Accounts payable,00827800,CITI PCARD-NEW YORK TIMES DIGITAL
,OFFICE OF THE MAJORITY LEADER,2015Q4,SUPPLIES AND MATERIALS,11-20,CITI PCARD-SURVEYMONKEY.COM,10/01/15,10/28/15,SOFTWARE LESS THAN $500,300.00,2015,AP,Accounts payable,00827800,CITI PCARD-SURVEYMONKEY.COM
,OFFICE OF THE MAJORITY LEADER,2015Q4,SUPPLIES AND MATERIALS,11-20,CITI PCARD-THE ITALIAN STORE,10/01/15,10/28/15,FOOD & BEVERAGE,952.99,2015,AP,Accounts payable,00827800,CITI PCARD-THE ITALIAN STORE
,OFFICE OF THE MAJORITY LEADER,2015Q4,SUPPLIES AND MATERIALS,12-08,ROBERT HUFF DESIGNS,11/19/15,11/19/15,HABITATION EXPENSE,800.00,2015,AP,Accounts payable,E0347391,ROBERT HUFF DESIGNS
,OFFICE OF THE MAJORITY LEADER,2015Q4,SUPPLIES AND MATERIALS,12-10,"BURR, DANIELLE M",12/04/15,12/04/15,HABITATION EXPENSE,241.51,2015,AP,Accounts payable,E0349711,"BURR, DANIELLE M"
,OFFICE OF THE MAJORITY LEADER,2015Q4,SUPPLIES AND MATERIALS,12-15,DEER PARK,10/31/15,10/31/15,WATER,191.74,2015,AP,Accounts payable,00828708,DEER PARK
,OFFICE OF THE MAJORITY LEADER,2015Q4,SUPPLIES AND MATERIALS,12-15,READYREFRESH BY NESTLE,10/27/15,11/26/15,WATER,381.81,2015,AP,Accounts payable,E0351204,READYREFRESH BY NESTLE
,OFFICE OF THE MAJORITY LEADER,2015Q4,SUPPLIES AND MATERIALS,12-18,DEER PARK,11/30/15,11/30/15,WATER,176.74,2015,AP,Accounts payable,00833027,DEER PARK
,OFFICE OF THE MAJORITY LEADER,2015Q4,SUPPLIES AND MATERIALS,12-21,CITI PCARD-APL ITUNES.COM/BILL,10/29/15,11/28/15,SOFTWARE LESS THAN $500,19.99,2015,AP,Accounts payable,00833251,CITI PCARD-APL ITUNES.COM/BILL
,OFFICE OF THE MAJORITY LEADER,2015Q4,SUPPLIES AND MATERIALS,12-21,CITI PCARD-CAPITOL HOST (RIDGEWEL,10/29/15,11/28/15,FOOD & BEVERAGE,765.53,2015,AP,Accounts payable,00833251,CITI PCARD-CAPITOL HOST (RIDGEWEL
,OFFICE OF THE MAJORITY LEADER,2015Q4,SUPPLIES AND MATERIALS,12-21,CITI PCARD-CORNER BAKERY,10/29/15,11/28/15,FOOD & BEVERAGE,319.00,2015,AP,Accounts payable,00833251,CITI PCARD-CORNER BAKERY
,OFFICE OF THE MAJORITY LEADER,2015Q4,SUPPLIES AND MATERIALS,12-21,CITI PCARD-D J WALL-ST-JOURNAL,10/29/15,11/28/15,PUBLICATIONS/REFERENCE MAT'L,30.66,2015,AP,Accounts payable,00833251,CITI PCARD-D J WALL-ST-JOURNAL
,OFFICE OF THE MAJORITY LEADER,2015Q4,SUPPLIES AND MATERIALS,12-21,CITI PCARD-FIRST CHOICE - JOE RAG,10/29/15,11/28/15,FOOD & BEVERAGE,532.56,2015,AP,Accounts payable,00833251,CITI PCARD-FIRST CHOICE - JOE RAG
,OFFICE OF THE MAJORITY LEADER,2015Q4,SUPPLIES AND MATERIALS,12-21,CITI PCARD-LA TIMES SUBSCRIPTION,10/29/15,11/28/15,PUBLICATIONS/REFERENCE MAT'L,15.96,2015,AP,Accounts payable,00833251,CITI PCARD-LA TIMES SUBSCRIPTION
,OFFICE OF THE MAJORITY LEADER,2015Q4,SUPPLIES AND MATERIALS,12-21,CITI PCARD-NEW YORK TIMES DIGITAL,10/29/15,11/28/15,PUBLICATIONS/REFERENCE MAT'L,37.01,2015,AP,Accounts payable,00833251,CITI PCARD-NEW YORK TIMES DIGITAL
,OFFICE OF THE MAJORITY LEADER,2015Q4,SUPPLIES AND MATERIALS,12-28,"MIN, JAMES B",11/20/15,11/20/15,FOOD & BEVERAGE,531.47,2015,AP,Accounts payable,E0355511,"MIN, JAMES B"
,OFFICE OF THE MAJORITY LEADER,2015Q4,EQUIPMENT,10-19,CITI PCARD-AMBROSIA SOFTWARE INC,08/29/15,09/28/15,"COMPUTER SOFTW PURCH LESS THAN $10,000",69.00,2015,AP,Accounts payable,00822170,CITI PCARD-AMBROSIA SOFTWARE INC
,OFFICE OF THE MAJORITY LEADER,2015Q4,EQUIPMENT,10-19,CITI PCARD-MSFT MICROSOFTSTORE,08/29/15,09/28/15,"COMPUTER SOFTW PURCH LESS THAN $10,000",449.97,2015,AP,Accounts payable,00822170,CITI PCARD-MSFT MICROSOFTSTORE
,OFFICE OF THE MAJORITY LEADER,2015Q4,EQUIPMENT,12-21,CITI PCARD-ADOBE CREATIVE CLOUD,10/29/15,11/28/15,"COMPUTR SOFTW OPER LS LESS THAN $10,000",634.37,2015,AP,Accounts payable,00833251,CITI PCARD-ADOBE CREATIVE CLOUD
,OFFICE OF THE MINORITY LEADER,2015Q4,PERSONNEL COMPENSATION,"","ADRIANCE,EDWIN A",10/01/15,12/31/15,PRESS ADVISOR,"16,124.99",2015,"","","","ADRIANCE,EDWIN A"
,OFFICE OF THE MINORITY LEADER,2015Q4,PERSONNEL COMPENSATION,"","AGUILAR,JORGE A",10/01/15,12/31/15,DEPUTY PRESS SECRETARY,"22,250.00",2015,"","","","AGUILAR,JORGE A"
,OFFICE OF THE MINORITY LEADER,2015Q4,PERSONNEL COMPENSATION,"","BERRET,EMILY C",10/01/15,12/31/15,SPECIAL ASST TO THE LEADER,"20,125.01",2015,"","","","BERRET,EMILY C"
,OFFICE OF THE MINORITY LEADER,2015Q4,PERSONNEL COMPENSATION,"","BLOOM, MICHAEL T",10/01/15,12/31/15,SENIOR ADVISOR,"28,499.99",2015,"","","","BLOOM, MICHAEL T"
,OFFICE OF THE MINORITY LEADER,2015Q4,PERSONNEL COMPENSATION,"","CAPRON, MARGARET W",10/01/15,12/31/15,SENIOR ADV POLICY & COMM,"36,074.24",2015,"","","","CAPRON, MARGARET W"
,OFFICE OF THE MINORITY LEADER,2015Q4,PERSONNEL COMPENSATION,"","CAYEA,DEVAN W",10/01/15,12/31/15,DEPUTY ASSIST SCHEDULER,"17,124.99",2015,"","","","CAYEA,DEVAN W"
,OFFICE OF THE MINORITY LEADER,2015Q4,PERSONNEL COMPENSATION,"","CHERRY,STEPHANIE",10/01/15,12/31/15,PRESS ADVISOR,"21,462.26",2015,"","","","CHERRY,STEPHANIE"
,OFFICE OF THE MINORITY LEADER,2015Q4,PERSONNEL COMPENSATION,"","CONNELLY,HENRY V",10/01/15,12/31/15,DIRECTOR OF SPEECHWRITING,"23,500.01",2015,"","","","CONNELLY,HENRY V"
,OFFICE OF THE MINORITY LEADER,2015Q4,PERSONNEL COMPENSATION,"","DAY,TAMIKA K",10/01/15,12/31/15,SR STAFF ASST SYS ADMIN,"16,000.01",2015,"","","","DAY,TAMIKA K"
,OFFICE OF THE MINORITY LEADER,2015Q4,PERSONNEL COMPENSATION,"","DEGRAFF, KENNETH B",10/01/15,12/31/15,SENIOR POLICY ADVISOR,"32,249.99",2015,"","","","DEGRAFF, KENNETH B"
,OFFICE OF THE MINORITY LEADER,2015Q4,PERSONNEL COMPENSATION,"","DEVLIN, PATRICK J",10/01/15,12/31/15,COMMUNICATIONS DIRECTOR,"34,750.01",2015,"","","","DEVLIN, PATRICK J"
,OFFICE OF THE MINORITY LEADER,2015Q4,PERSONNEL COMPENSATION,"","DEWHIRST, DIANE",10/01/15,12/31/15,DEPUTY CHIEF OF STAFF,"43,125.00",2015,"","","","DEWHIRST, DIANE"
,OFFICE OF THE MINORITY LEADER,2015Q4,PERSONNEL COMPENSATION,"","DOHERTY,SINEAD G",10/01/15,12/31/15,ADVANCE DEPUTY,"19,750.01",2015,"","","","DOHERTY,SINEAD G"
,OFFICE OF THE MINORITY LEADER,2015Q4,PERSONNEL COMPENSATION,"","EDMONSON, ROBERT D",10/01/15,12/31/15,CHIEF OF STAFF,"17,499.99",2015,"","","","EDMONSON, ROBERT D"
,OFFICE OF THE MINORITY LEADER,2015Q4,PERSONNEL COMPENSATION,"","ELLISON,MATTHEW B",10/01/15,12/31/15,LEGISLATIVE ASSISTANT,"11,000.00",2015,"","","","ELLISON,MATTHEW B"
,OFFICE OF THE MINORITY LEADER,2015Q4,PERSONNEL COMPENSATION,"","ELSHAMI, NADEAM",10/01/15,12/31/15,CHIEF OF STAFF,"43,125.00",2015,"","","","ELSHAMI, NADEAM"
,OFFICE OF THE MINORITY LEADER,2015Q4,PERSONNEL COMPENSATION,"","FISCHER JR, ROBERT V",10/01/15,12/31/15,ASST FLOOR CHIEF,"43,125.00",2015,"","","","FISCHER JR, ROBERT V"
,OFFICE OF THE MINORITY LEADER,2015Q4,PERSONNEL COMPENSATION,"","GEORGE,EVANGELINE M",10/01/15,12/31/15,DEPUTY COMM DIR/PRESS SEC,"34,750.01",2015,"","","","GEORGE,EVANGELINE M"
,OFFICE OF THE MINORITY LEADER,2015Q4,PERSONNEL COMPENSATION,"","GREENER, APRIL L",10/01/15,12/31/15,RESEARCH DIRECTOR,"29,750.00",2015,"","","","GREENER, APRIL L"
,OFFICE OF THE MINORITY LEADER,2015Q4,PERSONNEL COMPENSATION,"","GRIFFIN,TAYLOR T",10/01/15,12/31/15,PRESS ASSISTANT,"12,250.01",2015,"","","","GRIFFIN,TAYLOR T"
,OFFICE OF THE MINORITY LEADER,2015Q4,PERSONNEL COMPENSATION,"","GRIFFIN,TAYLOR T",09/01/15,11/30/15,PRESS ASSISTANT (OVERTIME),"3,792.33",2015,"","","","GRIFFIN,TAYLOR T"
,OFFICE OF THE MINORITY LEADER,2015Q4,PERSONNEL COMPENSATION,"","HAMMILL, ANDREW T",10/01/15,12/31/15,DEPUTY CHIEF OF STAFF,"43,125.00",2015,"","","","HAMMILL, ANDREW T"
,OFFICE OF THE MINORITY LEADER,2015Q4,PERSONNEL COMPENSATION,"","HAYNES JR, WILFRED J",10/01/15,12/31/15,IT DIRECTOR,"28,030.49",2015,"","","","HAYNES JR, WILFRED J"
,OFFICE OF THE MINORITY LEADER,2015Q4,PERSONNEL COMPENSATION,"","KAPLAN,EMMA L",10/01/15,12/31/15,MEMBER SERVICES ASSOCIATE,"16,124.99",2015,"","","","KAPLAN,EMMA L"
,OFFICE OF THE MINORITY LEADER,2015Q4,PERSONNEL COMPENSATION,"","KEATING,ROSE M",10/01/15,12/31/15,ASST FLOOR MANAGER,"34,750.01",2015,"","","","KEATING,ROSE M"
,OFFICE OF THE MINORITY LEADER,2015Q4,PERSONNEL COMPENSATION,"","KEITA,KAMILAH Z",10/01/15,12/31/15,DEPUTY INFOMATION TECH. DIRECT,"25,783.01",2015,"","","","KEITA,KAMILAH Z"
,OFFICE OF THE MINORITY LEADER,2015Q4,PERSONNEL COMPENSATION,"","KUNDANIS, GEORGE",10/01/15,12/31/15,DEPUTY CHIEF OF STAFF,"43,125.00",2015,"","","","KUNDANIS, GEORGE"
,OFFICE OF THE MINORITY LEADER,2015Q4,PERSONNEL COMPENSATION,"","LEE,SERYEUNG",10/01/15,12/31/15,PRESS ASSISTANT,"11,000.00",2015,"","","","LEE,SERYEUNG"
,OFFICE OF THE MINORITY LEADER,2015Q4,PERSONNEL COMPENSATION,"","LEE,SERYEUNG",09/01/15,11/30/15,PRESS ASSISTANT (OVERTIME),"2,931.46",2015,"","","","LEE,SERYEUNG"
,OFFICE OF THE MINORITY LEADER,2015Q4,PERSONNEL COMPENSATION,"","LIZARRAGA, JAIME E",10/01/15,12/31/15,SR ADV & DIR OF MEMBER SVC,"40,605.49",2015,"","","","LIZARRAGA, JAIME E"
,OFFICE OF THE MINORITY LEADER,2015Q4,PERSONNEL COMPENSATION,"","LONG,MICHAEL G",10/01/15,12/31/15,SENIOR ADVISOR,"31,000.01",2015,"","","","LONG,MICHAEL G"
,OFFICE OF THE MINORITY LEADER,2015Q4,PERSONNEL COMPENSATION,"","MANGRUM, PEARL J",10/01/15,12/31/15,FINANCIAL ADMINISTRATOR,"19,875.00",2015,"","","","MANGRUM, PEARL J"
,OFFICE OF THE MINORITY LEADER,2015Q4,PERSONNEL COMPENSATION,"","MCCLELLAND,ETHAN L",10/01/15,12/31/15,DEP DIR OF MEMBER SERVICES,"19,333.34",2015,"","","","MCCLELLAND,ETHAN L"
,OFFICE OF THE MINORITY LEADER,2015Q4,PERSONNEL COMPENSATION,"","MELTZER,RICHARD",10/01/15,12/31/15,POLICY DIRECTOR,"43,125.00",2015,"","","","MELTZER,RICHARD"
,OFFICE OF THE MINORITY LEADER,2015Q4,PERSONNEL COMPENSATION,"","MONGE,KATHERINE S",10/01/15,12/31/15,TAX POLICY ADVISOR,"37,698.99",2015,"","","","MONGE,KATHERINE S"
,OFFICE OF THE MINORITY LEADER,2015Q4,PERSONNEL COMPENSATION,"","PALMER,ASHLI S",10/01/15,12/31/15,POLICY DIRECTOR,"35,599.99",2015,"","","","PALMER,ASHLI S"
,OFFICE OF THE MINORITY LEADER,2015Q4,PERSONNEL COMPENSATION,"","PARKER, WYNDEE R",10/01/15,12/31/15,SENIOR POLICY ADVISOR,"43,125.00",2015,"","","","PARKER, WYNDEE R"
,OFFICE OF THE MINORITY LEADER,2015Q4,PERSONNEL COMPENSATION,"","PFEIFFER,AMY M",10/01/15,12/31/15,SENIOR ADVISOR,"28,499.99",2015,"","","","PFEIFFER,AMY M"
,OFFICE OF THE MINORITY LEADER,2015Q4,PERSONNEL COMPENSATION,"","POWELL,LATRICE S",10/01/15,12/31/15,ASSISTANT CLOAKROOM MANAGER,"31,000.01",2015,"","","","POWELL,LATRICE S"
,OFFICE OF THE MINORITY LEADER,2015Q4,PERSONNEL COMPENSATION,"","PRICE, REVA B",10/01/15,12/31/15,OUTREACH DIRECTOR & ADVISOR,"35,224.26",2015,"","","","PRICE, REVA B"
,OFFICE OF THE MINORITY LEADER,2015Q4,PERSONNEL COMPENSATION,"","PRIMUS, WENDELL E",10/01/15,12/31/15,SENIOR POLICY ADVISOR,"43,125.00",2015,"","","","PRIMUS, WENDELL E"
,OFFICE OF THE MINORITY LEADER,2015Q4,PERSONNEL COMPENSATION,"","RICCIO,ANDREA M",10/01/15,12/31/15,DEP DIR DEM POL & COMM CMTE,"27,250.01",2015,"","","","RICCIO,ANDREA M"
,OFFICE OF THE MINORITY LEADER,2015Q4,PERSONNEL COMPENSATION,"","ROBINSON,MALAIKA",10/01/15,12/31/15,DEP DIR OF SPEECHWRITING,"19,750.01",2015,"","","","ROBINSON,MALAIKA"
,OFFICE OF THE MINORITY LEADER,2015Q4,PERSONNEL COMPENSATION,"","ROCHELLE,COURTNEY E",10/01/15,12/31/15,DISTRICT SCHEDULER/EXEC ASSIST,"5,000.01",2015,"","","","ROCHELLE,COURTNEY E"
,OFFICE OF THE MINORITY LEADER,2015Q4,PERSONNEL COMPENSATION,"","SKILES,KATHLEEN J",10/01/15,12/31/15,DIGITAL DIR.& SENIOR ADVISOR,"32,249.99",2015,"","","","SKILES,KATHLEEN J"
,OFFICE OF THE MINORITY LEADER,2015Q4,PERSONNEL COMPENSATION,"","SLATER,SAMANTHA A",10/01/15,12/31/15,EXEC DIR DEM POLICY COMM CMTE,"32,249.99",2015,"","","","SLATER,SAMANTHA A"
,OFFICE OF THE MINORITY LEADER,2015Q4,PERSONNEL COMPENSATION,"","SMITH,KELSEY L",10/01/15,12/31/15,DIR. OF SCHEDULING & ADVANCE,"26,000.00",2015,"","","","SMITH,KELSEY L"
,OFFICE OF THE MINORITY LEADER,2015Q4,PERSONNEL COMPENSATION,"","STERN, KEITH L",10/13/15,12/31/15,DIRECTOR OF FLOOR OPERATIONS,"35,266.66",2015,"","","","STERN, KEITH L"
,OFFICE OF THE MINORITY LEADER,2015Q4,PERSONNEL COMPENSATION,"","SURGEON,BINA G",10/01/15,12/31/15,SPECIAL ASST TO THE LEADER,"29,000.00",2015,"","","","SURGEON,BINA G"
,OFFICE OF THE MINORITY LEADER,2015Q4,PERSONNEL COMPENSATION,"","TECKLENBURG, MICHAEL H",10/01/15,12/31/15,COUNSEL,"35,599.99",2015,"","","","TECKLENBURG, MICHAEL H"
,OFFICE OF THE MINORITY LEADER,2015Q4,PERSONNEL COMPENSATION,"","WATKINS, YELBERTON R",10/01/15,12/31/15,CHIEF OF STAFF,"41,450.00",2015,"","","","WATKINS, YELBERTON R"
,OFFICE OF THE MINORITY LEADER,2015Q4,PERSONNEL COMPENSATION,"","WEST,JULIUS L",10/01/15,12/31/15,"ADVISER,MEMBER SERVICES","21,500.00",2015,"","","","WEST,JULIUS L"
,OFFICE OF THE MINORITY LEADER,2015Q4,PERSONNEL COMPENSATION,"","WILLIAMS NAVARRO, AMY K",10/01/15,12/31/15,ASST TO THE EXECUTIVE OFFICE,"11,750.00",2015,"","","","WILLIAMS NAVARRO, AMY K"
,OFFICE OF THE MINORITY LEADER,2015Q4,PERSONNEL COMPENSATION,"","WILLIAMS NAVARRO, AMY K",09/01/15,11/30/15,ASST TO THE EXECUTIVE OFFICE (OVERTIME),"3,926.64",2015,"","","","WILLIAMS NAVARRO, AMY K"
,OFFICE OF THE MINORITY LEADER,2015Q4,PERSONNEL COMPENSATION,"","WOLTERS, KATE",10/01/15,12/31/15,DIRECTOR OF PROTOCOL,"37,896.50",2015,"","","","WOLTERS, KATE"
,OFFICE OF THE MINORITY LEADER,2015Q4,TRAVEL,10-06,CITIBANK GOV CARD SERVICE,08/27/15,08/30/15,TRAVEL SUBSISTENCE,"1,171.42",2015,AP,Accounts payable,E0327107,CITIBANK GOV CARD SERVICE
,OFFICE OF THE MINORITY LEADER,2015Q4,TRAVEL,10-06,CITIBANK GOV CARD SERVICE,08/30/15,10/06/15,TRAVEL SUBSISTENCE,"1,354.30",2015,AP,Accounts payable,E0327108,CITIBANK GOV CARD SERVICE
,OFFICE OF THE MINORITY LEADER,2015Q4,TRAVEL,10-06,"GEORGE, EVANGELINE M",01/15/15,09/15/15,TRAVEL SUBSISTENCE,805.78,2015,AP,Accounts payable,E0327158,"GEORGE, EVANGELINE M"
,OFFICE OF THE MINORITY LEADER,2015Q4,TRAVEL,10-06,"SMITH, KELSEY L",09/17/15,09/29/15,TAXI/PARKING/TOLLS,47.36,2015,AP,Accounts payable,E0327166,"SMITH, KELSEY L"
,OFFICE OF THE MINORITY LEADER,2015Q4,TRAVEL,10-06,CITIBANK GOV CARD SERVICE,08/10/15,08/12/15,TRAVEL SUBSISTENCE,"1,691.37",2015,AP,Accounts payable,E0327167,CITIBANK GOV CARD SERVICE
,OFFICE OF THE MINORITY LEADER,2015Q4,TRAVEL,10-06,"KAPLAN, EMMA L",09/17/15,09/17/15,TAXI/PARKING/TOLLS,13.90,2015,AP,Accounts payable,E0327175,"KAPLAN, EMMA L"
,OFFICE OF THE MINORITY LEADER,2015Q4,TRAVEL,10-19,CITIBANK GOV CARD SERVICE,08/29/15,08/29/15,MEALS,30.68,2015,AP,Accounts payable,E0331025,CITIBANK GOV CARD SERVICE
,OFFICE OF THE MINORITY LEADER,2015Q4,TRAVEL,10-21,"BERRET, EMILY C",10/04/15,10/05/15,TRAVEL SUBSISTENCE,94.33,2015,AP,Accounts payable,E0332106,"BERRET, EMILY C"
,OFFICE OF THE MINORITY LEADER,2015Q4,TRAVEL,10-21,"MELTZER, RICHARD",09/29/15,10/08/15,TAXI/PARKING/TOLLS,143.76,2015,AP,Accounts payable,E0332114,"MELTZER, RICHARD"
,OFFICE OF THE MINORITY LEADER,2015Q4,TRAVEL,10-21,"HAMMILL, ANDREW T",10/03/15,10/06/15,TRAVEL SUBSISTENCE,"1,756.67",2015,AP,Accounts payable,E0332115,"HAMMILL, ANDREW T"
,OFFICE OF THE MINORITY LEADER,2015Q4,TRAVEL,10-28,"AGUILAR, JORGE A",10/13/15,10/21/15,TRAVEL SUBSISTENCE,"1,593.14",2015,AP,Accounts payable,E0334621,"AGUILAR, JORGE A"
,OFFICE OF THE MINORITY LEADER,2015Q4,TRAVEL,10-28,"LIZARRAGA, JAIME E",10/08/15,10/08/15,TAXI/PARKING/TOLLS,15.00,2015,AP,Accounts payable,E0334623,"LIZARRAGA, JAIME E"
,OFFICE OF THE MINORITY LEADER,2015Q4,TRAVEL,10-28,"LIZARRAGA, JAIME E",10/12/15,10/15/15,TRAVEL SUBSISTENCE,"1,630.13",2015,AP,Accounts payable,E0334623,"LIZARRAGA, JAIME E"
,OFFICE OF THE MINORITY LEADER,2015Q4,TRAVEL,10-28,"ROCHELLE,COURTNEY",08/19/15,08/19/15,TAXI/PARKING/TOLLS,47.35,2015,AP,Accounts payable,E0334627,"ROCHELLE,COURTNEY"
,OFFICE OF THE MINORITY LEADER,2015Q4,TRAVEL,10-28,"MELTZER, RICHARD",10/14/15,10/19/15,TAXI/PARKING/TOLLS,35.82,2015,AP,Accounts payable,E0334628,"MELTZER, RICHARD"
,OFFICE OF THE MINORITY LEADER,2015Q4,TRAVEL,11-05,"SMITH, KELSEY L",10/06/15,10/06/15,TAXI/PARKING/TOLLS,20.00,2015,AP,Accounts payable,E0337527,"SMITH, KELSEY L"
,OFFICE OF THE MINORITY LEADER,2015Q4,TRAVEL,11-05,"SMITH, KELSEY L",10/18/15,10/31/15,TRAVEL SUBSISTENCE,14.27,2015,AP,Accounts payable,E0337527,"SMITH, KELSEY L"
,OFFICE OF THE MINORITY LEADER,2015Q4,TRAVEL,11-05,CITIBANK GOV CARD SERVICE,10/15/15,10/21/15,TRAVEL SUBSISTENCE,"1,734.12",2015,AP,Accounts payable,E0337531,CITIBANK GOV CARD SERVICE
,OFFICE OF THE MINORITY LEADER,2015Q4,TRAVEL,11-05,CITIBANK GOV CARD SERVICE,10/13/15,10/21/15,TRAVEL SUBSISTENCE,"4,583.55",2015,AP,Accounts payable,E0337532,CITIBANK GOV CARD SERVICE
,OFFICE OF THE MINORITY LEADER,2015Q4,TRAVEL,11-05,CITIBANK GOV CARD SERVICE,10/04/15,10/06/15,TRAVEL SUBSISTENCE,"1,551.90",2015,AP,Accounts payable,E0337546,CITIBANK GOV CARD SERVICE
,OFFICE OF THE MINORITY LEADER,2015Q4,TRAVEL,11-05,"KAPLAN, EMMA L",10/26/15,10/26/15,TAXI/PARKING/TOLLS,8.48,2015,AP,Accounts payable,E0337547,"KAPLAN, EMMA L"
,OFFICE OF THE MINORITY LEADER,2015Q4,TRAVEL,11-05,"SURGEON,BINA G",09/23/15,09/24/15,TAXI/PARKING/TOLLS,33.41,2015,AP,Accounts payable,E0337548,"SURGEON,BINA G"
,OFFICE OF THE MINORITY LEADER,2015Q4,TRAVEL,11-05,"SURGEON,BINA G",10/17/15,10/20/15,TRAVEL SUBSISTENCE,66.51,2015,AP,Accounts payable,E0337548,"SURGEON,BINA G"
,OFFICE OF THE MINORITY LEADER,2015Q4,TRAVEL,11-05,CITIBANK GOV CARD SERVICE,10/13/15,11/16/15,COMMERCIAL TRANSPORTATION,"2,382.90",2015,AP,Accounts payable,E0337549,CITIBANK GOV CARD SERVICE
,OFFICE OF THE MINORITY LEADER,2015Q4,TRAVEL,11-16,CITIBANK GOV CARD SERVICE,09/14/15,09/15/15,TRAVEL SUBSISTENCE,"1,199.69",2015,AP,Accounts payable,E0340071,CITIBANK GOV CARD SERVICE
,OFFICE OF THE MINORITY LEADER,2015Q4,TRAVEL,11-16,CITIBANK GOV CARD SERVICE,09/28/15,10/15/15,COMMERCIAL TRANSPORTATION,"1,209.80",2015,AP,Accounts payable,E0340072,CITIBANK GOV CARD SERVICE
,OFFICE OF THE MINORITY LEADER,2015Q4,TRAVEL,11-20,"KAPLAN, EMMA L",11/04/15,11/04/15,TAXI/PARKING/TOLLS,7.34,2015,AP,Accounts payable,E0343207,"KAPLAN, EMMA L"
,OFFICE OF THE MINORITY LEADER,2015Q4,TRAVEL,11-20,"CAYEA, DEVAN W",11/18/15,11/18/15,TAXI/PARKING/TOLLS,11.43,2015,AP,Accounts payable,E0343310,"CAYEA, DEVAN W"
,OFFICE OF THE MINORITY LEADER,2015Q4,TRAVEL,11-25,CITIBANK GOV CARD SERVICE,10/15/15,10/21/15,TRAVEL SUBSISTENCE,"3,157.59",2015,AP,Accounts payable,E0344289,CITIBANK GOV CARD SERVICE
,OFFICE OF THE MINORITY LEADER,2015Q4,TRAVEL,12-08,"MCCLELLAND, ETHAN L",11/04/15,11/18/15,TAXI/PARKING/TOLLS,34.45,2015,AP,Accounts payable,E0347874,"MCCLELLAND, ETHAN L"
,OFFICE OF THE MINORITY LEADER,2015Q4,TRAVEL,12-08,CITIBANK GOV CARD SERVICE,10/16/15,10/17/15,TAXI/PARKING/TOLLS,12.15,2015,AP,Accounts payable,E0347892,CITIBANK GOV CARD SERVICE
,OFFICE OF THE MINORITY LEADER,2015Q4,TRAVEL,12-08,CITIBANK GOV CARD SERVICE,11/15/15,11/15/15,TAXI/PARKING/TOLLS,16.84,2015,AP,Accounts payable,E0348524,CITIBANK GOV CARD SERVICE
,OFFICE OF THE MINORITY LEADER,2015Q4,TRAVEL,12-15,"SMITH, KELSEY L",11/14/15,12/06/15,TAXI/PARKING/TOLLS,89.00,2015,AP,Accounts payable,E0351092,"SMITH, KELSEY L"
,OFFICE OF THE MINORITY LEADER,2015Q4,TRAVEL,12-15,CITIBANK GOV CARD SERVICE,10/28/15,11/16/15,TRAVEL SUBSISTENCE,171.11,2015,AP,Accounts payable,E0351093,CITIBANK GOV CARD SERVICE
,OFFICE OF THE MINORITY LEADER,2015Q4,TRAVEL,12-28,CITIBANK GOV CARD SERVICE,11/14/15,11/23/15,TRAVEL SUBSISTENCE,"1,351.78",2015,AP,Accounts payable,E0355632,CITIBANK GOV CARD SERVICE
,OFFICE OF THE MINORITY LEADER,2015Q4,"RENT, COMMUNICATION, UTILITIES",10-06,FEDEX,09/02/15,09/02/15,POSTAGE / COURIER / BOX RENTAL,75.50,2015,AP,Accounts payable,E0327155,FEDEX
,OFFICE OF THE MINORITY LEADER,2015Q4,"RENT, COMMUNICATION, UTILITIES",10-19,CITI PCARD-TIV TIVO SERVICE,08/29/15,09/28/15,RECORDING (OUTSIDE),48.42,2015,AP,Accounts payable,00822170,CITI PCARD-TIV TIVO SERVICE
,OFFICE OF THE MINORITY LEADER,2015Q4,"RENT, COMMUNICATION, UTILITIES",10-27,FEDEX,10/01/15,10/01/15,POSTAGE / COURIER / BOX RENTAL,5.13,2015,AP,Accounts payable,E0334624,FEDEX
,OFFICE OF THE MINORITY LEADER,2015Q4,"RENT, COMMUNICATION, UTILITIES",11-03,FEDERAL EXPRESS CORP,09/02/15,09/02/15,POSTAGE / COURIER / BOX RENTAL,-70.18,2015,AR,Accounts receivable,AC-11345,FEDERAL EXPRESS CORP
,OFFICE OF THE MINORITY LEADER,2015Q4,"RENT, COMMUNICATION, UTILITIES",11-05,FEDEX,10/13/15,10/13/15,POSTAGE / COURIER / BOX RENTAL,6.03,2015,AP,Accounts payable,E0337542,FEDEX
,OFFICE OF THE MINORITY LEADER,2015Q4,"RENT, COMMUNICATION, UTILITIES",11-20,CITI PCARD-TIV TIVO SERVICE,10/01/15,10/28/15,RECORDING (OUTSIDE),48.42,2015,AP,Accounts payable,00827800,CITI PCARD-TIV TIVO SERVICE
,OFFICE OF THE MINORITY LEADER,2015Q4,"RENT, COMMUNICATION, UTILITIES",11-20,FEDEX,10/22/15,10/22/15,POSTAGE / COURIER / BOX RENTAL,4.49,2015,AP,Accounts payable,E0343213,FEDEX
,OFFICE OF THE MINORITY LEADER,2015Q4,"RENT, COMMUNICATION, UTILITIES",12-15,FEDEX FREIGHT INC,10/06/15,10/06/15,POSTAGE / COURIER / BOX RENTAL,25.50,2015,AP,Accounts payable,E0351082,FEDEX FREIGHT INC
,OFFICE OF THE MINORITY LEADER,2015Q4,"RENT, COMMUNICATION, UTILITIES",12-15,FEDEX,11/19/15,11/19/15,POSTAGE / COURIER / BOX RENTAL,12.99,2015,AP,Accounts payable,E0351085,FEDEX
,OFFICE OF THE MINORITY LEADER,2015Q4,"RENT, COMMUNICATION, UTILITIES",12-15,FEDEX,11/19/15,11/19/15,POSTAGE / COURIER / BOX RENTAL,3.99,2015,AP,Accounts payable,E0351087,FEDEX
,OFFICE OF THE MINORITY LEADER,2015Q4,"RENT, COMMUNICATION, UTILITIES",12-21,CITI PCARD-TIV TIVO SERVICE,10/29/15,11/28/15,RECORDING (OUTSIDE),48.42,2015,AP,Accounts payable,00833251,CITI PCARD-TIV TIVO SERVICE
,OFFICE OF THE MINORITY LEADER,2015Q4,PRINTING AND REPRODUCTION,10-28,"",10/01/15,10/31/15,PHOTOGRAPHIC (TRANSFER),384.30,2015,GL,General ledger,PIX0053371,""
,OFFICE OF THE MINORITY LEADER,2015Q4,PRINTING AND REPRODUCTION,11-24,"",11/01/15,11/30/15,PHOTOGRAPHIC (TRANSFER),146.30,2015,GL,General ledger,PIX0054052,""
,OFFICE OF THE MINORITY LEADER,2015Q4,PRINTING AND REPRODUCTION,12-23,"",12/01/15,12/31/15,PHOTOGRAPHIC (TRANSFER),551.50,2015,GL,General ledger,PIX0054800,""
,OFFICE OF THE MINORITY LEADER,2015Q4,OTHER SERVICES,10-02,BERNARD RAIMO,09/01/15,09/30/15,CONSULTANT CONTRACT SERVICE,"7,628.00",2015,AP,Accounts payable,E0325845,BERNARD RAIMO
,OFFICE OF THE MINORITY LEADER,2015Q4,OTHER SERVICES,10-06,NEAL R GROSS & COMPANY INC,09/09/15,09/09/15,STENOGRAPHIC REPORTING,"1,500.00",2015,AP,Accounts payable,E0327156,NEAL R GROSS & COMPANY INC
,OFFICE OF THE MINORITY LEADER,2015Q4,OTHER SERVICES,11-05,BERNARD RAIMO,10/01/15,10/31/15,CONSULTANT CONTRACT SERVICE,"7,628.00",2015,AP,Accounts payable,E0337489,BERNARD RAIMO
,OFFICE OF THE MINORITY LEADER,2015Q4,OTHER SERVICES,12-29,NEAL R GROSS & COMPANY INC,11/04/15,11/04/15,STENOGRAPHIC REPORTING,"1,500.00",2015,AP,Accounts payable,E0355960,NEAL R GROSS & COMPANY INC
,OFFICE OF THE MINORITY LEADER,2015Q4,OTHER SERVICES,12-29,BERNARD RAIMO,12/01/15,12/31/15,CONSULTANT CONTRACT SERVICE,"7,628.00",2015,AP,Accounts payable,E0355962,BERNARD RAIMO
,OFFICE OF THE MINORITY LEADER,2015Q4,OTHER SERVICES,12-31,NEAL R GROSS & COMPANY INC,12/02/15,12/02/15,STENOGRAPHIC REPORTING,"1,500.00",2015,AP,Accounts payable,00833575,NEAL R GROSS & COMPANY INC
,OFFICE OF THE MINORITY LEADER,2015Q4,SUPPLIES AND MATERIALS,10-06,CAPITOL HOST,09/23/15,09/23/15,FOOD & BEVERAGE,177.38,2015,AP,Accounts payable,E0327157,CAPITOL HOST
,OFFICE OF THE MINORITY LEADER,2015Q4,SUPPLIES AND MATERIALS,10-19,CITI PCARD-COSTCO.COM ONLINE,08/29/15,09/28/15,FOOD & BEVERAGE,341.53,2015,AP,Accounts payable,00822170,CITI PCARD-COSTCO.COM ONLINE
,OFFICE OF THE MINORITY LEADER,2015Q4,SUPPLIES AND MATERIALS,10-19,CITI PCARD-CVS/PHARMACY,08/29/15,09/28/15,FOOD & BEVERAGE,48.22,2015,AP,Accounts payable,00822170,CITI PCARD-CVS/PHARMACY
,OFFICE OF THE MINORITY LEADER,2015Q4,SUPPLIES AND MATERIALS,10-19,CITI PCARD-FIREHOOK,08/29/15,09/28/15,FOOD & BEVERAGE,70.00,2015,AP,Accounts payable,00822170,CITI PCARD-FIREHOOK
,OFFICE OF THE MINORITY LEADER,2015Q4,SUPPLIES AND MATERIALS,10-19,CITI PCARD-HARRIS TEETER,08/29/15,09/28/15,FOOD & BEVERAGE,78.07,2015,AP,Accounts payable,00822170,CITI PCARD-HARRIS TEETER
,OFFICE OF THE MINORITY LEADER,2015Q4,SUPPLIES AND MATERIALS,10-19,CITI PCARD-TARGET,08/29/15,09/28/15,FOOD & BEVERAGE,"1,201.09",2015,AP,Accounts payable,00822170,CITI PCARD-TARGET
,OFFICE OF THE MINORITY LEADER,2015Q4,SUPPLIES AND MATERIALS,10-19,CITI PCARD-WHOLEFDS GWU,08/29/15,09/28/15,FOOD & BEVERAGE,319.34,2015,AP,Accounts payable,00822170,CITI PCARD-WHOLEFDS GWU
,OFFICE OF THE MINORITY LEADER,2015Q4,SUPPLIES AND MATERIALS,10-19,CITI PCARD-WHOLEFDS PST,08/29/15,09/28/15,FOOD & BEVERAGE,987.57,2015,AP,Accounts payable,00822170,CITI PCARD-WHOLEFDS PST
,OFFICE OF THE MINORITY LEADER,2015Q4,SUPPLIES AND MATERIALS,10-20,CAPITOL HOST,09/30/15,09/30/15,FOOD & BEVERAGE,36.63,2015,AP,Accounts payable,E0332107,CAPITOL HOST
,OFFICE OF THE MINORITY LEADER,2015Q4,SUPPLIES AND MATERIALS,10-20,CAPITOL HOST,10/07/15,10/07/15,FOOD & BEVERAGE,36.36,2015,AP,Accounts payable,E0332108,CAPITOL HOST
,OFFICE OF THE MINORITY LEADER,2015Q4,SUPPLIES AND MATERIALS,10-20,CAPITOL HOST,10/08/15,10/08/15,FOOD & BEVERAGE,36.63,2015,AP,Accounts payable,E0332109,CAPITOL HOST
,OFFICE OF THE MINORITY LEADER,2015Q4,SUPPLIES AND MATERIALS,10-28,CRYSTAL SPRINGS,09/23/15,09/23/15,FOOD & BEVERAGE,278.18,2015,AP,Accounts payable,E0334626,CRYSTAL SPRINGS
,OFFICE OF THE MINORITY LEADER,2015Q4,SUPPLIES AND MATERIALS,10-28,"ROCHELLE,COURTNEY",10/14/15,10/14/15,FOOD & BEVERAGE,30.17,2015,AP,Accounts payable,E0334627,"ROCHELLE,COURTNEY"
,OFFICE OF THE MINORITY LEADER,2015Q4,SUPPLIES AND MATERIALS,10-28,CRYSTAL SPRINGS,08/25/15,08/25/15,FOOD & BEVERAGE,296.70,2015,AP,Accounts payable,E0334629,CRYSTAL SPRINGS
,OFFICE OF THE MINORITY LEADER,2015Q4,SUPPLIES AND MATERIALS,11-05,CAPITOL HOST,10/28/15,10/28/15,FOOD & BEVERAGE,36.63,2015,AP,Accounts payable,E0337543,CAPITOL HOST
,OFFICE OF THE MINORITY LEADER,2015Q4,SUPPLIES AND MATERIALS,11-05,CAPITOL HOST,10/28/15,10/28/15,FOOD & BEVERAGE,36.63,2015,AP,Accounts payable,E0337544,CAPITOL HOST
,OFFICE OF THE MINORITY LEADER,2015Q4,SUPPLIES AND MATERIALS,11-05,CAPITOL HOST,10/27/15,10/27/15,FOOD & BEVERAGE,33.75,2015,AP,Accounts payable,E0337545,CAPITOL HOST
,OFFICE OF THE MINORITY LEADER,2015Q4,SUPPLIES AND MATERIALS,11-19,OCCASIONS CATERERS,10/08/15,10/08/15,FOOD & BEVERAGE,"2,232.00",2015,AP,Accounts payable,E0343215,OCCASIONS CATERERS
,OFFICE OF THE MINORITY LEADER,2015Q4,SUPPLIES AND MATERIALS,11-19,OCCASIONS CATERERS,10/21/15,10/21/15,FOOD & BEVERAGE,"8,750.00",2015,AP,Accounts payable,E0343216,OCCASIONS CATERERS
,OFFICE OF THE MINORITY LEADER,2015Q4,SUPPLIES AND MATERIALS,11-20,CITI PCARD-CVS/PHARMACY,10/01/15,10/28/15,FOOD & BEVERAGE,17.70,2015,AP,Accounts payable,00827800,CITI PCARD-CVS/PHARMACY
,OFFICE OF THE MINORITY LEADER,2015Q4,SUPPLIES AND MATERIALS,11-20,CITI PCARD-DUNKIN,09/29/15,09/30/15,FOOD & BEVERAGE,37.65,2015,AP,Accounts payable,00827800,CITI PCARD-DUNKIN
,OFFICE OF THE MINORITY LEADER,2015Q4,SUPPLIES AND MATERIALS,11-20,CITI PCARD-DUNKIN,10/01/15,10/28/15,FOOD & BEVERAGE,19.87,2015,AP,Accounts payable,00827800,CITI PCARD-DUNKIN
,OFFICE OF THE MINORITY LEADER,2015Q4,SUPPLIES AND MATERIALS,11-20,CITI PCARD-HARRIS TEETER,10/01/15,10/28/15,FOOD & BEVERAGE,69.19,2015,AP,Accounts payable,00827800,CITI PCARD-HARRIS TEETER
,OFFICE OF THE MINORITY LEADER,2015Q4,SUPPLIES AND MATERIALS,11-20,CITI PCARD-PRET A MANGER,10/01/15,10/28/15,FOOD & BEVERAGE,98.88,2015,AP,Accounts payable,00827800,CITI PCARD-PRET A MANGER
,OFFICE OF THE MINORITY LEADER,2015Q4,SUPPLIES AND MATERIALS,11-20,CITI PCARD-WHOLEFDS GWU,09/29/15,09/30/15,FOOD & BEVERAGE,64.94,2015,AP,Accounts payable,00827800,CITI PCARD-WHOLEFDS GWU
,OFFICE OF THE MINORITY LEADER,2015Q4,SUPPLIES AND MATERIALS,11-20,CITI PCARD-WHOLEFDS GWU,10/01/15,10/28/15,FOOD & BEVERAGE,118.02,2015,AP,Accounts payable,00827800,CITI PCARD-WHOLEFDS GWU
,OFFICE OF THE MINORITY LEADER,2015Q4,SUPPLIES AND MATERIALS,11-23,TOULIES EN FLEUR,09/08/15,09/28/15,HABITATION EXPENSE,750.00,2015,AP,Accounts payable,E0343219,TOULIES EN FLEUR
,OFFICE OF THE MINORITY LEADER,2015Q4,SUPPLIES AND MATERIALS,11-23,TOULIES EN FLEUR,10/06/15,10/27/15,HABITATION EXPENSE,"1,020.00",2015,AP,Accounts payable,E0343221,TOULIES EN FLEUR
,OFFICE OF THE MINORITY LEADER,2015Q4,SUPPLIES AND MATERIALS,11-23,CRYSTAL SPRINGS,11/01/15,11/30/15,FOOD & BEVERAGE,302.81,2015,AP,Accounts payable,E0344182,CRYSTAL SPRINGS
,OFFICE OF THE MINORITY LEADER,2015Q4,SUPPLIES AND MATERIALS,12-15,TOULIES EN FLEUR,12/07/15,12/15/15,HABITATION EXPENSE,500.00,2015,AP,Accounts payable,E0351089,TOULIES EN FLEUR
,OFFICE OF THE MINORITY LEADER,2015Q4,SUPPLIES AND MATERIALS,12-15,TOULIES EN FLEUR,11/02/15,11/30/15,HABITATION EXPENSE,750.00,2015,AP,Accounts payable,E0351117,TOULIES EN FLEUR
,OFFICE OF THE MINORITY LEADER,2015Q4,SUPPLIES AND MATERIALS,12-21,"CITI PCARD-BLURB, INC",10/29/15,11/28/15,PUBLICATIONS/REFERENCE MAT'L,152.60,2015,AP,Accounts payable,00833251,"CITI PCARD-BLURB, INC"
,OFFICE OF THE MINORITY LEADER,2015Q4,SUPPLIES AND MATERIALS,12-21,CITI PCARD-CAP MARKET CAF,10/29/15,11/28/15,FOOD & BEVERAGE,30.45,2015,AP,Accounts payable,00833251,CITI PCARD-CAP MARKET CAF
,OFFICE OF THE MINORITY LEADER,2015Q4,SUPPLIES AND MATERIALS,12-21,CITI PCARD-CARMINE'S,10/29/15,11/28/15,FOOD & BEVERAGE,355.45,2015,AP,Accounts payable,00833251,CITI PCARD-CARMINE'S
,OFFICE OF THE MINORITY LEADER,2015Q4,SUPPLIES AND MATERIALS,12-21,CITI PCARD-COSTCO.COM ONLINE,10/29/15,11/28/15,FOOD & BEVERAGE,298.96,2015,AP,Accounts payable,00833251,CITI PCARD-COSTCO.COM ONLINE
,OFFICE OF THE MINORITY LEADER,2015Q4,SUPPLIES AND MATERIALS,12-21,CITI PCARD-CVS/PHARMACY,10/29/15,11/28/15,FOOD & BEVERAGE,101.76,2015,AP,Accounts payable,00833251,CITI PCARD-CVS/PHARMACY
,OFFICE OF THE MINORITY LEADER,2015Q4,SUPPLIES AND MATERIALS,12-21,CITI PCARD-DUNKIN,10/29/15,11/28/15,FOOD & BEVERAGE,97.14,2015,AP,Accounts payable,00833251,CITI PCARD-DUNKIN
,OFFICE OF THE MINORITY LEADER,2015Q4,SUPPLIES AND MATERIALS,12-21,"CITI PCARD-EZ TRAVEL SOLUTIONS, L",10/29/15,11/28/15,PUBLICATIONS/REFERENCE MAT'L,85.66,2015,AP,Accounts payable,00833251,"CITI PCARD-EZ TRAVEL SOLUTIONS, L"
,OFFICE OF THE MINORITY LEADER,2015Q4,SUPPLIES AND MATERIALS,12-21,CITI PCARD-FIREHOOK - CAPITOL HIL,10/29/15,11/28/15,FOOD & BEVERAGE,138.54,2015,AP,Accounts payable,00833251,CITI PCARD-FIREHOOK - CAPITOL HIL
,OFFICE OF THE MINORITY LEADER,2015Q4,SUPPLIES AND MATERIALS,12-21,CITI PCARD-TARGET,10/29/15,11/28/15,FOOD & BEVERAGE,314.07,2015,AP,Accounts payable,00833251,CITI PCARD-TARGET
,OFFICE OF THE MINORITY LEADER,2015Q4,SUPPLIES AND MATERIALS,12-21,CITI PCARD-WHOLEFDS GWU,10/29/15,11/28/15,FOOD & BEVERAGE,67.21,2015,AP,Accounts payable,00833251,CITI PCARD-WHOLEFDS GWU
,OFFICE OF THE MINORITY LEADER,2015Q4,SUPPLIES AND MATERIALS,12-21,NATIONAL NEWS AGENCY INC,01/01/16,12/31/16,PUBLICATIONS/REFERENCE MAT'L,"2,427.30",2015,AP,Accounts payable,E0347872,NATIONAL NEWS AGENCY INC
,OFFICE OF THE MINORITY LEADER,2015Q4,SUPPLIES AND MATERIALS,12-23,SOUTHWEST DISTRIBUTION INC,01/01/16,03/31/16,PUBLICATIONS/REFERENCE MAT'L,"3,713.45",2015,AP,Accounts payable,E0347871,SOUTHWEST DISTRIBUTION INC
,OFFICE OF THE MINORITY LEADER,2015Q4,SUPPLIES AND MATERIALS,12-23,CRYSTAL SPRINGS,12/09/15,12/09/15,FOOD & BEVERAGE,129.31,2015,AP,Accounts payable,E0355644,CRYSTAL SPRINGS
,OFFICE OF THE MINORITY LEADER,2015Q4,SUPPLIES AND MATERIALS,12-28,LEADERSHIP DIRECTORIES INC,03/01/16,03/01/17,PUBLICATIONS/REFERENCE MAT'L,"1,112.00",2015,AP,Accounts payable,E0355641,LEADERSHIP DIRECTORIES INC
,OFFICE OF THE MINORITY LEADER,2015Q4,SUPPLIES AND MATERIALS,12-28,CQ ROLL CALL INC,01/02/16,01/01/17,PUBLICATIONS/REFERENCE MAT'L,"53,900.00",2015,AP,Accounts payable,E0355642,CQ ROLL CALL INC
,OFFICE OF THE MINORITY LEADER,2015Q4,SUPPLIES AND MATERIALS,12-29,REED ELSEVIER INC,12/31/15,12/31/16,PUBLICATIONS/REFERENCE MAT'L,"20,820.00",2015,AP,Accounts payable,E0351091,REED ELSEVIER INC
,OFFICE OF THE MINORITY LEADER,2015Q4,OTHER SERVICES,12-10,BERNARD RAIMO,11/01/14,11/30/14,CONSULTANT CONTRACT SERVICE,"7,628.00",2014,AP,Accounts payable,E0346926,BERNARD RAIMO
,OFFICE OF THE MINORITY LEADER,2015Q4,SUPPLIES AND MATERIALS,10-06,"GEORGE, EVANGELINE M",01/02/15,01/02/15,PUBLICATIONS/REFERENCE MAT'L,25.34,2014,AP,Accounts payable,E0327168,"GEORGE, EVANGELINE M"
,OFFICE OF THE MAJORITY WHIP,2015Q4,PERSONNEL COMPENSATION,"","ACORNLEY, MARK A",10/01/15,12/31/15,FINANCIAL ADMINISTRATOR,"3,750.00",2015,"","","","ACORNLEY, MARK A"
,OFFICE OF THE MAJORITY WHIP,2015Q4,PERSONNEL COMPENSATION,"","BECKER,MEGAN E",10/01/15,12/31/15,SCHEDULE COORDINATOR,"11,250.00",2015,"","","","BECKER,MEGAN E"
,OFFICE OF THE MAJORITY WHIP,2015Q4,PERSONNEL COMPENSATION,"","BLACK,WAELSTON T",10/01/15,12/31/15,SPECIAL ASSISTANT,"7,500.00",2015,"","","","BLACK,WAELSTON T"
,OFFICE OF THE MAJORITY WHIP,2015Q4,PERSONNEL COMPENSATION,"","BOND,CHRISTOPHER J",10/01/15,12/31/15,COMMUNICATIONS DIRECTOR,"37,485.17",2015,"","","","BOND,CHRISTOPHER J"
,OFFICE OF THE MAJORITY WHIP,2015Q4,PERSONNEL COMPENSATION,"","BRACE,CONNER W",10/01/15,12/31/15,STAFF ASSISTANT,"7,500.00",2015,"","","","BRACE,CONNER W"
,OFFICE OF THE MAJORITY WHIP,2015Q4,PERSONNEL COMPENSATION,"","BRAVO, MATTHEW",10/01/15,12/31/15,DEPUTY DIRECTOR OF FLOOR OPERA,"23,750.01",2015,"","","","BRAVO, MATTHEW"
,OFFICE OF THE MAJORITY WHIP,2015Q4,PERSONNEL COMPENSATION,"","CAVAZOS,ANDREW J",10/01/15,12/31/15,ASST TO THE CHIEF OF STAFF,"11,250.00",2015,"","","","CAVAZOS,ANDREW J"
,OFFICE OF THE MAJORITY WHIP,2015Q4,PERSONNEL COMPENSATION,"","HAMILTON,PARKER",10/01/15,12/31/15,COS TO THE CHIEF DEP WHIP,"30,000.00",2015,"","","","HAMILTON,PARKER"
,OFFICE OF THE MAJORITY WHIP,2015Q4,PERSONNEL COMPENSATION,"","HODGSON,CHRISTOPHER M",10/01/15,12/31/15,FLOOR DIRECTOR,"16,250.01",2015,"","","","HODGSON,CHRISTOPHER M"
,OFFICE OF THE MAJORITY WHIP,2015Q4,PERSONNEL COMPENSATION,"","HORTON, BRETT H",10/01/15,12/31/15,DIR OF FL OPERATIONS & COUNSEL,"36,482.66",2015,"","","","HORTON, BRETT H"
,OFFICE OF THE MAJORITY WHIP,2015Q4,PERSONNEL COMPENSATION,"","HUDAK,KELLEY K",10/01/15,12/31/15,BUSINESS COALITIONS COORD,"17,499.99",2015,"","","","HUDAK,KELLEY K"
,OFFICE OF THE MAJORITY WHIP,2015Q4,PERSONNEL COMPENSATION,"","HUGHES,WILLIAM J",10/01/15,12/31/15,POLICY DIRECTOR,"42,116.01",2015,"","","","HUGHES,WILLIAM J"
,OFFICE OF THE MAJORITY WHIP,2015Q4,PERSONNEL COMPENSATION,"","JEWELL,MATTHEW L",10/01/15,12/31/15,STAFF ASSISTANT,"9,999.99",2015,"","","","JEWELL,MATTHEW L"
,OFFICE OF THE MAJORITY WHIP,2015Q4,PERSONNEL COMPENSATION,"","KARVELAS,REBECCA L",11/06/15,12/31/15,INTERN,"2,750.00",2015,"","","","KARVELAS,REBECCA L"
,OFFICE OF THE MAJORITY WHIP,2015Q4,PERSONNEL COMPENSATION,"","REISER,MARTIN G",10/01/15,12/31/15,LEGISLATIVE COUNSEL,"31,250.01",2015,"","","","REISER,MARTIN G"
,OFFICE OF THE MAJORITY WHIP,2015Q4,PERSONNEL COMPENSATION,"","REISING,JOHN B",10/01/15,12/31/15,DIRECTOR OF OPERATIONS,"27,333.33",2015,"","","","REISING,JOHN B"
,OFFICE OF THE MAJORITY WHIP,2015Q4,PERSONNEL COMPENSATION,"","RUCKERT,LYNNEL B",10/01/15,12/31/15,CHIEF OF STAFF,"42,825.00",2015,"","","","RUCKERT,LYNNEL B"
,OFFICE OF THE MAJORITY WHIP,2015Q4,PERSONNEL COMPENSATION,"","SADLOSKY,DANIEL J",10/01/15,12/31/15,POLICY ASSISTANT,"15,000.00",2015,"","","","SADLOSKY,DANIEL J"
,OFFICE OF THE MAJORITY WHIP,2015Q4,PERSONNEL COMPENSATION,"","TATUM,THOMAS J",10/01/15,12/31/15,DEPUTY COMMUNICATIONS DIRECTOR,"21,999.99",2015,"","","","TATUM,THOMAS J"
,OFFICE OF THE MAJORITY WHIP,2015Q4,PERSONNEL COMPENSATION,"","TRUEMAN,LAURA",10/01/15,12/31/15,SR. POL ADV & CONSER COAL CORD,"30,000.00",2015,"","","","TRUEMAN,LAURA"
,OFFICE OF THE MAJORITY WHIP,2015Q4,PERSONNEL COMPENSATION,"","WOODARD,JOHN S",10/01/15,12/31/15,STAFF ASSISTANT,"7,500.00",2015,"","","","WOODARD,JOHN S"
,OFFICE OF THE MAJORITY WHIP,2015Q4,PERSONNEL COMPENSATION,"","ZULKOSKY,ERIC T",10/01/15,12/31/15,DIR OF MEMBER SVS & POLICY ADV,"13,068.51",2015,"","","","ZULKOSKY,ERIC T"
,OFFICE OF THE MAJORITY WHIP,2015Q4,TRAVEL,10-02,"TRUEMAN, LAURA",09/02/15,09/21/15,TAXI/PARKING/TOLLS,76.75,2015,AP,Accounts payable,E0325994,"TRUEMAN, LAURA"
,OFFICE OF THE MAJORITY WHIP,2015Q4,TRAVEL,10-07,CITIBANK GOV CARD SERVICE,08/31/15,09/28/15,TRAVEL SUBSISTENCE,736.55,2015,AP,Accounts payable,E0327650,CITIBANK GOV CARD SERVICE
,OFFICE OF THE MAJORITY WHIP,2015Q4,TRAVEL,10-14,"JEWELL, MATTHEW L",09/08/15,09/08/15,TAXI/PARKING/TOLLS,10.16,2015,AP,Accounts payable,E0329999,"JEWELL, MATTHEW L"
,OFFICE OF THE MAJORITY WHIP,2015Q4,TRAVEL,10-14,"JEWELL, MATTHEW L",09/10/15,09/10/15,TAXI/PARKING/TOLLS,5.05,2015,AP,Accounts payable,E0329999,"JEWELL, MATTHEW L"
,OFFICE OF THE MAJORITY WHIP,2015Q4,TRAVEL,11-04,"TRUEMAN, LAURA",10/07/15,10/29/15,TAXI/PARKING/TOLLS,53.18,2015,AP,Accounts payable,E0336954,"TRUEMAN, LAURA"
,OFFICE OF THE MAJORITY WHIP,2015Q4,TRAVEL,11-04,CITIBANK GOV CARD SERVICE,10/01/15,10/26/15,COMMERCIAL TRANSPORTATION,"1,284.90",2015,AP,Accounts payable,E0336957,CITIBANK GOV CARD SERVICE
,OFFICE OF THE MAJORITY WHIP,2015Q4,TRAVEL,11-18,CITIBANK GOV CARD SERVICE,11/19/15,11/19/15,COMMERCIAL TRANSPORTATION,605.98,2015,AP,Accounts payable,E0341869,CITIBANK GOV CARD SERVICE
,OFFICE OF THE MAJORITY WHIP,2015Q4,PRINTING AND REPRODUCTION,10-19,CITI PCARD-FEDEXOFFICE,08/29/15,09/28/15,PRINTING & REPRODUCTION,"1,045.50",2015,AP,Accounts payable,00822170,CITI PCARD-FEDEXOFFICE
,OFFICE OF THE MAJORITY WHIP,2015Q4,PRINTING AND REPRODUCTION,11-04,"TATUM, THOMAS J",09/18/15,09/18/15,PRINTING & REPRODUCTION,134.83,2015,AP,Accounts payable,E0336964,"TATUM, THOMAS J"
,OFFICE OF THE MAJORITY WHIP,2015Q4,PRINTING AND REPRODUCTION,11-24,"",11/01/15,11/30/15,PHOTOGRAPHIC (TRANSFER),25.60,2015,GL,General ledger,PIX0054052,""
,OFFICE OF THE MAJORITY WHIP,2015Q4,OTHER SERVICES,12-11,WILLIAM VANDERBROOK CPA,09/04/15,09/11/15,NON-TECHNOLOGY SERVICE CONTR,400.00,2015,AP,Accounts payable,E0350315,WILLIAM VANDERBROOK CPA
,OFFICE OF THE MAJORITY WHIP,2015Q4,SUPPLIES AND MATERIALS,10-02,COMMUNITY COFFEE COMPANY LLC,09/10/15,09/10/15,FOOD & BEVERAGE,247.20,2015,AP,Accounts payable,E0326014,COMMUNITY COFFEE COMPANY LLC
,OFFICE OF THE MAJORITY WHIP,2015Q4,SUPPLIES AND MATERIALS,10-02,FIRST CHOICE COFFEE SERVICES,09/28/15,09/28/15,FOOD & BEVERAGE,"1,003.14",2015,AP,Accounts payable,E0326019,FIRST CHOICE COFFEE SERVICES
,OFFICE OF THE MAJORITY WHIP,2015Q4,SUPPLIES AND MATERIALS,10-02,FIRST CHOICE COFFEE SERVICES,09/02/15,09/02/15,FOOD & BEVERAGE,342.00,2015,AP,Accounts payable,E0326022,FIRST CHOICE COFFEE SERVICES
,OFFICE OF THE MAJORITY WHIP,2015Q4,SUPPLIES AND MATERIALS,10-02,FIRST CHOICE COFFEE SERVICES,08/31/15,08/31/15,FOOD & BEVERAGE,181.60,2015,AP,Accounts payable,E0326044,FIRST CHOICE COFFEE SERVICES
,OFFICE OF THE MAJORITY WHIP,2015Q4,SUPPLIES AND MATERIALS,10-02,FIRST CHOICE COFFEE SERVICES,08/13/15,08/13/15,FOOD & BEVERAGE,"1,303.60",2015,AP,Accounts payable,E0326051,FIRST CHOICE COFFEE SERVICES
,OFFICE OF THE MAJORITY WHIP,2015Q4,SUPPLIES AND MATERIALS,10-14,FIRST CHOICE COFFEE SERVICES,06/25/15,06/25/15,FOOD & BEVERAGE,212.00,2015,AP,Accounts payable,E0330002,FIRST CHOICE COFFEE SERVICES
,OFFICE OF THE MAJORITY WHIP,2015Q4,SUPPLIES AND MATERIALS,10-14,FIRST CHOICE COFFEE SERVICES,06/25/15,06/25/15,FOOD & BEVERAGE,51.80,2015,AP,Accounts payable,E0330006,FIRST CHOICE COFFEE SERVICES
,OFFICE OF THE MAJORITY WHIP,2015Q4,SUPPLIES AND MATERIALS,10-14,FIRST CHOICE COFFEE SERVICES,06/11/15,06/11/15,FOOD & BEVERAGE,51.80,2015,AP,Accounts payable,E0330007,FIRST CHOICE COFFEE SERVICES
,OFFICE OF THE MAJORITY WHIP,2015Q4,SUPPLIES AND MATERIALS,10-14,FIRST CHOICE COFFEE SERVICES,05/21/15,05/21/15,FOOD & BEVERAGE,72.00,2015,AP,Accounts payable,E0330009,FIRST CHOICE COFFEE SERVICES
,OFFICE OF THE MAJORITY WHIP,2015Q4,SUPPLIES AND MATERIALS,10-14,FIRST CHOICE COFFEE SERVICES,10/02/15,10/02/15,FOOD & BEVERAGE,51.00,2015,AP,Accounts payable,E0330010,FIRST CHOICE COFFEE SERVICES
,OFFICE OF THE MAJORITY WHIP,2015Q4,SUPPLIES AND MATERIALS,10-14,FIRST CHOICE COFFEE SERVICES,05/21/15,05/21/15,FOOD & BEVERAGE,749.44,2015,AP,Accounts payable,E0330011,FIRST CHOICE COFFEE SERVICES
,OFFICE OF THE MAJORITY WHIP,2015Q4,SUPPLIES AND MATERIALS,10-14,FIRST CHOICE COFFEE SERVICES,08/27/15,08/27/15,FOOD & BEVERAGE,352.75,2015,AP,Accounts payable,E0330295,FIRST CHOICE COFFEE SERVICES
,OFFICE OF THE MAJORITY WHIP,2015Q4,SUPPLIES AND MATERIALS,10-19,CITI PCARD-CAPTL VISITOR CTR,08/29/15,09/28/15,HABITATION EXPENSE,297.20,2015,AP,Accounts payable,00822170,CITI PCARD-CAPTL VISITOR CTR
,OFFICE OF THE MAJORITY WHIP,2015Q4,SUPPLIES AND MATERIALS,10-28,FIRST CHOICE COFFEE SERVICES,10/08/15,10/08/15,FOOD & BEVERAGE,459.30,2015,AP,Accounts payable,E0334978,FIRST CHOICE COFFEE SERVICES
,OFFICE OF THE MAJORITY WHIP,2015Q4,SUPPLIES AND MATERIALS,10-28,FIRST CHOICE COFFEE SERVICES,10/12/15,10/12/15,FOOD & BEVERAGE,51.00,2015,AP,Accounts payable,E0334983,FIRST CHOICE COFFEE SERVICES
,OFFICE OF THE MAJORITY WHIP,2015Q4,SUPPLIES AND MATERIALS,11-04,"TRUEMAN, LAURA",10/21/15,10/21/16,PUBLICATIONS/REFERENCE MAT'L,30.00,2015,AP,Accounts payable,E0336954,"TRUEMAN, LAURA"
,OFFICE OF THE MAJORITY WHIP,2015Q4,SUPPLIES AND MATERIALS,12-18,NEW ORLEANS ROAST LLC,12/03/15,12/03/15,FOOD & BEVERAGE,70.00,2015,AP,Accounts payable,E0353527,NEW ORLEANS ROAST LLC
,OFFICE OF THE MAJORITY WHIP,2015Q4,SUPPLIES AND MATERIALS,12-18,COMMUNITY COFFEE COMPANY LLC,04/21/15,04/21/15,FOOD & BEVERAGE,182.75,2015,AP,Accounts payable,E0353531,COMMUNITY COFFEE COMPANY LLC
,OFFICE OF THE MAJORITY WHIP,2015Q4,SUPPLIES AND MATERIALS,12-18,NEW ORLEANS ROAST LLC,12/08/15,12/08/15,FOOD & BEVERAGE,64.00,2015,AP,Accounts payable,E0353534,NEW ORLEANS ROAST LLC
,OFFICE OF THE MAJORITY WHIP,2015Q4,SUPPLIES AND MATERIALS,12-21,CITI PCARD-AMAZON.COM,10/29/15,11/28/15,PUBLICATIONS/REFERENCE MAT'L,43.28,2015,AP,Accounts payable,00833251,CITI PCARD-AMAZON.COM
,OFFICE OF THE MAJORITY WHIP,2015Q4,SUPPLIES AND MATERIALS,12-21,CITI PCARD-AMAZON.COM AMZN.COM/BI,10/29/15,11/28/15,PUBLICATIONS/REFERENCE MAT'L,62.11,2015,AP,Accounts payable,00833251,CITI PCARD-AMAZON.COM AMZN.COM/BI
,OFFICE OF THE MAJORITY WHIP,2015Q4,SUPPLIES AND MATERIALS,12-21,CITI PCARD-INT COLUMBIA BOOKS INC,10/29/15,11/28/15,PUBLICATIONS/REFERENCE MAT'L,98.22,2015,AP,Accounts payable,00833251,CITI PCARD-INT COLUMBIA BOOKS INC
,OFFICE OF THE MAJORITY WHIP,2015Q4,SUPPLIES AND MATERIALS,12-21,CQ ROLL CALL INC,01/01/16,12/31/16,PUBLICATIONS/REFERENCE MAT'L,"9,998.00",2015,AP,Accounts payable,E0353529,CQ ROLL CALL INC
,OFFICE OF THE MAJORITY WHIP,2015Q4,SUPPLIES AND MATERIALS,12-21,POLITICO LLC,12/31/15,12/30/16,PUBLICATIONS/REFERENCE MAT'L,"11,990.00",2015,AP,Accounts payable,E0353530,POLITICO LLC
,OFFICE OF THE MAJORITY WHIP,2015Q4,SUPPLIES AND MATERIALS,12-21,COMMUNITY COFFEE COMPANY LLC,06/15/15,06/15/15,FOOD & BEVERAGE,32.48,2015,AP,Accounts payable,E0353539,COMMUNITY COFFEE COMPANY LLC
,OFFICE OF THE MAJORITY WHIP,2015Q4,SUPPLIES AND MATERIALS,12-28,FIRST CHOICE COFFEE SERVICES,12/14/15,12/14/15,FOOD & BEVERAGE,570.54,2015,AP,Accounts payable,E0353537,FIRST CHOICE COFFEE SERVICES
,OFFICE OF THE MAJORITY WHIP,2015Q4,SUPPLIES AND MATERIALS,12-31,FIRST CHOICE COFFEE SERVICES,11/19/15,11/19/15,FOOD & BEVERAGE,469.10,2015,AP,Accounts payable,E0353533,FIRST CHOICE COFFEE SERVICES
,OFFICE OF THE MAJORITY WHIP,2015Q4,SUPPLIES AND MATERIALS,12-31,FIRST CHOICE COFFEE SERVICES,12/03/15,12/03/15,FOOD & BEVERAGE,618.14,2015,AP,Accounts payable,E0353587,FIRST CHOICE COFFEE SERVICES
,OFFICE OF THE MINORITY WHIP,2015Q4,PERSONNEL COMPENSATION,"","ABOUCHAR, KEITH S",10/01/15,12/31/15,SENIOR POLICY ADVISOR,"35,000.01",2015,"","","","ABOUCHAR, KEITH S"
,OFFICE OF THE MINORITY WHIP,2015Q4,PERSONNEL COMPENSATION,"","AVILES,DANIELLE R",10/01/15,11/30/15,FLOOR ASSISTANT,"10,833.34",2015,"","","","AVILES,DANIELLE R"
,OFFICE OF THE MINORITY WHIP,2015Q4,PERSONNEL COMPENSATION,"","AVILES,DANIELLE R",12/01/15,12/31/15,DEPUTY FLOOR DIRECTOR,"11,250.00",2015,"","","","AVILES,DANIELLE R"
,OFFICE OF THE MINORITY WHIP,2015Q4,PERSONNEL COMPENSATION,"","COLLINS, MICHAEL E",10/01/15,12/31/15,CHIEF DEPUTY WHIP,"10,625.01",2015,"","","","COLLINS, MICHAEL E"
,OFFICE OF THE MINORITY WHIP,2015Q4,PERSONNEL COMPENSATION,"","CORTINA,JOSEPH B",10/01/15,11/30/15,STAFF ASSISTANT,"4,166.66",2015,"","","","CORTINA,JOSEPH B"
,OFFICE OF THE MINORITY WHIP,2015Q4,PERSONNEL COMPENSATION,"","CORTINA,JOSEPH B",12/01/15,12/31/15,SPECIAL ASSISTANT,"2,416.67",2015,"","","","CORTINA,JOSEPH B"
,OFFICE OF THE MINORITY WHIP,2015Q4,PERSONNEL COMPENSATION,"","CORTINA,JOSEPH B",09/01/15,11/30/15,STAFF ASSISTANT (OVERTIME),"3,389.39",2015,"","","","CORTINA,JOSEPH B"
,OFFICE OF THE MINORITY WHIP,2015Q4,PERSONNEL COMPENSATION,"","COVEY-BRANDT, ALEXIS",10/01/15,12/31/15,CHIEF OF STAFF,"43,125.00",2015,"","","","COVEY-BRANDT, ALEXIS"
,OFFICE OF THE MINORITY WHIP,2015Q4,PERSONNEL COMPENSATION,"","DWYER, STEPHEN",10/01/15,12/31/15,DIGITAL DIR & POLICY ADV,"17,250.00",2015,"","","","DWYER, STEPHEN"
,OFFICE OF THE MINORITY WHIP,2015Q4,PERSONNEL COMPENSATION,"","DWYER, STEPHEN",11/01/15,11/01/15,DIGITAL DIR & POLICY ADV (OTHER COMPENSATION),"2,784.25",2015,"","","","DWYER, STEPHEN"
,OFFICE OF THE MINORITY WHIP,2015Q4,PERSONNEL COMPENSATION,"","FRY,COURTNEY",10/01/15,12/31/15,DEP OUTREACH DIR & MEM SER ADV,"26,250.00",2015,"","","","FRY,COURTNEY"
,OFFICE OF THE MINORITY WHIP,2015Q4,PERSONNEL COMPENSATION,"","FRY,COURTNEY",11/01/15,11/01/15,DEP OUTREACH DIR & MEM SER ADV (OTHER COMPENSATION),"5,000.00",2015,"","","","FRY,COURTNEY"
,OFFICE OF THE MINORITY WHIP,2015Q4,PERSONNEL COMPENSATION,"","GOFF,SHUWANZA R",10/01/15,12/31/15,FLOOR DIRECTOR,"26,250.00",2015,"","","","GOFF,SHUWANZA R"
,OFFICE OF THE MINORITY WHIP,2015Q4,PERSONNEL COMPENSATION,"","GOFF,SHUWANZA R",11/01/15,11/01/15,FLOOR DIRECTOR (OTHER COMPENSATION),"5,000.00",2015,"","","","GOFF,SHUWANZA R"
,OFFICE OF THE MINORITY WHIP,2015Q4,PERSONNEL COMPENSATION,"","GRANT,KATHRYN L",10/01/15,12/31/15,COMM DIR AND SR ADVISOR,"31,250.01",2015,"","","","GRANT,KATHRYN L"
,OFFICE OF THE MINORITY WHIP,2015Q4,PERSONNEL COMPENSATION,"","GRANT,KATHRYN L",11/01/15,11/01/15,COMM DIR AND SR ADVISOR (OTHER COMPENSATION),"3,617.58",2015,"","","","GRANT,KATHRYN L"
,OFFICE OF THE MINORITY WHIP,2015Q4,PERSONNEL COMPENSATION,"","JABLON,DAKOTA P",10/05/15,10/09/15,STAFF ASSISTANT,347.22,2015,"","","","JABLON,DAKOTA P"
,OFFICE OF THE MINORITY WHIP,2015Q4,PERSONNEL COMPENSATION,"","LEUSCHEN, JAMES P",01/03/15,12/31/15,SENIOR POLICY ADVISOR,"34,535.42",2015,"","","","LEUSCHEN, JAMES P"
,OFFICE OF THE MINORITY WHIP,2015Q4,PERSONNEL COMPENSATION,"","MACDONALD,CHARLENE",10/01/15,12/31/15,SENIOR POLICY ADVISOR,"30,000.00",2015,"","","","MACDONALD,CHARLENE"
,OFFICE OF THE MINORITY WHIP,2015Q4,PERSONNEL COMPENSATION,"","MAHR,THOMAS",10/01/15,12/31/15,POLICY DIRECTOR,"39,999.99",2015,"","","","MAHR,THOMAS"
,OFFICE OF THE MINORITY WHIP,2015Q4,PERSONNEL COMPENSATION,"","MARTINEZ, JAVIER D",10/01/15,12/31/15,DEP DIR OF MBR SERV & OUTR ADV,"18,750.00",2015,"","","","MARTINEZ, JAVIER D"
,OFFICE OF THE MINORITY WHIP,2015Q4,PERSONNEL COMPENSATION,"","MITTLER,MICHELLE",10/01/15,12/31/15,DIR OF SCHEDLNG & SPEC EVENTS,"18,750.00",2015,"","","","MITTLER,MICHELLE"
,OFFICE OF THE MINORITY WHIP,2015Q4,PERSONNEL COMPENSATION,"","NELSON,CAITLIN M",12/07/15,12/31/15,STAFF ASSISTANT,"1,666.67",2015,"","","","NELSON,CAITLIN M"
,OFFICE OF THE MINORITY WHIP,2015Q4,PERSONNEL COMPENSATION,"","OPARIL,MARIE A",12/07/15,12/31/15,STAFF ASSISTANT,"1,666.67",2015,"","","","OPARIL,MARIE A"
,OFFICE OF THE MINORITY WHIP,2015Q4,PERSONNEL COMPENSATION,"","REPKO,MARY F",10/01/15,12/31/15,SENIOR POLICY ADVISOR,"35,000.01",2015,"","","","REPKO,MARY F"
,OFFICE OF THE MINORITY WHIP,2015Q4,PERSONNEL COMPENSATION,"","ROMICK, BRIAN",10/01/15,11/30/15,WHIP DIR AND SENIOR ADVISOR,"28,333.34",2015,"","","","ROMICK, BRIAN"
,OFFICE OF THE MINORITY WHIP,2015Q4,PERSONNEL COMPENSATION,"","ROMICK, BRIAN",12/01/15,12/31/15,DEPUTY CHIEF OF STAFF,"14,166.67",2015,"","","","ROMICK, BRIAN"
,OFFICE OF THE MINORITY WHIP,2015Q4,PERSONNEL COMPENSATION,"","ROWE,DEBORAH M",10/01/15,12/31/15,EXECUTIVE ASSISTANT/OFC MGR,"9,536.67",2015,"","","","ROWE,DEBORAH M"
,OFFICE OF THE MINORITY WHIP,2015Q4,PERSONNEL COMPENSATION,"","ROWE,DEBORAH M",09/01/15,11/30/15,EXECUTIVE ASSISTANT/OFC MGR (OVERTIME),"4,823.02",2015,"","","","ROWE,DEBORAH M"
,OFFICE OF THE MINORITY WHIP,2015Q4,PERSONNEL COMPENSATION,"","ROWE,DEBORAH M",12/01/15,12/31/15,EXECUTIVE ASSISTANT/OFC MGR (OTHER COMPENSATION),"3,000.00",2015,"","","","ROWE,DEBORAH M"
,OFFICE OF THE MINORITY WHIP,2015Q4,PERSONNEL COMPENSATION,"","SAEZ,MARIEL S",10/01/15,12/31/15,PRESS SECRETARY,"17,250.00",2015,"","","","SAEZ,MARIEL S"
,OFFICE OF THE MINORITY WHIP,2015Q4,PERSONNEL COMPENSATION,"","SALAZAR, RAYMOND J",10/01/15,11/30/15,SPECIAL ASST AND PROJECT COORD,"8,406.66",2015,"","","","SALAZAR, RAYMOND J"
,OFFICE OF THE MINORITY WHIP,2015Q4,PERSONNEL COMPENSATION,"","SALAZAR, RAYMOND J",12/01/15,12/31/15,FLOOR ASSISTANT,"4,583.33",2015,"","","","SALAZAR, RAYMOND J"
,OFFICE OF THE MINORITY WHIP,2015Q4,PERSONNEL COMPENSATION,"","SALAZAR, RAYMOND J",12/01/15,12/31/15,FLOOR ASSISTANT (OTHER COMPENSATION),"3,000.00",2015,"","","","SALAZAR, RAYMOND J"
,OFFICE OF THE MINORITY WHIP,2015Q4,PERSONNEL COMPENSATION,"","SILVERBERG,DANIEL I",10/01/15,12/31/15,SENIOR POLICY ADVISOR,"17,750.01",2015,"","","","SILVERBERG,DANIEL I"
,OFFICE OF THE MINORITY WHIP,2015Q4,PERSONNEL COMPENSATION,"","SILVERBERG,DANIEL I",11/01/15,11/01/15,SENIOR POLICY ADVISOR (OTHER COMPENSATION),"1,867.66",2015,"","","","SILVERBERG,DANIEL I"
,OFFICE OF THE MINORITY WHIP,2015Q4,PERSONNEL COMPENSATION,"","VALES,TARA J",10/01/15,12/31/15,PRESS AND RESEARCH ASSISTANT,"12,609.99",2015,"","","","VALES,TARA J"
,OFFICE OF THE MINORITY WHIP,2015Q4,PERSONNEL COMPENSATION,"","VEAL,LATOYA S",10/01/15,12/31/15,MARYLAND PRESS SECRETARY,"12,249.99",2015,"","","","VEAL,LATOYA S"
,OFFICE OF THE MINORITY WHIP,2015Q4,PERSONNEL COMPENSATION,"","WEISSMANN, ADAM",10/01/15,12/31/15,SPEECHWRITER,"18,750.00",2015,"","","","WEISSMANN, ADAM"
,OFFICE OF THE MINORITY WHIP,2015Q4,TRAVEL,10-02,"MITTLER,MICHELLE",09/22/15,09/22/15,TAXI/PARKING/TOLLS,19.24,2015,AP,Accounts payable,E0325960,"MITTLER,MICHELLE"
,OFFICE OF THE MINORITY WHIP,2015Q4,TRAVEL,10-02,"ROWE, DEBORAH M",10/01/15,10/01/15,TAXI/PARKING/TOLLS,11.64,2015,AP,Accounts payable,E0326006,"ROWE, DEBORAH M"
,OFFICE OF THE MINORITY WHIP,2015Q4,TRAVEL,10-06,"FRY,COURTNEY",09/25/15,09/25/15,TAXI/PARKING/TOLLS,21.54,2015,AP,Accounts payable,E0326020,"FRY,COURTNEY"
,OFFICE OF THE MINORITY WHIP,2015Q4,TRAVEL,10-06,"FRY,COURTNEY",09/25/15,09/25/15,TAXI/PARKING/TOLLS,16.53,2015,AP,Accounts payable,E0326039,"FRY,COURTNEY"
,OFFICE OF THE MINORITY WHIP,2015Q4,TRAVEL,11-03,"MITTLER,MICHELLE",10/26/15,10/26/15,TAXI/PARKING/TOLLS,19.24,2015,AP,Accounts payable,E0336497,"MITTLER,MICHELLE"
,OFFICE OF THE MINORITY WHIP,2015Q4,TRAVEL,11-03,"ROWE, DEBORAH M",10/22/15,10/22/15,TAXI/PARKING/TOLLS,10.35,2015,AP,Accounts payable,E0336499,"ROWE, DEBORAH M"
,OFFICE OF THE MINORITY WHIP,2015Q4,TRAVEL,11-03,"AVILES,DANIELLE R",10/07/15,10/07/15,TAXI/PARKING/TOLLS,14.00,2015,AP,Accounts payable,E0336500,"AVILES,DANIELLE R"
,OFFICE OF THE MINORITY WHIP,2015Q4,TRAVEL,11-03,"ROWE, DEBORAH M",10/08/15,10/08/15,TAXI/PARKING/TOLLS,10.68,2015,AP,Accounts payable,E0336502,"ROWE, DEBORAH M"
,OFFICE OF THE MINORITY WHIP,2015Q4,TRAVEL,11-03,"AVILES,DANIELLE R",10/27/15,10/27/15,TAXI/PARKING/TOLLS,13.00,2015,AP,Accounts payable,E0336504,"AVILES,DANIELLE R"
,OFFICE OF THE MINORITY WHIP,2015Q4,TRAVEL,11-03,"AVILES,DANIELLE R",10/26/15,10/26/15,TAXI/PARKING/TOLLS,13.00,2015,AP,Accounts payable,E0336506,"AVILES,DANIELLE R"
,OFFICE OF THE MINORITY WHIP,2015Q4,TRAVEL,11-03,"AVILES,DANIELLE R",10/28/15,10/28/15,TAXI/PARKING/TOLLS,15.00,2015,AP,Accounts payable,E0336507,"AVILES,DANIELLE R"
,OFFICE OF THE MINORITY WHIP,2015Q4,TRAVEL,11-03,SLIVERBERG DANIEL L,09/17/15,09/17/15,TAXI/PARKING/TOLLS,23.00,2015,AP,Accounts payable,E0336510,SLIVERBERG DANIEL L
,OFFICE OF THE MINORITY WHIP,2015Q4,TRAVEL,11-03,"AVILES,DANIELLE R",10/08/15,10/08/15,TAXI/PARKING/TOLLS,16.00,2015,AP,Accounts payable,E0336511,"AVILES,DANIELLE R"
,OFFICE OF THE MINORITY WHIP,2015Q4,TRAVEL,11-03,SLIVERBERG DANIEL L,07/15/15,07/15/15,TAXI/PARKING/TOLLS,11.79,2015,AP,Accounts payable,E0336512,SLIVERBERG DANIEL L
,OFFICE OF THE MINORITY WHIP,2015Q4,TRAVEL,11-03,"CORTINA, JOSEPH B",10/21/15,10/21/15,TAXI/PARKING/TOLLS,11.36,2015,AP,Accounts payable,E0336513,"CORTINA, JOSEPH B"
,OFFICE OF THE MINORITY WHIP,2015Q4,TRAVEL,12-01,"ROWE, DEBORAH M",11/19/15,11/19/15,TAXI/PARKING/TOLLS,10.46,2015,AP,Accounts payable,E0345594,"ROWE, DEBORAH M"
,OFFICE OF THE MINORITY WHIP,2015Q4,TRAVEL,12-01,"ROWE, DEBORAH M",11/04/15,11/04/15,TAXI/PARKING/TOLLS,18.10,2015,AP,Accounts payable,E0345598,"ROWE, DEBORAH M"
,OFFICE OF THE MINORITY WHIP,2015Q4,TRAVEL,12-01,"AVILES,DANIELLE R",11/16/15,11/16/15,TAXI/PARKING/TOLLS,16.00,2015,AP,Accounts payable,E0345600,"AVILES,DANIELLE R"
,OFFICE OF THE MINORITY WHIP,2015Q4,TRAVEL,12-01,"MITTLER,MICHELLE",11/05/15,11/05/15,TAXI/PARKING/TOLLS,12.45,2015,AP,Accounts payable,E0345602,"MITTLER,MICHELLE"
,OFFICE OF THE MINORITY WHIP,2015Q4,TRAVEL,12-01,"ROWE, DEBORAH M",11/05/15,11/05/15,TAXI/PARKING/TOLLS,10.27,2015,AP,Accounts payable,E0345604,"ROWE, DEBORAH M"
,OFFICE OF THE MINORITY WHIP,2015Q4,TRAVEL,12-01,"FRY,COURTNEY",11/23/15,11/23/15,TAXI/PARKING/TOLLS,25.00,2015,AP,Accounts payable,E0345609,"FRY,COURTNEY"
,OFFICE OF THE MINORITY WHIP,2015Q4,TRAVEL,12-23,"AVILES,DANIELLE R",12/03/15,12/03/15,TAXI/PARKING/TOLLS,16.00,2015,AP,Accounts payable,E0355283,"AVILES,DANIELLE R"
,OFFICE OF THE MINORITY WHIP,2015Q4,TRAVEL,12-23,"AVILES,DANIELLE R",12/01/15,12/01/15,TAXI/PARKING/TOLLS,13.00,2015,AP,Accounts payable,E0355288,"AVILES,DANIELLE R"
,OFFICE OF THE MINORITY WHIP,2015Q4,TRAVEL,12-23,"FRY,COURTNEY",12/12/15,12/12/15,TAXI/PARKING/TOLLS,8.00,2015,AP,Accounts payable,E0355290,"FRY,COURTNEY"
,OFFICE OF THE MINORITY WHIP,2015Q4,TRAVEL,12-23,"AVILES,DANIELLE R",11/30/15,11/30/15,TAXI/PARKING/TOLLS,14.00,2015,AP,Accounts payable,E0355291,"AVILES,DANIELLE R"
,OFFICE OF THE MINORITY WHIP,2015Q4,TRAVEL,12-23,"ROWE, DEBORAH M",12/03/15,12/03/15,TAXI/PARKING/TOLLS,11.58,2015,AP,Accounts payable,E0355292,"ROWE, DEBORAH M"
,OFFICE OF THE MINORITY WHIP,2015Q4,TRAVEL,12-28,"OPARIL, MARIA A",12/16/15,12/16/15,TAXI/PARKING/TOLLS,12.05,2015,AP,Accounts payable,E0355282,"OPARIL, MARIA A"
,OFFICE OF THE MINORITY WHIP,2015Q4,TRAVEL,12-28,"OPARIL, MARIA A",12/18/15,12/18/15,TAXI/PARKING/TOLLS,7.02,2015,AP,Accounts payable,E0355284,"OPARIL, MARIA A"
,OFFICE OF THE MINORITY WHIP,2015Q4,TRAVEL,12-28,"OPARIL, MARIA A",12/18/15,12/18/15,TAXI/PARKING/TOLLS,7.32,2015,AP,Accounts payable,E0355285,"OPARIL, MARIA A"
,OFFICE OF THE MINORITY WHIP,2015Q4,TRAVEL,12-28,"AVILES,DANIELLE R",12/02/15,12/02/15,TAXI/PARKING/TOLLS,13.00,2015,AP,Accounts payable,E0355287,"AVILES,DANIELLE R"
,OFFICE OF THE MINORITY WHIP,2015Q4,"RENT, COMMUNICATION, UTILITIES",10-19,CITI PCARD-SXM SIRIUSXM.COM/ACCT,08/29/15,09/28/15,UTILITIES,225.37,2015,AP,Accounts payable,00822170,CITI PCARD-SXM SIRIUSXM.COM/ACCT
,OFFICE OF THE MINORITY WHIP,2015Q4,"RENT, COMMUNICATION, UTILITIES",10-19,CITI PCARD-USPS,08/29/15,09/28/15,POSTAGE / COURIER / BOX RENTAL,5.75,2015,AP,Accounts payable,00822170,CITI PCARD-USPS
,OFFICE OF THE MINORITY WHIP,2015Q4,"RENT, COMMUNICATION, UTILITIES",12-21,CITI PCARD-METROCAST MARYLAND VIR,10/29/15,11/28/15,TELECOMSRV/EQ/TOLL CHARGE,48.95,2015,AP,Accounts payable,00833251,CITI PCARD-METROCAST MARYLAND VIR
,OFFICE OF THE MINORITY WHIP,2015Q4,OTHER SERVICES,12-21,CITI PCARD-AMAZON WEB SERVICES,10/29/15,11/28/15,"WEB DEV HST,EMAIL & RLTD SERV",19.86,2015,AP,Accounts payable,00833251,CITI PCARD-AMAZON WEB SERVICES
,OFFICE OF THE MINORITY WHIP,2015Q4,OTHER SERVICES,12-21,CITI PCARD-WWW.1AND1.COM,10/29/15,11/28/15,"WEB DEV HST,EMAIL & RLTD SERV",49.00,2015,AP,Accounts payable,00833251,CITI PCARD-WWW.1AND1.COM
,OFFICE OF THE MINORITY WHIP,2015Q4,SUPPLIES AND MATERIALS,12-21,CITI PCARD-AMAZON MKTPLACE PMTS,10/29/15,11/28/15,OFFICE SUPPLIES (OUTSIDE),149.72,2015,AP,Accounts payable,00833251,CITI PCARD-AMAZON MKTPLACE PMTS
,OFFICE OF THE MINORITY WHIP,2015Q4,SUPPLIES AND MATERIALS,12-21,CITI PCARD-CORCORAN CATERERS,10/29/15,11/28/15,FOOD & BEVERAGE,204.37,2015,AP,Accounts payable,00833251,CITI PCARD-CORCORAN CATERERS
,OFFICE OF THE MINORITY WHIP,2015Q4,PERSONNEL COMPENSATION,"","LEUSCHEN, JAMES P",01/01/15,01/02/15,SENIOR POLICY ADVISOR,-33.19,2014,"","","","LEUSCHEN, JAMES P"
,DEMOCRATIC CAUCUS,2015Q4,PERSONNEL COMPENSATION,"","ALVI,HINA R",10/01/15,12/31/15,SHARED EMPLOYEE,"7,500.00",2015,"","","","ALVI,HINA R"
,DEMOCRATIC CAUCUS,2015Q4,PERSONNEL COMPENSATION,"","ATTAPIT,SIRAT",10/01/15,10/16/15,SENIOR POLICY COUNSEL,"2,977.78",2015,"","","","ATTAPIT,SIRAT"
,DEMOCRATIC CAUCUS,2015Q4,PERSONNEL COMPENSATION,"","ATTAPIT,SIRAT",10/01/15,10/16/15,SENIOR POLICY COUNSEL (OTHER COMPENSATION),"1,023.61",2015,"","","","ATTAPIT,SIRAT"
,DEMOCRATIC CAUCUS,2015Q4,PERSONNEL COMPENSATION,"","AVERY,SAMUEL R",10/01/15,10/13/15,PRESS ASSISTANT,"1,237.50",2015,"","","","AVERY,SAMUEL R"
,DEMOCRATIC CAUCUS,2015Q4,PERSONNEL COMPENSATION,"","AVERY,SAMUEL R",10/01/15,10/13/15,PRESS ASSISTANT (OTHER COMPENSATION),"1,068.75",2015,"","","","AVERY,SAMUEL R"
,DEMOCRATIC CAUCUS,2015Q4,PERSONNEL COMPENSATION,"","BACKEMEYER,COURTNEY G",10/01/15,12/31/15,COMMUNICTNS DIR TO VICE CHRMN,"8,000.01",2015,"","","","BACKEMEYER,COURTNEY G"
,DEMOCRATIC CAUCUS,2015Q4,PERSONNEL COMPENSATION,"","BOOTH,WILLIAM C",12/14/15,12/31/15,STAFF ASSISTANT,"1,322.22",2015,"","","","BOOTH,WILLIAM C"
,DEMOCRATIC CAUCUS,2015Q4,PERSONNEL COMPENSATION,"","CARRILLO,MANUEL J",10/01/15,12/31/15,OPERATIONS AND EVENTS COOR,"19,723.00",2015,"","","","CARRILLO,MANUEL J"
,DEMOCRATIC CAUCUS,2015Q4,PERSONNEL COMPENSATION,"","CASEY, KEVIN",10/01/15,12/31/15,POLICY DIRECTOR / VICE CHAIR,"21,750.00",2015,"","","","CASEY, KEVIN"
,DEMOCRATIC CAUCUS,2015Q4,PERSONNEL COMPENSATION,"","DAVALOS,LETICIA M",10/01/15,12/31/15,ADVISOR FOR MBR. SERVICES,"16,628.00",2015,"","","","DAVALOS,LETICIA M"
,DEMOCRATIC CAUCUS,2015Q4,PERSONNEL COMPENSATION,"","DELANEY, ERIC L",10/01/15,12/31/15,SR. ADVISOR FOR MBR SERV,"21,636.00",2015,"","","","DELANEY, ERIC L"
,DEMOCRATIC CAUCUS,2015Q4,PERSONNEL COMPENSATION,"","GOLDFARB,SARAH L",10/01/15,12/31/15,COMMUNICATIONS DIRECTOR,"18,216.34",2015,"","","","GOLDFARB,SARAH L"
,DEMOCRATIC CAUCUS,2015Q4,PERSONNEL COMPENSATION,"","HANDVERGER,MATTHEW E",10/01/15,12/18/15,NEW MEDIA PRESS SECRETARY,"14,527.66",2015,"","","","HANDVERGER,MATTHEW E"
,DEMOCRATIC CAUCUS,2015Q4,PERSONNEL COMPENSATION,"","HANDVERGER,MATTHEW E",12/01/15,12/18/15,NEW MEDIA PRESS SECRETARY (OTHER COMPENSATION),895.83,2015,"","","","HANDVERGER,MATTHEW E"
,DEMOCRATIC CAUCUS,2015Q4,PERSONNEL COMPENSATION,"","KEATING, KATHERINE E",10/01/15,12/31/15,SHARED EMPLOYEE,"18,999.99",2015,"","","","KEATING, KATHERINE E"
,DEMOCRATIC CAUCUS,2015Q4,PERSONNEL COMPENSATION,"","LOPEZ-SANDOVAL, ELIZABETH",11/24/15,12/31/15,DEPUTY PRESS SECRETARY,"5,059.77",2015,"","","","LOPEZ-SANDOVAL, ELIZABETH"
,DEMOCRATIC CAUCUS,2015Q4,PERSONNEL COMPENSATION,"","MARGOWSKY,MIRANDA K",10/01/15,12/31/15,PRESS SECRETARY,"17,580.01",2015,"","","","MARGOWSKY,MIRANDA K"
,DEMOCRATIC CAUCUS,2015Q4,PERSONNEL COMPENSATION,"","MARTINEZ,GRISELLA M",10/01/15,12/31/15,POLICY DIRECTOR,"26,758.00",2015,"","","","MARTINEZ,GRISELLA M"
,DEMOCRATIC CAUCUS,2015Q4,PERSONNEL COMPENSATION,"","MCCLUSKIE,SEAN E",10/01/15,12/31/15,CHIEF OF STAFF,"14,956.50",2015,"","","","MCCLUSKIE,SEAN E"
,DEMOCRATIC CAUCUS,2015Q4,PERSONNEL COMPENSATION,"","NORIEGA,EMILY J",10/01/15,12/31/15,STAFF ASSISTANT,"9,539.99",2015,"","","","NORIEGA,EMILY J"
,DEMOCRATIC CAUCUS,2015Q4,PERSONNEL COMPENSATION,"","NORIEGA,EMILY J",09/01/15,11/30/15,STAFF ASSISTANT (OVERTIME),"1,237.59",2015,"","","","NORIEGA,EMILY J"
,DEMOCRATIC CAUCUS,2015Q4,PERSONNEL COMPENSATION,"","NSIAH,JOSEPH K",10/19/15,12/31/15,POLICY ADVISOR,"17,746.01",2015,"","","","NSIAH,JOSEPH K"
,DEMOCRATIC CAUCUS,2015Q4,PERSONNEL COMPENSATION,"","PEREZ-SANCHEZ,NOEL",10/01/15,12/31/15,ADVISOR FOR MBR. SERVICES,"19,430.00",2015,"","","","PEREZ-SANCHEZ,NOEL"
,DEMOCRATIC CAUCUS,2015Q4,PERSONNEL COMPENSATION,"","RODRIGUEZ-CIAMPOLI,FABIOLA",10/01/15,12/31/15,EXECUTIVE DIRECTOR,"40,833.33",2015,"","","","RODRIGUEZ-CIAMPOLI,FABIOLA"
,DEMOCRATIC CAUCUS,2015Q4,PERSONNEL COMPENSATION,"","RODRIGUEZ-CIAMPOLI,FABIOLA",09/01/15,09/01/15,EXECUTIVE DIRECTOR (OTHER COMPENSATION),"2,635.66",2015,"","","","RODRIGUEZ-CIAMPOLI,FABIOLA"
,DEMOCRATIC CAUCUS,2015Q4,PERSONNEL COMPENSATION,"","SACHSE,ANDREW M",10/01/15,12/31/15,STAFF ASSISTANT,"12,000.01",2015,"","","","SACHSE,ANDREW M"
,DEMOCRATIC CAUCUS,2015Q4,PERSONNEL COMPENSATION,"","SHARMA,MOH R",10/01/15,10/18/15,POLICY ADVISOR,"2,452.51",2015,"","","","SHARMA,MOH R"
,DEMOCRATIC CAUCUS,2015Q4,PERSONNEL COMPENSATION,"","SHARMA,MOH R",10/19/15,12/31/15,SENIOR POLICY ADVISOR,"19,834.49",2015,"","","","SHARMA,MOH R"
,DEMOCRATIC CAUCUS,2015Q4,PERSONNEL COMPENSATION,"","SHEFFEY,TRE'SHONDA S",10/01/15,12/31/15,STAFF ASSISTANT,"9,539.99",2015,"","","","SHEFFEY,TRE'SHONDA S"
,DEMOCRATIC CAUCUS,2015Q4,PERSONNEL COMPENSATION,"","SHEFFEY,TRE'SHONDA S",09/01/15,11/30/15,STAFF ASSISTANT (OVERTIME),"1,313.34",2015,"","","","SHEFFEY,TRE'SHONDA S"
,DEMOCRATIC CAUCUS,2015Q4,PERSONNEL COMPENSATION,"","WOODRUM,JEREMY S",10/01/15,12/31/15,"LEGISLATIVE DIR., VICE CHAIR","10,749.99",2015,"","","","WOODRUM,JEREMY S"
,DEMOCRATIC CAUCUS,2015Q4,TRAVEL,12-28,"CARRILLO, MANUEL J",11/18/15,11/18/15,PRIVATE AUTO MILEAGE,4.48,2015,AP,Accounts payable,E0355925,"CARRILLO, MANUEL J"
,DEMOCRATIC CAUCUS,2015Q4,TRAVEL,12-29,"RODRIGUEZ-CIAMPOLI,FABIOLA",11/12/15,11/12/15,PRIVATE AUTO MILEAGE,42.00,2015,AP,Accounts payable,E0355905,"RODRIGUEZ-CIAMPOLI,FABIOLA"
,DEMOCRATIC CAUCUS,2015Q4,TRAVEL,12-29,"RODRIGUEZ-CIAMPOLI,FABIOLA",11/18/15,11/18/15,PRIVATE AUTO MILEAGE,4.48,2015,AP,Accounts payable,E0355905,"RODRIGUEZ-CIAMPOLI,FABIOLA"
,DEMOCRATIC CAUCUS,2015Q4,TRAVEL,12-29,"CARRILLO, MANUEL J",12/14/15,12/14/15,CAR RENTAL,218.27,2015,AP,Accounts payable,E0355919,"CARRILLO, MANUEL J"
,DEMOCRATIC CAUCUS,2015Q4,TRAVEL,12-30,"BOOTH, WILLIAM C",11/18/15,11/18/15,PRIVATE AUTO MILEAGE,4.48,2015,AP,Accounts payable,E0355913,"BOOTH, WILLIAM C"
,DEMOCRATIC CAUCUS,2015Q4,"RENT, COMMUNICATION, UTILITIES",11-18,UNITED PARCEL SERVICE,10/26/15,10/26/15,POSTAGE / COURIER / BOX RENTAL,34.83,2015,AP,Accounts payable,E0341283,UNITED PARCEL SERVICE
,DEMOCRATIC CAUCUS,2015Q4,"RENT, COMMUNICATION, UTILITIES",12-21,CITI PCARD-CAPITOL HOST (RIDGEWEL,10/29/15,11/28/15,TEMPORARY SPACE RENTAL,250.00,2015,AP,Accounts payable,00833251,CITI PCARD-CAPITOL HOST (RIDGEWEL
,DEMOCRATIC CAUCUS,2015Q4,"RENT, COMMUNICATION, UTILITIES",12-23,REGAN MUSIC SERVICE,12/08/15,12/08/15,EQUIP RENTAL (EFF 1/3/03),800.00,2015,AP,Accounts payable,E0354143,REGAN MUSIC SERVICE
,DEMOCRATIC CAUCUS,2015Q4,OTHER SERVICES,11-20,CITI PCARD-CLASSICLEANERS-LONGWOR,10/01/15,10/28/15,LAUNDRY SERVICES,115.48,2015,AP,Accounts payable,00827800,CITI PCARD-CLASSICLEANERS-LONGWOR
,DEMOCRATIC CAUCUS,2015Q4,OTHER SERVICES,12-21,CITI PCARD-CLASSICLEANERS-LONGWOR,10/29/15,11/28/15,LAUNDRY SERVICES,131.91,2015,AP,Accounts payable,00833251,CITI PCARD-CLASSICLEANERS-LONGWOR
,DEMOCRATIC CAUCUS,2015Q4,SUPPLIES AND MATERIALS,10-19,CITI PCARD-BETHESDA BAGELS OF DUP,08/29/15,09/28/15,FOOD & BEVERAGE,"1,232.68",2015,AP,Accounts payable,00822170,CITI PCARD-BETHESDA BAGELS OF DUP
,DEMOCRATIC CAUCUS,2015Q4,SUPPLIES AND MATERIALS,10-19,CITI PCARD-HARRIS TEETER,08/29/15,09/28/15,FOOD & BEVERAGE,"1,007.11",2015,AP,Accounts payable,00822170,CITI PCARD-HARRIS TEETER
,DEMOCRATIC CAUCUS,2015Q4,SUPPLIES AND MATERIALS,10-19,CITI PCARD-LA TIMES SUBSCRIPTION,08/29/15,09/28/15,PUBLICATIONS/REFERENCE MAT'L,11.96,2015,AP,Accounts payable,00822170,CITI PCARD-LA TIMES SUBSCRIPTION
,DEMOCRATIC CAUCUS,2015Q4,SUPPLIES AND MATERIALS,10-19,CITI PCARD-MAILCHIMP,08/29/15,09/28/15,PUBLICATIONS/REFERENCE MAT'L,35.00,2015,AP,Accounts payable,00822170,CITI PCARD-MAILCHIMP
,DEMOCRATIC CAUCUS,2015Q4,SUPPLIES AND MATERIALS,11-03,DEER PARK,09/30/15,09/30/15,WATER,29.99,2015,AP,Accounts payable,00822893,DEER PARK
,DEMOCRATIC CAUCUS,2015Q4,SUPPLIES AND MATERIALS,11-18,CQ ROLL CALL INC,10/28/15,01/31/17,PUBLICATIONS/REFERENCE MAT'L,"12,627.00",2015,AP,Accounts payable,E0341907,CQ ROLL CALL INC
,DEMOCRATIC CAUCUS,2015Q4,SUPPLIES AND MATERIALS,11-20,CITI PCARD-AUDIOBLOCKS.COM,10/01/15,10/28/15,PUBLICATIONS/REFERENCE MAT'L,99.00,2015,AP,Accounts payable,00827800,CITI PCARD-AUDIOBLOCKS.COM
,DEMOCRATIC CAUCUS,2015Q4,SUPPLIES AND MATERIALS,11-20,CITI PCARD-BETHESDA BAGELS OF DUP,09/29/15,09/30/15,FOOD & BEVERAGE,"1,821.97",2015,AP,Accounts payable,00827800,CITI PCARD-BETHESDA BAGELS OF DUP
,DEMOCRATIC CAUCUS,2015Q4,SUPPLIES AND MATERIALS,11-20,CITI PCARD-D J WALL-ST-JOURNAL,10/01/15,10/28/15,PUBLICATIONS/REFERENCE MAT'L,367.88,2015,AP,Accounts payable,00827800,CITI PCARD-D J WALL-ST-JOURNAL
,DEMOCRATIC CAUCUS,2015Q4,SUPPLIES AND MATERIALS,11-20,CITI PCARD-EL TAMARINDO RESTAURAN,10/01/15,10/28/15,FOOD & BEVERAGE,217.95,2015,AP,Accounts payable,00827800,CITI PCARD-EL TAMARINDO RESTAURAN
,DEMOCRATIC CAUCUS,2015Q4,SUPPLIES AND MATERIALS,11-20,CITI PCARD-HARRISTEETER,09/29/15,09/30/15,FOOD & BEVERAGE,436.56,2015,AP,Accounts payable,00827800,CITI PCARD-HARRISTEETER
,DEMOCRATIC CAUCUS,2015Q4,SUPPLIES AND MATERIALS,11-20,CITI PCARD-HARRISTEETER,10/01/15,10/28/15,FOOD & BEVERAGE,836.42,2015,AP,Accounts payable,00827800,CITI PCARD-HARRISTEETER
,DEMOCRATIC CAUCUS,2015Q4,SUPPLIES AND MATERIALS,11-20,CITI PCARD-LA TIMES SUBSCRIPTION,09/29/15,09/30/15,PUBLICATIONS/REFERENCE MAT'L,11.96,2015,AP,Accounts payable,00827800,CITI PCARD-LA TIMES SUBSCRIPTION
,DEMOCRATIC CAUCUS,2015Q4,SUPPLIES AND MATERIALS,11-20,CITI PCARD-MAILCHIMP,10/01/15,10/28/15,PUBLICATIONS/REFERENCE MAT'L,40.00,2015,AP,Accounts payable,00827800,CITI PCARD-MAILCHIMP
,DEMOCRATIC CAUCUS,2015Q4,SUPPLIES AND MATERIALS,12-10,POLITICO LLC,10/31/15,01/31/17,PUBLICATIONS/REFERENCE MAT'L,"22,400.00",2015,AP,Accounts payable,E0349420,POLITICO LLC
,DEMOCRATIC CAUCUS,2015Q4,SUPPLIES AND MATERIALS,12-15,DEER PARK,10/31/15,10/31/15,WATER,29.99,2015,AP,Accounts payable,00828708,DEER PARK
,DEMOCRATIC CAUCUS,2015Q4,SUPPLIES AND MATERIALS,12-18,DEER PARK,11/30/15,11/30/15,WATER,29.99,2015,AP,Accounts payable,00833027,DEER PARK
,DEMOCRATIC CAUCUS,2015Q4,SUPPLIES AND MATERIALS,12-21,CITI PCARD-BETHESDA BAGELS OF DUP,10/29/15,11/28/15,FOOD & BEVERAGE,"1,904.32",2015,AP,Accounts payable,00833251,CITI PCARD-BETHESDA BAGELS OF DUP
,DEMOCRATIC CAUCUS,2015Q4,SUPPLIES AND MATERIALS,12-21,CITI PCARD-FINANCIAL TIMES LTD,10/29/15,11/28/15,PUBLICATIONS/REFERENCE MAT'L,171.32,2015,AP,Accounts payable,00833251,CITI PCARD-FINANCIAL TIMES LTD
,DEMOCRATIC CAUCUS,2015Q4,SUPPLIES AND MATERIALS,12-21,CITI PCARD-HARRIS TEETER,10/29/15,11/28/15,FOOD & BEVERAGE,496.18,2015,AP,Accounts payable,00833251,CITI PCARD-HARRIS TEETER
,DEMOCRATIC CAUCUS,2015Q4,SUPPLIES AND MATERIALS,12-21,CITI PCARD-HEALTH AFFAIRS,10/29/15,11/28/15,PUBLICATIONS/REFERENCE MAT'L,60.00,2015,AP,Accounts payable,00833251,CITI PCARD-HEALTH AFFAIRS
,DEMOCRATIC CAUCUS,2015Q4,SUPPLIES AND MATERIALS,12-21,CITI PCARD-IN CATERING BY AVALON,10/29/15,11/28/15,FOOD & BEVERAGE,"2,740.32",2015,AP,Accounts payable,00833251,CITI PCARD-IN CATERING BY AVALON
,DEMOCRATIC CAUCUS,2015Q4,SUPPLIES AND MATERIALS,12-21,CITI PCARD-IWP NEWSLETTERS,10/29/15,11/28/15,PUBLICATIONS/REFERENCE MAT'L,"1,522.50",2015,AP,Accounts payable,00833251,CITI PCARD-IWP NEWSLETTERS
,DEMOCRATIC CAUCUS,2015Q4,SUPPLIES AND MATERIALS,12-21,CITI PCARD-LA TIMES SUBSCRIPTION,10/29/15,11/28/15,PUBLICATIONS/REFERENCE MAT'L,152.12,2015,AP,Accounts payable,00833251,CITI PCARD-LA TIMES SUBSCRIPTION
,DEMOCRATIC CAUCUS,2015Q4,SUPPLIES AND MATERIALS,12-21,CITI PCARD-LEADERSHIP DIRECTORIES,10/29/15,11/28/15,PUBLICATIONS/REFERENCE MAT'L,"1,270.00",2015,AP,Accounts payable,00833251,CITI PCARD-LEADERSHIP DIRECTORIES
,DEMOCRATIC CAUCUS,2015Q4,SUPPLIES AND MATERIALS,12-21,CITI PCARD-MAILCHIMP,10/29/15,11/28/15,PUBLICATIONS/REFERENCE MAT'L,40.00,2015,AP,Accounts payable,00833251,CITI PCARD-MAILCHIMP
,DEMOCRATIC CAUCUS,2015Q4,SUPPLIES AND MATERIALS,12-21,CITI PCARD-NYT TIMES E-BILLING,10/29/15,11/28/15,PUBLICATIONS/REFERENCE MAT'L,284.80,2015,AP,Accounts payable,00833251,CITI PCARD-NYT TIMES E-BILLING
,DEMOCRATIC CAUCUS,2015Q4,SUPPLIES AND MATERIALS,12-21,CITI PCARD-PAYPAL SUGAREXPERI,10/29/15,11/28/15,FOOD & BEVERAGE,"2,794.50",2015,AP,Accounts payable,00833251,CITI PCARD-PAYPAL SUGAREXPERI
,DEMOCRATIC CAUCUS,2015Q4,SUPPLIES AND MATERIALS,12-21,BLOOMBERG LP,01/01/16,01/31/17,PUBLICATIONS/REFERENCE MAT'L,"6,435.00",2015,AP,Accounts payable,E0349419,BLOOMBERG LP
,DEMOCRATIC CAUCUS,2015Q4,SUPPLIES AND MATERIALS,12-29,"PEREZ-SANCHEZ,NOEL",12/18/15,12/18/15,FOOD & BEVERAGE,905.62,2015,AP,Accounts payable,E0355890,"PEREZ-SANCHEZ,NOEL"
,REPUBLICAN CONFERENCE,2015Q4,PERSONNEL COMPENSATION,"","BUCHELI,DANIEL C",10/01/15,12/31/15,SPECIALTY MEDIA PRESS SECRETAR,"13,749.99",2015,"","","","BUCHELI,DANIEL C"
,REPUBLICAN CONFERENCE,2015Q4,PERSONNEL COMPENSATION,"","CROCKER,NICHOLAS L",10/01/15,12/31/15,MEMBER SERVICES COORDINATOR,"9,999.99",2015,"","","","CROCKER,NICHOLAS L"
,REPUBLICAN CONFERENCE,2015Q4,PERSONNEL COMPENSATION,"","DAINES,ANNE C",10/01/15,12/31/15,COMMUNICATIONS ASSISTANT,"8,124.99",2015,"","","","DAINES,ANNE C"
,REPUBLICAN CONFERENCE,2015Q4,PERSONNEL COMPENSATION,"","DEUTSCH,JEREMY",10/01/15,12/31/15,CHIEF OF STAFF,"30,000.00",2015,"","","","DEUTSCH,JEREMY"
,REPUBLICAN CONFERENCE,2015Q4,PERSONNEL COMPENSATION,"","DUPPLER,MARTHA C",10/01/15,12/31/15,COALITIONS DIRECTOR,"21,249.99",2015,"","","","DUPPLER,MARTHA C"
,REPUBLICAN CONFERENCE,2015Q4,PERSONNEL COMPENSATION,"","FIELD,IAN A",10/01/15,12/31/15,PRESS SECRETARY,"5,000.01",2015,"","","","FIELD,IAN A"
,REPUBLICAN CONFERENCE,2015Q4,PERSONNEL COMPENSATION,"","HALL, MIKAYLA M",10/01/15,12/31/15,SPEECH WRITER,"12,999.99",2015,"","","","HALL, MIKAYLA M"
,REPUBLICAN CONFERENCE,2015Q4,PERSONNEL COMPENSATION,"","HAUCK,KARA",12/12/15,12/31/15,COMMUNICATIONS DIRECTOR,"5,541.67",2015,"","","","HAUCK,KARA"
,REPUBLICAN CONFERENCE,2015Q4,PERSONNEL COMPENSATION,"","HODSON,NATHAN M",10/01/15,12/31/15,DEPUTY CHIEF OF STAFF,"36,249.99",2015,"","","","HODSON,NATHAN M"
,REPUBLICAN CONFERENCE,2015Q4,PERSONNEL COMPENSATION,"","MAGALLANES, NICOLAS",09/01/15,09/18/15,SENIOR ADVISOR,"-2,178.67",2015,"","","","MAGALLANES, NICOLAS"
,REPUBLICAN CONFERENCE,2015Q4,PERSONNEL COMPENSATION,"","MARK,REBECCA",10/01/15,12/31/15,SR. ADVISOR TECH POLICY/WOMEN,"17,499.99",2015,"","","","MARK,REBECCA"
,REPUBLICAN CONFERENCE,2015Q4,PERSONNEL COMPENSATION,"","MCMULLIN,DAVID E",10/01/15,12/31/15,POLICY DIRECTOR,"30,416.67",2015,"","","","MCMULLIN,DAVID E"
,REPUBLICAN CONFERENCE,2015Q4,PERSONNEL COMPENSATION,"","NEIGHBORS,MATTHEW P",10/01/15,12/31/15,STAFF ASSISTANT,"7,500.00",2015,"","","","NEIGHBORS,MATTHEW P"
,REPUBLICAN CONFERENCE,2015Q4,PERSONNEL COMPENSATION,"","PEREZ,MEGAN C",12/07/15,12/31/15,POLICY ADVISOR,"4,666.67",2015,"","","","PEREZ,MEGAN C"
,REPUBLICAN CONFERENCE,2015Q4,PERSONNEL COMPENSATION,"","ROGERS,SARAH E",10/01/15,12/31/15,DIRECTOR OF MEMBER SERVICES,"27,999.99",2015,"","","","ROGERS,SARAH E"
,REPUBLICAN CONFERENCE,2015Q4,PERSONNEL COMPENSATION,"","ROOS,AMBER E",10/01/15,12/31/15,FINANCE ASSISTANT,"2,250.00",2015,"","","","ROOS,AMBER E"
,REPUBLICAN CONFERENCE,2015Q4,PERSONNEL COMPENSATION,"","ROSS, JOHN E",10/01/15,12/31/15,FINANCE DIRECTOR,"3,249.99",2015,"","","","ROSS, JOHN E"
,REPUBLICAN CONFERENCE,2015Q4,PERSONNEL COMPENSATION,"","SMENTEK,DAVID",10/01/15,12/31/15,POLICY COORDINATOR,"11,250.00",2015,"","","","SMENTEK,DAVID"
,REPUBLICAN CONFERENCE,2015Q4,PERSONNEL COMPENSATION,"","STEVENS,PAMELA R",10/01/15,12/31/15,DIRECTOR OF MEDIA AFFAIRS,"32,874.99",2015,"","","","STEVENS,PAMELA R"
,REPUBLICAN CONFERENCE,2015Q4,PERSONNEL COMPENSATION,"","SUNDAY,JESSICA M",10/01/15,12/31/15,SCHEDULER,"8,589.99",2015,"","","","SUNDAY,JESSICA M"
,REPUBLICAN CONFERENCE,2015Q4,PERSONNEL COMPENSATION,"","THORNE,DRAY A",10/01/15,12/31/15,SYSTEMS ADMINISTRATOR,"3,000.00",2015,"","","","THORNE,DRAY A"
,REPUBLICAN CONFERENCE,2015Q4,TRAVEL,10-23,"DUPPLER, MARTHA C",04/16/15,04/18/15,PRIVATE AUTO MILEAGE,251.85,2015,AP,Accounts payable,E0333001,"DUPPLER, MARTHA C"
,REPUBLICAN CONFERENCE,2015Q4,TRAVEL,10-23,"DUPPLER, MARTHA C",01/05/15,09/30/15,TRAVEL SUBSISTENCE,364.80,2015,AP,Accounts payable,E0333001,"DUPPLER, MARTHA C"
,REPUBLICAN CONFERENCE,2015Q4,TRAVEL,11-20,CITI PCARD-UBER TECHNOLOGIES INC,10/01/15,10/28/15,TAXI/PARKING/TOLLS,57.78,2015,AP,Accounts payable,00827800,CITI PCARD-UBER TECHNOLOGIES INC
,REPUBLICAN CONFERENCE,2015Q4,TRAVEL,12-15,"STEVENS, PAMELA R",01/10/15,11/19/15,TAXI/PARKING/TOLLS,147.44,2015,AP,Accounts payable,E0351107,"STEVENS, PAMELA R"
,REPUBLICAN CONFERENCE,2015Q4,TRAVEL,12-21,CITI PCARD-UBER TECHNOLOGIES INC,10/29/15,11/28/15,TAXI/PARKING/TOLLS,173.84,2015,AP,Accounts payable,00833251,CITI PCARD-UBER TECHNOLOGIES INC
,REPUBLICAN CONFERENCE,2015Q4,PRINTING AND REPRODUCTION,10-14,ACCURATE WORD LLC,10/09/15,10/09/15,PRINTING & REPRODUCTION,39.95,2015,AP,Accounts payable,E0330767,ACCURATE WORD LLC
,REPUBLICAN CONFERENCE,2015Q4,PRINTING AND REPRODUCTION,10-19,CITI PCARD-GETTY IMAGES,08/29/15,09/28/15,PRINTING & REPRODUCTION,199.00,2015,AP,Accounts payable,00822170,CITI PCARD-GETTY IMAGES
,REPUBLICAN CONFERENCE,2015Q4,PRINTING AND REPRODUCTION,10-28,"",10/01/15,10/31/15,PHOTOGRAPHIC (TRANSFER),6.50,2015,GL,General ledger,PIX0053371,""
,REPUBLICAN CONFERENCE,2015Q4,PRINTING AND REPRODUCTION,11-12,SHARP ELECTRONICS CORPORATION,07/01/15,10/01/15,PRINTING & REPRODUCTION,173.16,2015,AP,Accounts payable,00823409,SHARP ELECTRONICS CORPORATION
,REPUBLICAN CONFERENCE,2015Q4,PRINTING AND REPRODUCTION,11-12,ACCURATE WORD LLC,10/09/15,10/09/15,PRINTING & REPRODUCTION,-39.95,2015,AP,Accounts payable,00823410,ACCURATE WORD LLC
,REPUBLICAN CONFERENCE,2015Q4,PRINTING AND REPRODUCTION,11-20,CITI PCARD-FA DIGITAL SOLUTIONS,10/01/15,10/28/15,PRINTING & REPRODUCTION,"1,350.00",2015,AP,Accounts payable,00827800,CITI PCARD-FA DIGITAL SOLUTIONS
,REPUBLICAN CONFERENCE,2015Q4,PRINTING AND REPRODUCTION,11-20,CITI PCARD-GETTY IMAGES,10/01/15,10/28/15,PRINTING & REPRODUCTION,199.00,2015,AP,Accounts payable,00827800,CITI PCARD-GETTY IMAGES
,REPUBLICAN CONFERENCE,2015Q4,PRINTING AND REPRODUCTION,12-21,CITI PCARD-GETTY IMAGES,10/29/15,11/28/15,PRINTING & REPRODUCTION,199.00,2015,AP,Accounts payable,00833251,CITI PCARD-GETTY IMAGES
,REPUBLICAN CONFERENCE,2015Q4,OTHER SERVICES,10-16,SEAN R PARNELL,08/31/15,08/31/15,CONSULTANT CONTRACT SERVICE,"4,150.00",2015,AP,Accounts payable,E0330758,SEAN R PARNELL
,REPUBLICAN CONFERENCE,2015Q4,OTHER SERVICES,11-09,HERBERT A COHEN,07/28/15,07/28/15,TRAINING,771.71,2015,AP,Accounts payable,E0337670,HERBERT A COHEN
,REPUBLICAN CONFERENCE,2015Q4,OTHER SERVICES,12-01,SEAN R PARNELL,09/01/15,10/31/15,CONSULTANT CONTRACT SERVICE,"8,300.00",2015,AP,Accounts payable,E0345431,SEAN R PARNELL
,REPUBLICAN CONFERENCE,2015Q4,OTHER SERVICES,12-22,DATAGRAPHICS LLC,12/01/15,12/31/15,TECHNOLOGY SERVICE CONTRACTS,"4,000.00",2015,AP,Accounts payable,E0353687,DATAGRAPHICS LLC
,REPUBLICAN CONFERENCE,2015Q4,SUPPLIES AND MATERIALS,10-02,ARAMARK REFRESHMENT SERVICES,10/01/15,10/31/15,FOOD & BEVERAGE,108.00,2015,AP,Accounts payable,E0325894,ARAMARK REFRESHMENT SERVICES
,REPUBLICAN CONFERENCE,2015Q4,SUPPLIES AND MATERIALS,10-07,HAGUE QUALITY WATER OF MD INC,10/01/15,10/31/15,WATER,63.00,2015,AP,Accounts payable,E0328012,HAGUE QUALITY WATER OF MD INC
,REPUBLICAN CONFERENCE,2015Q4,SUPPLIES AND MATERIALS,10-16,CAPITOL HOST,10/02/15,10/02/15,FOOD & BEVERAGE,319.76,2015,AP,Accounts payable,E0330759,CAPITOL HOST
,REPUBLICAN CONFERENCE,2015Q4,SUPPLIES AND MATERIALS,10-19,CITI PCARD-ADOBE CREATIVE CLOUD,08/29/15,09/28/15,SOFTWARE LESS THAN $500,370.07,2015,AP,Accounts payable,00822170,CITI PCARD-ADOBE CREATIVE CLOUD
,REPUBLICAN CONFERENCE,2015Q4,SUPPLIES AND MATERIALS,10-19,CITI PCARD-CHICK-FIL-A,08/29/15,09/28/15,FOOD & BEVERAGE,"2,326.38",2015,AP,Accounts payable,00822170,CITI PCARD-CHICK-FIL-A
,REPUBLICAN CONFERENCE,2015Q4,SUPPLIES AND MATERIALS,10-19,CITI PCARD-DT,08/29/15,09/28/15,FOOD & BEVERAGE,283.60,2015,AP,Accounts payable,00822170,CITI PCARD-DT
,REPUBLICAN CONFERENCE,2015Q4,SUPPLIES AND MATERIALS,10-19,CITI PCARD-NEW YORK TIMES DIGITAL,08/29/15,09/28/15,PUBLICATIONS/REFERENCE MAT'L,30.00,2015,AP,Accounts payable,00822170,CITI PCARD-NEW YORK TIMES DIGITAL
,REPUBLICAN CONFERENCE,2015Q4,SUPPLIES AND MATERIALS,10-19,CITI PCARD-PANERA BREAD,08/29/15,09/28/15,FOOD & BEVERAGE,558.97,2015,AP,Accounts payable,00822170,CITI PCARD-PANERA BREAD
,REPUBLICAN CONFERENCE,2015Q4,SUPPLIES AND MATERIALS,10-19,CITI PCARD-POTBELLY,08/29/15,09/28/15,FOOD & BEVERAGE,228.15,2015,AP,Accounts payable,00822170,CITI PCARD-POTBELLY
,REPUBLICAN CONFERENCE,2015Q4,SUPPLIES AND MATERIALS,10-19,CITI PCARD-QDOBA MEXICAN GRIL,08/29/15,09/28/15,FOOD & BEVERAGE,"2,727.98",2015,AP,Accounts payable,00822170,CITI PCARD-QDOBA MEXICAN GRIL
,REPUBLICAN CONFERENCE,2015Q4,SUPPLIES AND MATERIALS,10-19,CITI PCARD-SQ ZORBA'S CAFE,08/29/15,09/28/15,FOOD & BEVERAGE,369.00,2015,AP,Accounts payable,00822170,CITI PCARD-SQ ZORBA'S CAFE
,REPUBLICAN CONFERENCE,2015Q4,SUPPLIES AND MATERIALS,10-19,ARAMARK REFRESHMENT SERVICES,10/16/15,10/16/15,FOOD & BEVERAGE,"1,222.22",2015,AP,Accounts payable,E0331592,ARAMARK REFRESHMENT SERVICES
,REPUBLICAN CONFERENCE,2015Q4,SUPPLIES AND MATERIALS,10-19,ARAMARK REFRESHMENT SERVICES,10/16/15,10/16/15,FOOD & BEVERAGE,22.86,2015,AP,Accounts payable,E0331593,ARAMARK REFRESHMENT SERVICES
,REPUBLICAN CONFERENCE,2015Q4,SUPPLIES AND MATERIALS,10-19,"HODSON, NATHAN",10/16/15,10/16/15,FOOD & BEVERAGE,699.74,2015,AP,Accounts payable,E0331594,"HODSON, NATHAN"
,REPUBLICAN CONFERENCE,2015Q4,SUPPLIES AND MATERIALS,10-22,ARAMARK REFRESHMENT SERVICES,08/01/15,08/31/15,FOOD & BEVERAGE,108.00,2015,AP,Accounts payable,E0333000,ARAMARK REFRESHMENT SERVICES
,REPUBLICAN CONFERENCE,2015Q4,SUPPLIES AND MATERIALS,10-26,CAPITOL HOST,09/09/15,09/09/15,FOOD & BEVERAGE,834.00,2015,AP,Accounts payable,E0334034,CAPITOL HOST
,REPUBLICAN CONFERENCE,2015Q4,SUPPLIES AND MATERIALS,10-26,CAPITOL HOST,09/24/15,09/24/15,FOOD & BEVERAGE,862.50,2015,AP,Accounts payable,E0334035,CAPITOL HOST
,REPUBLICAN CONFERENCE,2015Q4,SUPPLIES AND MATERIALS,10-28,ARAMARK REFRESHMENT SERVICES,11/01/15,11/30/15,FOOD & BEVERAGE,108.00,2015,AP,Accounts payable,E0334907,ARAMARK REFRESHMENT SERVICES
,REPUBLICAN CONFERENCE,2015Q4,SUPPLIES AND MATERIALS,11-03,DEER PARK,09/30/15,09/30/15,WATER,386.57,2015,AP,Accounts payable,00822893,DEER PARK
,REPUBLICAN CONFERENCE,2015Q4,SUPPLIES AND MATERIALS,11-16,HAGUE QUALITY WATER OF MD INC,11/06/15,12/05/15,WATER,63.00,2015,AP,Accounts payable,E0340943,HAGUE QUALITY WATER OF MD INC
,REPUBLICAN CONFERENCE,2015Q4,SUPPLIES AND MATERIALS,11-17,ARAMARK REFRESHMENT SERVICES,11/13/15,11/13/15,FOOD & BEVERAGE,993.17,2015,AP,Accounts payable,E0340944,ARAMARK REFRESHMENT SERVICES
,REPUBLICAN CONFERENCE,2015Q4,SUPPLIES AND MATERIALS,11-18,"HODSON, NATHAN",11/13/15,11/13/15,FOOD & BEVERAGE,687.46,2015,AP,Accounts payable,E0342081,"HODSON, NATHAN"
,REPUBLICAN CONFERENCE,2015Q4,SUPPLIES AND MATERIALS,11-20,CITI PCARD-ADOBE CREATIVE CLOUD,10/01/15,10/28/15,SOFTWARE LESS THAN $500,370.07,2015,AP,Accounts payable,00827800,CITI PCARD-ADOBE CREATIVE CLOUD
,REPUBLICAN CONFERENCE,2015Q4,SUPPLIES AND MATERIALS,11-20,CITI PCARD-APL ITUNES.COM/BILL,10/01/15,10/28/15,SOFTWARE LESS THAN $500,2.99,2015,AP,Accounts payable,00827800,CITI PCARD-APL ITUNES.COM/BILL
,REPUBLICAN CONFERENCE,2015Q4,SUPPLIES AND MATERIALS,11-20,CITI PCARD-CARMINE'S,10/01/15,10/28/15,FOOD & BEVERAGE,"2,901.40",2015,AP,Accounts payable,00827800,CITI PCARD-CARMINE'S
,REPUBLICAN CONFERENCE,2015Q4,SUPPLIES AND MATERIALS,11-20,CITI PCARD-CHICK-FIL-A,09/29/15,09/30/15,FOOD & BEVERAGE,"1,785.50",2015,AP,Accounts payable,00827800,CITI PCARD-CHICK-FIL-A
,REPUBLICAN CONFERENCE,2015Q4,SUPPLIES AND MATERIALS,11-20,CITI PCARD-CHICK-FIL-A,10/01/15,10/28/15,FOOD & BEVERAGE,"3,435.00",2015,AP,Accounts payable,00827800,CITI PCARD-CHICK-FIL-A
,REPUBLICAN CONFERENCE,2015Q4,SUPPLIES AND MATERIALS,11-20,CITI PCARD-CORNER BAKERY,10/01/15,10/28/15,FOOD & BEVERAGE,"5,244.70",2015,AP,Accounts payable,00827800,CITI PCARD-CORNER BAKERY
,REPUBLICAN CONFERENCE,2015Q4,SUPPLIES AND MATERIALS,11-20,CITI PCARD-FS GLOBAL DELIGHT,10/01/15,10/28/15,SOFTWARE LESS THAN $500,54.99,2015,AP,Accounts payable,00827800,CITI PCARD-FS GLOBAL DELIGHT
,REPUBLICAN CONFERENCE,2015Q4,SUPPLIES AND MATERIALS,11-20,CITI PCARD-NEW YORK TIMES DIGITAL,10/01/15,10/28/15,PUBLICATIONS/REFERENCE MAT'L,15.00,2015,AP,Accounts payable,00827800,CITI PCARD-NEW YORK TIMES DIGITAL
,REPUBLICAN CONFERENCE,2015Q4,SUPPLIES AND MATERIALS,11-20,CITI PCARD-PANERA BREAD,10/01/15,10/28/15,FOOD & BEVERAGE,"1,236.15",2015,AP,Accounts payable,00827800,CITI PCARD-PANERA BREAD
,REPUBLICAN CONFERENCE,2015Q4,SUPPLIES AND MATERIALS,11-20,CITI PCARD-POTBELLY,10/01/15,10/28/15,FOOD & BEVERAGE,150.20,2015,AP,Accounts payable,00827800,CITI PCARD-POTBELLY
,REPUBLICAN CONFERENCE,2015Q4,SUPPLIES AND MATERIALS,11-20,CITI PCARD-QDOBA MEXICAN GRIL,09/29/15,09/30/15,FOOD & BEVERAGE,"2,211.21",2015,AP,Accounts payable,00827800,CITI PCARD-QDOBA MEXICAN GRIL
,REPUBLICAN CONFERENCE,2015Q4,SUPPLIES AND MATERIALS,11-20,CITI PCARD-QDOBA MEXICAN GRIL,10/01/15,10/28/15,FOOD & BEVERAGE,239.13,2015,AP,Accounts payable,00827800,CITI PCARD-QDOBA MEXICAN GRIL
,REPUBLICAN CONFERENCE,2015Q4,SUPPLIES AND MATERIALS,11-20,CITI PCARD-SAFEWAY STORE,10/01/15,10/28/15,FOOD & BEVERAGE,32.10,2015,AP,Accounts payable,00827800,CITI PCARD-SAFEWAY STORE
,REPUBLICAN CONFERENCE,2015Q4,SUPPLIES AND MATERIALS,11-20,CITI PCARD-SQ BBQ BUS CATERING,10/01/15,10/28/15,FOOD & BEVERAGE,"2,613.00",2015,AP,Accounts payable,00827800,CITI PCARD-SQ BBQ BUS CATERING
,REPUBLICAN CONFERENCE,2015Q4,SUPPLIES AND MATERIALS,11-20,CITI PCARD-SQ ZORBA'S CAFE,10/01/15,10/28/15,FOOD & BEVERAGE,369.00,2015,AP,Accounts payable,00827800,CITI PCARD-SQ ZORBA'S CAFE
,REPUBLICAN CONFERENCE,2015Q4,SUPPLIES AND MATERIALS,11-20,CITI PCARD-TME TIME MAGAZINE,10/01/15,10/28/15,PUBLICATIONS/REFERENCE MAT'L,42.30,2015,AP,Accounts payable,00827800,CITI PCARD-TME TIME MAGAZINE
,REPUBLICAN CONFERENCE,2015Q4,SUPPLIES AND MATERIALS,11-20,CITI PCARD-VSC VISUAL SUPPLY CO,10/01/15,10/28/15,SOFTWARE LESS THAN $500,89.25,2015,AP,Accounts payable,00827800,CITI PCARD-VSC VISUAL SUPPLY CO
,REPUBLICAN CONFERENCE,2015Q4,SUPPLIES AND MATERIALS,11-20,CITI PCARD-ZORBA'S CAFE,09/29/15,09/30/15,FOOD & BEVERAGE,369.00,2015,AP,Accounts payable,00827800,CITI PCARD-ZORBA'S CAFE
,REPUBLICAN CONFERENCE,2015Q4,SUPPLIES AND MATERIALS,12-07,ARAMARK REFRESHMENT SERVICES,12/01/15,12/31/15,FOOD & BEVERAGE,108.00,2015,AP,Accounts payable,E0346889,ARAMARK REFRESHMENT SERVICES
,REPUBLICAN CONFERENCE,2015Q4,SUPPLIES AND MATERIALS,12-09,HAGUE QUALITY WATER OF MD INC,11/06/15,12/06/15,WATER,63.00,2015,AP,Accounts payable,E0349396,HAGUE QUALITY WATER OF MD INC
,REPUBLICAN CONFERENCE,2015Q4,SUPPLIES AND MATERIALS,12-15,DEER PARK,10/31/15,10/31/15,WATER,532.38,2015,AP,Accounts payable,00828708,DEER PARK
,REPUBLICAN CONFERENCE,2015Q4,SUPPLIES AND MATERIALS,12-15,"STEVENS, PAMELA R",08/23/15,10/06/15,PUBLICATIONS/REFERENCE MAT'L,16.84,2015,AP,Accounts payable,E0351107,"STEVENS, PAMELA R"
,REPUBLICAN CONFERENCE,2015Q4,SUPPLIES AND MATERIALS,12-17,ARAMARK REFRESHMENT SERVICES,12/14/15,12/14/15,FOOD & BEVERAGE,"1,185.16",2015,AP,Accounts payable,E0352503,ARAMARK REFRESHMENT SERVICES
,REPUBLICAN CONFERENCE,2015Q4,SUPPLIES AND MATERIALS,12-17,"CROCKER, NICHOLAS L",12/08/15,12/08/15,HABITATION EXPENSE,31.04,2015,AP,Accounts payable,E0352504,"CROCKER, NICHOLAS L"
,REPUBLICAN CONFERENCE,2015Q4,SUPPLIES AND MATERIALS,12-18,DEER PARK,11/30/15,11/30/15,WATER,323.64,2015,AP,Accounts payable,00833027,DEER PARK
,REPUBLICAN CONFERENCE,2015Q4,SUPPLIES AND MATERIALS,12-21,CITI PCARD-ADOBE CREATIVE CLOUD,10/29/15,11/28/15,SOFTWARE LESS THAN $500,370.07,2015,AP,Accounts payable,00833251,CITI PCARD-ADOBE CREATIVE CLOUD
,REPUBLICAN CONFERENCE,2015Q4,SUPPLIES AND MATERIALS,12-21,CITI PCARD-CHICK-FIL-A,10/29/15,11/28/15,FOOD & BEVERAGE,"2,896.83",2015,AP,Accounts payable,00833251,CITI PCARD-CHICK-FIL-A
,REPUBLICAN CONFERENCE,2015Q4,SUPPLIES AND MATERIALS,12-21,CITI PCARD-CORNER BAKERY,10/29/15,11/28/15,FOOD & BEVERAGE,"4,364.04",2015,AP,Accounts payable,00833251,CITI PCARD-CORNER BAKERY
,REPUBLICAN CONFERENCE,2015Q4,SUPPLIES AND MATERIALS,12-21,CITI PCARD-GIANT,10/29/15,11/28/15,FOOD & BEVERAGE,36.97,2015,AP,Accounts payable,00833251,CITI PCARD-GIANT
,REPUBLICAN CONFERENCE,2015Q4,SUPPLIES AND MATERIALS,12-21,CITI PCARD-LE BON CAFE AND SPLEND,10/29/15,11/28/15,FOOD & BEVERAGE,445.50,2015,AP,Accounts payable,00833251,CITI PCARD-LE BON CAFE AND SPLEND
,REPUBLICAN CONFERENCE,2015Q4,SUPPLIES AND MATERIALS,12-21,CITI PCARD-NEW YORK TIMES DIGITAL,10/29/15,11/28/15,PUBLICATIONS/REFERENCE MAT'L,15.00,2015,AP,Accounts payable,00833251,CITI PCARD-NEW YORK TIMES DIGITAL
,REPUBLICAN CONFERENCE,2015Q4,SUPPLIES AND MATERIALS,12-21,CITI PCARD-QDOBA MEXICAN GRIL,10/29/15,11/28/15,FOOD & BEVERAGE,547.63,2015,AP,Accounts payable,00833251,CITI PCARD-QDOBA MEXICAN GRIL
,REPUBLICAN CONFERENCE,2015Q4,SUPPLIES AND MATERIALS,12-21,CITI PCARD-SQ ZORBA'S CAFE,10/29/15,11/28/15,FOOD & BEVERAGE,356.40,2015,AP,Accounts payable,00833251,CITI PCARD-SQ ZORBA'S CAFE
,REPUBLICAN CONFERENCE,2015Q4,SUPPLIES AND MATERIALS,12-21,CITI PCARD-THE SWISS BAKERY,10/29/15,11/28/15,FOOD & BEVERAGE,131.20,2015,AP,Accounts payable,00833251,CITI PCARD-THE SWISS BAKERY
,REPUBLICAN CONFERENCE,2015Q4,SUPPLIES AND MATERIALS,12-21,CITI PCARD-TRYCAVIAR.COM THE BBQ,10/29/15,11/28/15,FOOD & BEVERAGE,373.19,2015,AP,Accounts payable,00833251,CITI PCARD-TRYCAVIAR.COM THE BBQ
,CHIEF ADMIN OFCR OF THE HOUSE,2015Q4,EQUIPMENT,12-22,DELL MARKETING LP,11/13/15,11/13/15,MAINTENANCE / REPAIRS,"2,101,558.18",FISCAL YEAR 2016,AP,Accounts payable,00833282,DELL MARKETING LP
,CHIEF ADMIN OFCR OF THE HOUSE,2015Q4,PERSONNEL COMPENSATION,"","ABBOTT, JESSICA A",10/01/15,12/31/15,FINANCIAL ANALYST,"32,712.00",FISCAL YEAR 2016,"","","","ABBOTT, JESSICA A"
,CHIEF ADMIN OFCR OF THE HOUSE,2015Q4,PERSONNEL COMPENSATION,"","ABEL, TIMOTHY",10/01/15,12/31/15,SR TECHNICAL SUPPORT REP (A),"24,368.49",FISCAL YEAR 2016,"","","","ABEL, TIMOTHY"
,CHIEF ADMIN OFCR OF THE HOUSE,2015Q4,PERSONNEL COMPENSATION,"","ACUESTA,JULY J",10/01/15,12/31/15,SENIOR SYSTEMS ENGINEER,"27,988.26",FISCAL YEAR 2016,"","","","ACUESTA,JULY J"
,CHIEF ADMIN OFCR OF THE HOUSE,2015Q4,PERSONNEL COMPENSATION,"","ADDISON, TRACY",10/01/15,12/31/15,LOGISTICS & DIST SPEC (A),"11,799.99",FISCAL YEAR 2016,"","","","ADDISON, TRACY"
,CHIEF ADMIN OFCR OF THE HOUSE,2015Q4,PERSONNEL COMPENSATION,"","ADELAKUN, DEEN A",10/01/15,12/31/15,SR TECH SOLUTIONS ENGINEER,"23,004.24",FISCAL YEAR 2016,"","","","ADELAKUN, DEEN A"
,CHIEF ADMIN OFCR OF THE HOUSE,2015Q4,PERSONNEL COMPENSATION,"","ADENIJI,ADERONKE F",10/01/15,12/31/15,TEAM LEAD ASSURANCE &RISK MGMT,"33,276.99",FISCAL YEAR 2016,"","","","ADENIJI,ADERONKE F"
,CHIEF ADMIN OFCR OF THE HOUSE,2015Q4,PERSONNEL COMPENSATION,"","AGEE, MATTHEW P",10/01/15,12/31/15,RESOURCE MANAGER,"31,582.50",FISCAL YEAR 2016,"","","","AGEE, MATTHEW P"
,CHIEF ADMIN OFCR OF THE HOUSE,2015Q4,PERSONNEL COMPENSATION,"","AGEE, TINA M",10/01/15,12/09/15,DIRECTOR PHOTOGRAPHY,"21,457.66",FISCAL YEAR 2016,"","","","AGEE, TINA M"
,CHIEF ADMIN OFCR OF THE HOUSE,2015Q4,PERSONNEL COMPENSATION,"","AGNEW, ROSE M",10/01/15,12/31/15,SR PAYROLL & BENS GENERALIST,"20,732.25",FISCAL YEAR 2016,"","","","AGNEW, ROSE M"
,CHIEF ADMIN OFCR OF THE HOUSE,2015Q4,PERSONNEL COMPENSATION,"","AGNEW, ROSE M",11/01/15,11/30/15,SR PAYROLL & BENS GENERALIST (OVERTIME),991.95,FISCAL YEAR 2016,"","","","AGNEW, ROSE M"
,CHIEF ADMIN OFCR OF THE HOUSE,2015Q4,PERSONNEL COMPENSATION,"","AHUJA, KALPANA A",10/01/15,12/31/15,DIRECTOR WEB SYSTEMS,"33,372.24",FISCAL YEAR 2016,"","","","AHUJA, KALPANA A"
,CHIEF ADMIN OFCR OF THE HOUSE,2015Q4,PERSONNEL COMPENSATION,"","ALBERS,BARBARA V",10/01/15,12/31/15,MANAGER WEB SERVICES,"31,016.25",FISCAL YEAR 2016,"","","","ALBERS,BARBARA V"
,CHIEF ADMIN OFCR OF THE HOUSE,2015Q4,PERSONNEL COMPENSATION,"","ALEXANDER, GORDON",10/01/15,12/31/15,TECH SOLUTIONS ENGINEER,"18,487.74",FISCAL YEAR 2016,"","","","ALEXANDER, GORDON"
,CHIEF ADMIN OFCR OF THE HOUSE,2015Q4,PERSONNEL COMPENSATION,"","ALLEN,STEPHANIE D",11/02/15,12/31/15,ADMINISTRATIVE SPECIALIST,"7,257.33",FISCAL YEAR 2016,"","","","ALLEN,STEPHANIE D"
,CHIEF ADMIN OFCR OF THE HOUSE,2015Q4,PERSONNEL COMPENSATION,"","ALLISON, KEVIN M",10/01/15,12/31/15,LOGISTICS & DIST SPEC (A),"13,775.01",FISCAL YEAR 2016,"","","","ALLISON, KEVIN M"
,CHIEF ADMIN OFCR OF THE HOUSE,2015Q4,PERSONNEL COMPENSATION,"","ALSTON,MARK A",10/01/15,12/31/15,TECH SOLUTIONS ENGINEER,"18,092.25",FISCAL YEAR 2016,"","","","ALSTON,MARK A"
,CHIEF ADMIN OFCR OF THE HOUSE,2015Q4,PERSONNEL COMPENSATION,"","ALVEY, LISA M",10/01/15,12/31/15,FINANCIAL COUNSELOR,"21,092.49",FISCAL YEAR 2016,"","","","ALVEY, LISA M"
,CHIEF ADMIN OFCR OF THE HOUSE,2015Q4,PERSONNEL COMPENSATION,"","ANDERSEN, FREDERIC E",10/01/15,12/31/15,ASSISTANT DIRECTOR,"23,004.24",FISCAL YEAR 2016,"","","","ANDERSEN, FREDERIC E"
,CHIEF ADMIN OFCR OF THE HOUSE,2015Q4,PERSONNEL COMPENSATION,"","ANDERSON, DONTRELL",10/01/15,12/31/15,FINANCIAL COUNSELOR,"16,902.24",FISCAL YEAR 2016,"","","","ANDERSON, DONTRELL"
,CHIEF ADMIN OFCR OF THE HOUSE,2015Q4,PERSONNEL COMPENSATION,"","ANDREWS,THOMAS",10/01/15,12/31/15,VOICE & VIDEO BRANCH MGR (A),"34,620.51",FISCAL YEAR 2016,"","","","ANDREWS,THOMAS"
,CHIEF ADMIN OFCR OF THE HOUSE,2015Q4,PERSONNEL COMPENSATION,"","ANDREWS-MOBLEY, RACHELLE G",10/01/15,12/31/15,PRINCIPAL TECHNICAL TRAINER,"26,953.74",FISCAL YEAR 2016,"","","","ANDREWS-MOBLEY, RACHELLE G"
,CHIEF ADMIN OFCR OF THE HOUSE,2015Q4,PERSONNEL COMPENSATION,"","ARMSTRONG,JANCIERA C",10/01/15,12/31/15,"MANAGER, ACCOUNTING","27,469.74",FISCAL YEAR 2016,"","","","ARMSTRONG,JANCIERA C"
,CHIEF ADMIN OFCR OF THE HOUSE,2015Q4,PERSONNEL COMPENSATION,"","ARTHUR, CAMILLA S",10/01/15,12/31/15,ASSISTANT CAO,"41,778.99",FISCAL YEAR 2016,"","","","ARTHUR, CAMILLA S"
,CHIEF ADMIN OFCR OF THE HOUSE,2015Q4,PERSONNEL COMPENSATION,"","ASATA,HEATHER O",10/01/15,12/31/15,ADMINISTRATIVE SPECIALIST,"14,086.74",FISCAL YEAR 2016,"","","","ASATA,HEATHER O"
,CHIEF ADMIN OFCR OF THE HOUSE,2015Q4,PERSONNEL COMPENSATION,"","ATCHISON, DARRYL A",10/01/15,12/31/15,DEPUTY CHIEF ENGINEER,"32,145.99",FISCAL YEAR 2016,"","","","ATCHISON, DARRYL A"
,CHIEF ADMIN OFCR OF THE HOUSE,2015Q4,PERSONNEL COMPENSATION,"","AWAN, OMAR",10/01/15,12/31/15,SR BUSINESS PROCESS APPL SPEC,"36,494.49",FISCAL YEAR 2016,"","","","AWAN, OMAR"
,CHIEF ADMIN OFCR OF THE HOUSE,2015Q4,PERSONNEL COMPENSATION,"","BAHAM,TODD",10/01/15,12/31/15,BROADCAST PRODUCTION TECHNICIA,"19,494.75",FISCAL YEAR 2016,"","","","BAHAM,TODD"
,CHIEF ADMIN OFCR OF THE HOUSE,2015Q4,PERSONNEL COMPENSATION,"","BAHAM,TODD",10/01/15,11/30/15,BROADCAST PRODUCTION TECHNICIA (OVERTIME),"1,433.97",FISCAL YEAR 2016,"","","","BAHAM,TODD"
,CHIEF ADMIN OFCR OF THE HOUSE,2015Q4,PERSONNEL COMPENSATION,"","BAILEY, DAVID E",10/01/15,12/31/15,SR TECHNICAL SUPPORT REP (A),"25,275.24",FISCAL YEAR 2016,"","","","BAILEY, DAVID E"
,CHIEF ADMIN OFCR OF THE HOUSE,2015Q4,PERSONNEL COMPENSATION,"","BAKER, DARRELL F",10/01/15,12/31/15,SR NETWORK COMM SPEC,"26,433.75",FISCAL YEAR 2016,"","","","BAKER, DARRELL F"
,CHIEF ADMIN OFCR OF THE HOUSE,2015Q4,PERSONNEL COMPENSATION,"","BANFIELD,KELLI C",10/01/15,12/31/15,BROADCAST ENGINEER/PROD SPEC,"22,098.51",FISCAL YEAR 2016,"","","","BANFIELD,KELLI C"
,CHIEF ADMIN OFCR OF THE HOUSE,2015Q4,PERSONNEL COMPENSATION,"","BANKS,BIANCA N",10/01/15,12/31/15,RETAIL INVENTORY SPECIALIST,"17,298.00",FISCAL YEAR 2016,"","","","BANKS,BIANCA N"
,CHIEF ADMIN OFCR OF THE HOUSE,2015Q4,PERSONNEL COMPENSATION,"","BARBEE, GLENN",10/01/15,12/31/15,NETWORK TECHNICIAN,"22,702.24",FISCAL YEAR 2016,"","","","BARBEE, GLENN"
,CHIEF ADMIN OFCR OF THE HOUSE,2015Q4,PERSONNEL COMPENSATION,"","BARBEE,DONELL G",10/01/15,12/31/15,RETAIL INVENTORY SPECIALIST,"10,599.99",FISCAL YEAR 2016,"","","","BARBEE,DONELL G"
,CHIEF ADMIN OFCR OF THE HOUSE,2015Q4,PERSONNEL COMPENSATION,"","BARBOUR, JUNE M",10/01/15,12/31/15,BROADCAST PRODUCTION TECHNICIA,"19,494.75",FISCAL YEAR 2016,"","","","BARBOUR, JUNE M"
,CHIEF ADMIN OFCR OF THE HOUSE,2015Q4,PERSONNEL COMPENSATION,"","BARBOUR, JUNE M",10/01/15,10/31/15,BROADCAST PRODUCTION TECHNICIA (OVERTIME),112.47,FISCAL YEAR 2016,"","","","BARBOUR, JUNE M"
,CHIEF ADMIN OFCR OF THE HOUSE,2015Q4,PERSONNEL COMPENSATION,"","BARCINIAK, DANA L",10/01/15,12/31/15,SENIOR PHOTOGRAPHER,"22,293.24",FISCAL YEAR 2016,"","","","BARCINIAK, DANA L"
,CHIEF ADMIN OFCR OF THE HOUSE,2015Q4,PERSONNEL COMPENSATION,"","BAREFOOT,JEFFREY",10/01/15,12/31/15,BROADCAST ENGINEER/PROD SPEC,"20,276.76",FISCAL YEAR 2016,"","","","BAREFOOT,JEFFREY"
,CHIEF ADMIN OFCR OF THE HOUSE,2015Q4,PERSONNEL COMPENSATION,"","BAREFOOT,JEFFREY",10/01/15,10/31/15,BROADCAST ENGINEER/PROD SPEC. (OVERTIME),29.24,FISCAL YEAR 2016,"","","","BAREFOOT,JEFFREY"
,CHIEF ADMIN OFCR OF THE HOUSE,2015Q4,PERSONNEL COMPENSATION,"","BARNABAE, MONICA M",10/01/15,12/31/15,DIRECTOR-HOUSE CHILD CARE CNTR,"27,988.26",FISCAL YEAR 2016,"","","","BARNABAE, MONICA M"
,CHIEF ADMIN OFCR OF THE HOUSE,2015Q4,PERSONNEL COMPENSATION,"","BARR,PAUL",10/01/15,12/31/15,RECEIVING/WAREHOUSE SPECIALIST,"12,359.01",FISCAL YEAR 2016,"","","","BARR,PAUL"
,CHIEF ADMIN OFCR OF THE HOUSE,2015Q4,PERSONNEL COMPENSATION,"","BARRETT, ROBERT R",10/01/15,12/31/15,"DIRECTOR, ENTERPRISE APPLICATI","37,315.33",FISCAL YEAR 2016,"","","","BARRETT, ROBERT R"
,CHIEF ADMIN OFCR OF THE HOUSE,2015Q4,PERSONNEL COMPENSATION,"","BARTON,TISHA R",10/01/15,12/31/15,EXECUTIVE ASSISTANT,"17,897.25",FISCAL YEAR 2016,"","","","BARTON,TISHA R"
,CHIEF ADMIN OFCR OF THE HOUSE,2015Q4,PERSONNEL COMPENSATION,"","BASILIO, TYRONE A",10/01/15,12/31/15,TECHNICAL SUPPORT REP,"20,294.76",FISCAL YEAR 2016,"","","","BASILIO, TYRONE A"
,CHIEF ADMIN OFCR OF THE HOUSE,2015Q4,PERSONNEL COMPENSATION,"","BATES, DEBORAH A",10/01/15,12/31/15,PRODUCTION/ENGINEER SPEC (TEMP,"13,429.41",FISCAL YEAR 2016,"","","","BATES, DEBORAH A"
,CHIEF ADMIN OFCR OF THE HOUSE,2015Q4,PERSONNEL COMPENSATION,"","BATH,GEORGE J",10/01/15,12/31/15,SENIOR ADVISOR,"42,102.75",FISCAL YEAR 2016,"","","","BATH,GEORGE J"
,CHIEF ADMIN OFCR OF THE HOUSE,2015Q4,PERSONNEL COMPENSATION,"","BEAUBIAN, TRACI R",10/01/15,12/31/15,CHIEF FINANCIAL OFFICER,"42,102.75",FISCAL YEAR 2016,"","","","BEAUBIAN, TRACI R"
,CHIEF ADMIN OFCR OF THE HOUSE,2015Q4,PERSONNEL COMPENSATION,"","BEIDEL, BERNARD E",10/01/15,12/31/15,"DIR, OFFICE OF EMPLOYEE ASSIST","42,102.75",FISCAL YEAR 2016,"","","","BEIDEL, BERNARD E"
,CHIEF ADMIN OFCR OF THE HOUSE,2015Q4,PERSONNEL COMPENSATION,"","BELL,FRANK E",10/01/15,12/31/15,SENIOR TECHNICAL ADVISOR,"34,411.34",FISCAL YEAR 2016,"","","","BELL,FRANK E"
,CHIEF ADMIN OFCR OF THE HOUSE,2015Q4,PERSONNEL COMPENSATION,"","BENN, PHILLIP F",10/01/15,12/31/15,ELECTRONICS TECHNICIAN (A),"23,460.75",FISCAL YEAR 2016,"","","","BENN, PHILLIP F"
,CHIEF ADMIN OFCR OF THE HOUSE,2015Q4,PERSONNEL COMPENSATION,"","BENN, PHILLIP F",10/01/15,11/30/15,ELECTRONICS TECHNICIAN (A) (OVERTIME),457.03,FISCAL YEAR 2016,"","","","BENN, PHILLIP F"
,CHIEF ADMIN OFCR OF THE HOUSE,2015Q4,PERSONNEL COMPENSATION,"","BERGER, DONALD W",10/01/15,12/31/15,TECHNICAL DIRECTOR (A),"23,267.25",FISCAL YEAR 2016,"","","","BERGER, DONALD W"
,CHIEF ADMIN OFCR OF THE HOUSE,2015Q4,PERSONNEL COMPENSATION,"","BERGER, DONALD W",10/01/15,11/30/15,TECHNICAL DIRECTOR (A) (OVERTIME),44.74,FISCAL YEAR 2016,"","","","BERGER, DONALD W"
,CHIEF ADMIN OFCR OF THE HOUSE,2015Q4,PERSONNEL COMPENSATION,"","BERRY,JOSEPH B",10/01/15,12/31/15,SYSTEMS ENGINEER,"22,551.24",FISCAL YEAR 2016,"","","","BERRY,JOSEPH B"
,CHIEF ADMIN OFCR OF THE HOUSE,2015Q4,PERSONNEL COMPENSATION,"","BEST, CHARLENE",10/01/15,12/31/15,MANAGER,"24,180.99",FISCAL YEAR 2016,"","","","BEST, CHARLENE"
,CHIEF ADMIN OFCR OF THE HOUSE,2015Q4,PERSONNEL COMPENSATION,"","BETHEA,LASHON L",10/01/15,12/31/15,TECHNICAL TRAINER,"25,548.00",FISCAL YEAR 2016,"","","","BETHEA,LASHON L"
,CHIEF ADMIN OFCR OF THE HOUSE,2015Q4,PERSONNEL COMPENSATION,"","BILLARD, MICHAEL A",10/01/15,12/31/15,COMMUNICATIONS SPEC,"25,548.00",FISCAL YEAR 2016,"","","","BILLARD, MICHAEL A"
,CHIEF ADMIN OFCR OF THE HOUSE,2015Q4,PERSONNEL COMPENSATION,"","BILLUPS, BRIAN E",10/01/15,12/31/15,NETWORK TECHNICIAN (A),"19,894.50",FISCAL YEAR 2016,"","","","BILLUPS, BRIAN E"
,CHIEF ADMIN OFCR OF THE HOUSE,2015Q4,PERSONNEL COMPENSATION,"","BLAKNEY, HAROLD",10/01/15,12/31/15,SENIOR SYSTEMS ENGINEER,"38,369.49",FISCAL YEAR 2016,"","","","BLAKNEY, HAROLD"
,CHIEF ADMIN OFCR OF THE HOUSE,2015Q4,PERSONNEL COMPENSATION,"","BOGAN, DAVID S",10/01/15,12/31/15,"SUPERVISOR, RETAIL INVENTORY","20,161.34",FISCAL YEAR 2016,"","","","BOGAN, DAVID S"
,CHIEF ADMIN OFCR OF THE HOUSE,2015Q4,PERSONNEL COMPENSATION,"","BOGER, KELLY M",10/01/15,12/31/15,ACCOUNT MANAGEMENT COUNSELOR,"20,294.76",FISCAL YEAR 2016,"","","","BOGER, KELLY M"
,CHIEF ADMIN OFCR OF THE HOUSE,2015Q4,PERSONNEL COMPENSATION,"","BOGER, KELLY M",10/01/15,10/31/15,ACCOUNT MANAGEMENT COUNSELOR (OVERTIME),858.61,FISCAL YEAR 2016,"","","","BOGER, KELLY M"
,CHIEF ADMIN OFCR OF THE HOUSE,2015Q4,PERSONNEL COMPENSATION,"","BOLDIG, CHRISTOPHER R",10/07/15,12/31/15,ASSOCIATE ADMIN. COUNSEL,"28,423.73",FISCAL YEAR 2016,"","","","BOLDIG, CHRISTOPHER R"
,CHIEF ADMIN OFCR OF THE HOUSE,2015Q4,PERSONNEL COMPENSATION,"","BOOKER, CARLOS",10/01/15,12/31/15,SALES SPECIALIST,"10,599.99",FISCAL YEAR 2016,"","","","BOOKER, CARLOS"
,CHIEF ADMIN OFCR OF THE HOUSE,2015Q4,PERSONNEL COMPENSATION,"","BOONE, RUSSELL",10/01/15,12/31/15,TECHNICAL SUPPORT REP,"22,293.24",FISCAL YEAR 2016,"","","","BOONE, RUSSELL"
,CHIEF ADMIN OFCR OF THE HOUSE,2015Q4,PERSONNEL COMPENSATION,"","BOWERS,KAREN L",10/01/15,12/31/15,FINANCIAL COUNSELOR,"19,761.25",FISCAL YEAR 2016,"","","","BOWERS,KAREN L"
,CHIEF ADMIN OFCR OF THE HOUSE,2015Q4,PERSONNEL COMPENSATION,"","BOWLDING, SONIA R",10/01/15,12/31/15,REC/WAREHOUSE SPEC (A),"11,500.50",FISCAL YEAR 2016,"","","","BOWLDING, SONIA R"
,CHIEF ADMIN OFCR OF THE HOUSE,2015Q4,PERSONNEL COMPENSATION,"","BOWLES, JAMES A",10/01/15,12/31/15,JOURNEYMAN FURNITURE SPEC,"20,076.00",FISCAL YEAR 2016,"","","","BOWLES, JAMES A"
,CHIEF ADMIN OFCR OF THE HOUSE,2015Q4,PERSONNEL COMPENSATION,"","BOWLING-STOKES,CHAUNETTE L",10/01/15,12/31/15,MANAGEMENT ANALYST,"24,180.99",FISCAL YEAR 2016,"","","","BOWLING-STOKES,CHAUNETTE L"
,CHIEF ADMIN OFCR OF THE HOUSE,2015Q4,PERSONNEL COMPENSATION,"","BOWMAN,SHELIA",10/01/15,12/31/15,FINANCIAL COUNSELOR,"16,902.24",FISCAL YEAR 2016,"","","","BOWMAN,SHELIA"
,CHIEF ADMIN OFCR OF THE HOUSE,2015Q4,PERSONNEL COMPENSATION,"","BOYD, KRISTIE N",10/01/15,11/18/15,PHOTOGRAPHER/LAB TECH (TEMP),"5,228.24",FISCAL YEAR 2016,"","","","BOYD, KRISTIE N"
,CHIEF ADMIN OFCR OF THE HOUSE,2015Q4,PERSONNEL COMPENSATION,"","BOYD, PETRINA",10/01/15,12/31/15,SALES SPECIALIST,"11,970.99",FISCAL YEAR 2016,"","","","BOYD, PETRINA"
,CHIEF ADMIN OFCR OF THE HOUSE,2015Q4,PERSONNEL COMPENSATION,"","BOYLE, KEVIN J",10/01/15,12/31/15,SR BUSINESS PROCESS APPL SPEC,"39,621.51",FISCAL YEAR 2016,"","","","BOYLE, KEVIN J"
,CHIEF ADMIN OFCR OF THE HOUSE,2015Q4,PERSONNEL COMPENSATION,"","BRACKENS, ROBERT",10/01/15,12/31/15,BROADCAST PRODUCTION TECHNICIA,"22,098.51",FISCAL YEAR 2016,"","","","BRACKENS, ROBERT"
,CHIEF ADMIN OFCR OF THE HOUSE,2015Q4,PERSONNEL COMPENSATION,"","BRACKENS, ROBERT",10/01/15,10/31/15,BROADCAST PRODUCTION TECHNICIA (OVERTIME),223.11,FISCAL YEAR 2016,"","","","BRACKENS, ROBERT"
,CHIEF ADMIN OFCR OF THE HOUSE,2015Q4,PERSONNEL COMPENSATION,"","BRADLEY,NATHANIEL R",10/07/15,12/31/15,"DIRECTOR, TECHNOLOGY SUPPORT","30,558.50",FISCAL YEAR 2016,"","","","BRADLEY,NATHANIEL R"
,CHIEF ADMIN OFCR OF THE HOUSE,2015Q4,PERSONNEL COMPENSATION,"","BRADY,JOHN R",10/01/15,12/31/15,JOURNEYMAN TEXTILE SPEC,"12,014.25",FISCAL YEAR 2016,"","","","BRADY,JOHN R"
,CHIEF ADMIN OFCR OF THE HOUSE,2015Q4,PERSONNEL COMPENSATION,"","BRADY,JOHN R",11/01/15,11/30/15,JOURNEYMAN TEXTILE SPEC (OVERTIME),358.11,FISCAL YEAR 2016,"","","","BRADY,JOHN R"
,CHIEF ADMIN OFCR OF THE HOUSE,2015Q4,PERSONNEL COMPENSATION,"","BRAXTON, BRANDON A",10/01/15,12/31/15,LOGISTICS & DIST SPEC (A),"11,200.74",FISCAL YEAR 2016,"","","","BRAXTON, BRANDON A"
,CHIEF ADMIN OFCR OF THE HOUSE,2015Q4,PERSONNEL COMPENSATION,"","BREWSTER III,JAMES E",10/01/15,12/31/15,LOGISTICS & DIST SPEC (A),"9,441.24",FISCAL YEAR 2016,"","","","BREWSTER III,JAMES E"
,CHIEF ADMIN OFCR OF THE HOUSE,2015Q4,PERSONNEL COMPENSATION,"","BREWSTER,CHRISTOPHER A",10/01/15,12/31/15,ADMINISTRATIVE COUNSEL,"42,102.75",FISCAL YEAR 2016,"","","","BREWSTER,CHRISTOPHER A"
,CHIEF ADMIN OFCR OF THE HOUSE,2015Q4,PERSONNEL COMPENSATION,"","BRIDGEFORTH, TOINETTA A",10/01/15,12/31/15,CONTRACTS SPECIALIST,"23,004.24",FISCAL YEAR 2016,"","","","BRIDGEFORTH, TOINETTA A"
,CHIEF ADMIN OFCR OF THE HOUSE,2015Q4,PERSONNEL COMPENSATION,"","BRISCOE, KEVIN",10/01/15,12/31/15,LOGISTICS & DIST SPEC (A),"11,200.74",FISCAL YEAR 2016,"","","","BRISCOE, KEVIN"
,CHIEF ADMIN OFCR OF THE HOUSE,2015Q4,PERSONNEL COMPENSATION,"","BROBBEY-MENSAH, KWAME",10/01/15,12/31/15,SR INFO SYST. SECURITY ANALYST,"29,025.99",FISCAL YEAR 2016,"","","","BROBBEY-MENSAH, KWAME"
,CHIEF ADMIN OFCR OF THE HOUSE,2015Q4,PERSONNEL COMPENSATION,"","BROWN SR, DEMETRICE T",10/01/15,12/31/15,SUPERVISOR,"27,469.74",FISCAL YEAR 2016,"","","","BROWN SR, DEMETRICE T"
,CHIEF ADMIN OFCR OF THE HOUSE,2015Q4,PERSONNEL COMPENSATION,"","BROWN, ANNETTE G",10/01/15,12/31/15,SR SOFTWARE ENGINEER,"27,828.75",FISCAL YEAR 2016,"","","","BROWN, ANNETTE G"
,CHIEF ADMIN OFCR OF THE HOUSE,2015Q4,PERSONNEL COMPENSATION,"","BROWN, KEITH S",10/01/15,12/31/15,JOURNEYMAN FURNITURE SPEC,"14,418.75",FISCAL YEAR 2016,"","","","BROWN, KEITH S"
,CHIEF ADMIN OFCR OF THE HOUSE,2015Q4,PERSONNEL COMPENSATION,"","BROWN, KEITH S",10/01/15,10/31/15,JOURNEYMAN FURNITURE SPEC. (OVERTIME),665.47,FISCAL YEAR 2016,"","","","BROWN, KEITH S"
,CHIEF ADMIN OFCR OF THE HOUSE,2015Q4,PERSONNEL COMPENSATION,"","BROWN, PAMELA L",10/01/15,12/31/15,CUSTOMER SOLUTIONS REP,"18,885.51",FISCAL YEAR 2016,"","","","BROWN, PAMELA L"
,CHIEF ADMIN OFCR OF THE HOUSE,2015Q4,PERSONNEL COMPENSATION,"","BROWN,DAVID D",10/01/15,12/31/15,FINANCIAL COUNSELOR,"16,902.24",FISCAL YEAR 2016,"","","","BROWN,DAVID D"
,CHIEF ADMIN OFCR OF THE HOUSE,2015Q4,PERSONNEL COMPENSATION,"","BROWN,JASON",10/01/15,12/31/15,BROADCAST PRODUCTION TECHNICIA,"19,494.75",FISCAL YEAR 2016,"","","","BROWN,JASON"
,CHIEF ADMIN OFCR OF THE HOUSE,2015Q4,PERSONNEL COMPENSATION,"","BROWN,JASON",10/01/15,11/30/15,BROADCAST PRODUCTION TECHNICIA (OVERTIME),590.46,FISCAL YEAR 2016,"","","","BROWN,JASON"
,CHIEF ADMIN OFCR OF THE HOUSE,2015Q4,PERSONNEL COMPENSATION,"","BROWN,KIMBERLY K",10/01/15,12/31/15,BUSINESS PROC APPLIC SPEC,"20,276.76",FISCAL YEAR 2016,"","","","BROWN,KIMBERLY K"
,CHIEF ADMIN OFCR OF THE HOUSE,2015Q4,PERSONNEL COMPENSATION,"","BROWN,LAWRENCE",10/01/15,12/31/15,BROADCAST ENGINEER/PROD SPEC,"22,551.24",FISCAL YEAR 2016,"","","","BROWN,LAWRENCE"
,CHIEF ADMIN OFCR OF THE HOUSE,2015Q4,PERSONNEL COMPENSATION,"","BROWN,LAWRENCE",10/01/15,10/31/15,BROADCAST ENGINEER/PROD SPEC. (OVERTIME),97.58,FISCAL YEAR 2016,"","","","BROWN,LAWRENCE"
,CHIEF ADMIN OFCR OF THE HOUSE,2015Q4,PERSONNEL COMPENSATION,"","BRUMMELL,JENELLE L",10/01/15,12/31/15,PARALEGAL,"18,697.26",FISCAL YEAR 2016,"","","","BRUMMELL,JENELLE L"
,CHIEF ADMIN OFCR OF THE HOUSE,2015Q4,PERSONNEL COMPENSATION,"","BUCKLER, RICKY L",10/01/15,12/31/15,PURCHASING AGENT,"19,494.75",FISCAL YEAR 2016,"","","","BUCKLER, RICKY L"
,CHIEF ADMIN OFCR OF THE HOUSE,2015Q4,PERSONNEL COMPENSATION,"","BUCKLER, TROY D",10/01/15,12/31/15,PURCHASING AGENT,"16,491.99",FISCAL YEAR 2016,"","","","BUCKLER, TROY D"
,CHIEF ADMIN OFCR OF THE HOUSE,2015Q4,PERSONNEL COMPENSATION,"","BUCKLER, TROY D",10/01/15,10/31/15,PURCHASING AGENT (OVERTIME),63.43,FISCAL YEAR 2016,"","","","BUCKLER, TROY D"
,CHIEF ADMIN OFCR OF THE HOUSE,2015Q4,PERSONNEL COMPENSATION,"","BUFORD, MARCIA L",10/01/15,12/31/15,COMPUTER FAC OP SUPERVISOR,"26,914.74",FISCAL YEAR 2016,"","","","BUFORD, MARCIA L"
,CHIEF ADMIN OFCR OF THE HOUSE,2015Q4,PERSONNEL COMPENSATION,"","BURCH, KENNETH J",10/01/15,12/31/15,BUSINESS PROC APPLIC SPEC,"30,581.25",FISCAL YEAR 2016,"","","","BURCH, KENNETH J"
,CHIEF ADMIN OFCR OF THE HOUSE,2015Q4,PERSONNEL COMPENSATION,"","BUTLER, CLARENCE G",10/01/15,12/31/15,JOURNEYMAN FURNITURE SPEC,"15,802.50",FISCAL YEAR 2016,"","","","BUTLER, CLARENCE G"
,CHIEF ADMIN OFCR OF THE HOUSE,2015Q4,PERSONNEL COMPENSATION,"","BUTLER, JAMES F",10/01/15,12/31/15,"MANAGER, PAYROLL & BENEFITS","28,508.01",FISCAL YEAR 2016,"","","","BUTLER, JAMES F"
,CHIEF ADMIN OFCR OF THE HOUSE,2015Q4,PERSONNEL COMPENSATION,"","CALLAWAY, ROBERT M",10/01/15,12/31/15,SR BROADCAST ENG./PROD SPEC,"24,636.00",FISCAL YEAR 2016,"","","","CALLAWAY, ROBERT M"
,CHIEF ADMIN OFCR OF THE HOUSE,2015Q4,PERSONNEL COMPENSATION,"","CARCAMO, ALICIA L",10/01/15,12/31/15,ACCOUNTING TECHNICIAN,"19,283.25",FISCAL YEAR 2016,"","","","CARCAMO, ALICIA L"
,CHIEF ADMIN OFCR OF THE HOUSE,2015Q4,PERSONNEL COMPENSATION,"","CARNEY, MICHAEL T",10/01/15,12/31/15,MANAGER (CAO COMPLIANCE),"28,508.01",FISCAL YEAR 2016,"","","","CARNEY, MICHAEL T"
,CHIEF ADMIN OFCR OF THE HOUSE,2015Q4,PERSONNEL COMPENSATION,"","CARNNIA,CASEY",10/01/15,12/31/15,INTERNET SYSTEMS SPECIALIST,"19,894.50",FISCAL YEAR 2016,"","","","CARNNIA,CASEY"
,CHIEF ADMIN OFCR OF THE HOUSE,2015Q4,PERSONNEL COMPENSATION,"","CARR, JOSH D",10/01/15,12/31/15,SENIOR SYSTEMS ENGINEER,"25,548.00",FISCAL YEAR 2016,"","","","CARR, JOSH D"
,CHIEF ADMIN OFCR OF THE HOUSE,2015Q4,PERSONNEL COMPENSATION,"","CARRICO, RONALD",10/01/15,12/31/15,SR BUSINESS PROCESS APPL SPEC,"37,120.50",FISCAL YEAR 2016,"","","","CARRICO, RONALD"
,CHIEF ADMIN OFCR OF THE HOUSE,2015Q4,PERSONNEL COMPENSATION,"","CARSON,LAWRENCE T",10/01/15,12/31/15,SALES SPECIALIST,"10,399.17",FISCAL YEAR 2016,"","","","CARSON,LAWRENCE T"
,CHIEF ADMIN OFCR OF THE HOUSE,2015Q4,PERSONNEL COMPENSATION,"","CARTER JR, JOHN L",10/01/15,12/31/15,"MANAGER, FINISHING","25,275.24",FISCAL YEAR 2016,"","","","CARTER JR, JOHN L"
,CHIEF ADMIN OFCR OF THE HOUSE,2015Q4,PERSONNEL COMPENSATION,"","CARTER,DELISA D",10/01/15,12/31/15,SR. SOFTWARE SPECIALIST,"35,867.25",FISCAL YEAR 2016,"","","","CARTER,DELISA D"
,CHIEF ADMIN OFCR OF THE HOUSE,2015Q4,PERSONNEL COMPENSATION,"","CASSIDY, ED",10/01/15,12/31/15,CHIEF ADMINISTRATIVE OFFICER,"43,125.00",FISCAL YEAR 2016,"","","","CASSIDY, ED"
,CHIEF ADMIN OFCR OF THE HOUSE,2015Q4,PERSONNEL COMPENSATION,"","CAULK, ANDREW T",10/01/15,12/31/15,MANAGER,"25,089.99",FISCAL YEAR 2016,"","","","CAULK, ANDREW T"
,CHIEF ADMIN OFCR OF THE HOUSE,2015Q4,PERSONNEL COMPENSATION,"","CHABOT, ELLIOT C",10/01/15,12/31/15,SENIOR SYSTEMS ANALYST,"32,654.25",FISCAL YEAR 2016,"","","","CHABOT, ELLIOT C"
,CHIEF ADMIN OFCR OF THE HOUSE,2015Q4,PERSONNEL COMPENSATION,"","CHAMBERS, KEVIN N",10/01/15,12/31/15,SR CUSTOMER SOLUTIONS REP,"20,694.00",FISCAL YEAR 2016,"","","","CHAMBERS, KEVIN N"
,CHIEF ADMIN OFCR OF THE HOUSE,2015Q4,PERSONNEL COMPENSATION,"","CHANG, SU-HWA",10/01/15,12/31/15,SENIOR SYSTEMS ENGINEER,"31,614.75",FISCAL YEAR 2016,"","","","CHANG, SU-HWA"
,CHIEF ADMIN OFCR OF THE HOUSE,2015Q4,PERSONNEL COMPENSATION,"","CHARGUALAF,JESSE",10/01/15,12/31/15,BROADCAST ENGINEER/PROD SPEC,"20,276.76",FISCAL YEAR 2016,"","","","CHARGUALAF,JESSE"
,CHIEF ADMIN OFCR OF THE HOUSE,2015Q4,PERSONNEL COMPENSATION,"","CHARGUALAF,JESSE",11/01/15,11/30/15,BROADCAST ENGINEER/PROD SPEC. (OVERTIME),9.75,FISCAL YEAR 2016,"","","","CHARGUALAF,JESSE"
,CHIEF ADMIN OFCR OF THE HOUSE,2015Q4,PERSONNEL COMPENSATION,"","CHEN, SUSAN",10/01/15,12/31/15,FINANCIAL COUNSELOR,"16,902.24",FISCAL YEAR 2016,"","","","CHEN, SUSAN"
,CHIEF ADMIN OFCR OF THE HOUSE,2015Q4,PERSONNEL COMPENSATION,"","CHEN, SUSAN",10/01/15,10/31/15,FINANCIAL COUNSELOR (OVERTIME),215.50,FISCAL YEAR 2016,"","","","CHEN, SUSAN"
,CHIEF ADMIN OFCR OF THE HOUSE,2015Q4,PERSONNEL COMPENSATION,"","CHIU,JIMMY",10/01/15,12/31/15,HRIS APPLICATIONS SYST ANALYST,"25,914.24",FISCAL YEAR 2016,"","","","CHIU,JIMMY"
,CHIEF ADMIN OFCR OF THE HOUSE,2015Q4,PERSONNEL COMPENSATION,"","CICALE, MICHAEL P",10/01/15,12/31/15,SR CUSTOMER SOLUTIONS REP,"20,076.00",FISCAL YEAR 2016,"","","","CICALE, MICHAEL P"
,CHIEF ADMIN OFCR OF THE HOUSE,2015Q4,PERSONNEL COMPENSATION,"","CLAGGETT, TIMOTHY A",10/01/15,12/31/15,JOURNEYMAN TEXTILE SPEC,"19,283.25",FISCAL YEAR 2016,"","","","CLAGGETT, TIMOTHY A"
,CHIEF ADMIN OFCR OF THE HOUSE,2015Q4,PERSONNEL COMPENSATION,"","CLARK, MARION",10/01/15,12/31/15,SR TELECOMMUNICATIONS ADMIN,"18,092.25",FISCAL YEAR 2016,"","","","CLARK, MARION"
,CHIEF ADMIN OFCR OF THE HOUSE,2015Q4,PERSONNEL COMPENSATION,"","CLARKE, JOHN P",10/01/15,12/31/15,SUPERVISOR,"22,551.24",FISCAL YEAR 2016,"","","","CLARKE, JOHN P"
,CHIEF ADMIN OFCR OF THE HOUSE,2015Q4,PERSONNEL COMPENSATION,"","COAKLEY,KRISTEN J",10/01/15,12/31/15,SR TELECOMMUNICATIONS ADMIN,"17,298.00",FISCAL YEAR 2016,"","","","COAKLEY,KRISTEN J"
,CHIEF ADMIN OFCR OF THE HOUSE,2015Q4,PERSONNEL COMPENSATION,"","COBB, FAYE C",10/01/15,12/31/15,"DIR, BUDGET, POLICY & PLANNING","40,594.26",FISCAL YEAR 2016,"","","","COBB, FAYE C"
,CHIEF ADMIN OFCR OF THE HOUSE,2015Q4,PERSONNEL COMPENSATION,"","COLBERT, RAY C",10/01/15,12/31/15,SR BROADCAST ENG/PROD SPECLST,"24,180.99",FISCAL YEAR 2016,"","","","COLBERT, RAY C"
,CHIEF ADMIN OFCR OF THE HOUSE,2015Q4,PERSONNEL COMPENSATION,"","COLBERT, RAY C",10/01/15,11/30/15,SR BROADCAST ENG/PROD SPECLST (OVERTIME),104.63,FISCAL YEAR 2016,"","","","COLBERT, RAY C"
,CHIEF ADMIN OFCR OF THE HOUSE,2015Q4,PERSONNEL COMPENSATION,"","COLLINS, JOHN B",10/01/15,12/31/15,BROADCAST PRODUCTION TECHNICIA,"23,916.00",FISCAL YEAR 2016,"","","","COLLINS, JOHN B"
,CHIEF ADMIN OFCR OF THE HOUSE,2015Q4,PERSONNEL COMPENSATION,"","COLLINS, JOHN B",10/01/15,11/30/15,BROADCAST PRODUCTION TECHNICIA (OVERTIME),"1,517.73",FISCAL YEAR 2016,"","","","COLLINS, JOHN B"
,CHIEF ADMIN OFCR OF THE HOUSE,2015Q4,PERSONNEL COMPENSATION,"","COLLINS,JOEL",10/01/15,12/31/15,SR INTERNET SYSTEMS SPECIALIST,"31,016.25",FISCAL YEAR 2016,"","","","COLLINS,JOEL"
,CHIEF ADMIN OFCR OF THE HOUSE,2015Q4,PERSONNEL COMPENSATION,"","CONNOLLY,ERIC",10/01/15,12/31/15,PHOTOGRAPHER,"15,231.58",FISCAL YEAR 2016,"","","","CONNOLLY,ERIC"
,CHIEF ADMIN OFCR OF THE HOUSE,2015Q4,PERSONNEL COMPENSATION,"","COOK, ERIC H",10/01/15,12/31/15,NETWORK TECHNICIAN,"20,694.00",FISCAL YEAR 2016,"","","","COOK, ERIC H"
,CHIEF ADMIN OFCR OF THE HOUSE,2015Q4,PERSONNEL COMPENSATION,"","COOPER, RICHARD S",10/01/15,12/31/15,STAFF ACCOUNTANT (A),"26,004.00",FISCAL YEAR 2016,"","","","COOPER, RICHARD S"
,CHIEF ADMIN OFCR OF THE HOUSE,2015Q4,PERSONNEL COMPENSATION,"","CORNEJO, LUIS E",10/01/15,12/31/15,SENIOR SYSTEMS ENGINEER,"26,461.26",FISCAL YEAR 2016,"","","","CORNEJO, LUIS E"
,CHIEF ADMIN OFCR OF THE HOUSE,2015Q4,PERSONNEL COMPENSATION,"","COX, BRIDGET A",10/01/15,12/31/15,SENIOR SYSTEMS ANALYST,"30,581.25",FISCAL YEAR 2016,"","","","COX, BRIDGET A"
,CHIEF ADMIN OFCR OF THE HOUSE,2015Q4,PERSONNEL COMPENSATION,"","COYNE III, THOMAS E",10/01/15,12/31/15,CHIEF LOGISTICS OFFICER,"42,102.75",FISCAL YEAR 2016,"","","","COYNE III, THOMAS E"
,CHIEF ADMIN OFCR OF THE HOUSE,2015Q4,PERSONNEL COMPENSATION,"","CRUDUP III, WILLIAM D",10/01/15,12/31/15,LOGISTICS & DIST SPEC (A),"12,872.76",FISCAL YEAR 2016,"","","","CRUDUP III, WILLIAM D"
,CHIEF ADMIN OFCR OF THE HOUSE,2015Q4,PERSONNEL COMPENSATION,"","CUFF,LOREN D",10/01/15,12/31/15,INTERNET SYSTEMS SPECIALIST,"20,294.76",FISCAL YEAR 2016,"","","","CUFF,LOREN D"
,CHIEF ADMIN OFCR OF THE HOUSE,2015Q4,PERSONNEL COMPENSATION,"","CUFFEY, LAWRENCE",10/01/15,12/31/15,SR RECVNG AND WAREHOUSING SPEC,"18,207.24",FISCAL YEAR 2016,"","","","CUFFEY, LAWRENCE"
,CHIEF ADMIN OFCR OF THE HOUSE,2015Q4,PERSONNEL COMPENSATION,"","CUPRILL, CARLOS",10/01/15,12/31/15,SR TECHNICAL SUPPORT REP,"23,004.24",FISCAL YEAR 2016,"","","","CUPRILL, CARLOS"
,CHIEF ADMIN OFCR OF THE HOUSE,2015Q4,PERSONNEL COMPENSATION,"","CUTLER JR, BENJAMIN S",10/01/15,12/31/15,PAYROLL & BENEFITS ASSISTANT,"15,802.50",FISCAL YEAR 2016,"","","","CUTLER JR, BENJAMIN S"
,CHIEF ADMIN OFCR OF THE HOUSE,2015Q4,PERSONNEL COMPENSATION,"","CUTLER JR, BENJAMIN S",10/01/15,10/30/15,PAYROLL & BENEFITS ASSISTANT (OVERTIME),182.33,FISCAL YEAR 2016,"","","","CUTLER JR, BENJAMIN S"
,CHIEF ADMIN OFCR OF THE HOUSE,2015Q4,PERSONNEL COMPENSATION,"","DAHL,RYAN S",10/01/15,12/31/15,MEDIA LOGISTICS COORDINATOR,"15,574.34",FISCAL YEAR 2016,"","","","DAHL,RYAN S"
,CHIEF ADMIN OFCR OF THE HOUSE,2015Q4,PERSONNEL COMPENSATION,"","DAHLSTROM, DARREN",10/01/15,12/31/15,JOURNEYMAN FURNITURE SPEC,"20,076.00",FISCAL YEAR 2016,"","","","DAHLSTROM, DARREN"
,CHIEF ADMIN OFCR OF THE HOUSE,2015Q4,PERSONNEL COMPENSATION,"","DAVENPORT,KAREN V",10/01/15,12/31/15,FINANCIAL ANALYST,"22,551.24",FISCAL YEAR 2016,"","","","DAVENPORT,KAREN V"
,CHIEF ADMIN OFCR OF THE HOUSE,2015Q4,PERSONNEL COMPENSATION,"","DAVIS, JOHN J",10/01/15,12/31/15,BROADCAST PRODUCTION TECHNICIA,"23,004.24",FISCAL YEAR 2016,"","","","DAVIS, JOHN J"
,CHIEF ADMIN OFCR OF THE HOUSE,2015Q4,PERSONNEL COMPENSATION,"","DAVIS, JOHN J",10/01/15,10/31/15,BROADCAST PRODUCTION TECHNICIA (OVERTIME),33.18,FISCAL YEAR 2016,"","","","DAVIS, JOHN J"
,CHIEF ADMIN OFCR OF THE HOUSE,2015Q4,PERSONNEL COMPENSATION,"","DAVIS, STACHIA G",10/01/15,12/31/15,DIR MOD FURN & TRANSITION,"28,508.01",FISCAL YEAR 2016,"","","","DAVIS, STACHIA G"
,CHIEF ADMIN OFCR OF THE HOUSE,2015Q4,PERSONNEL COMPENSATION,"","DAVIS,SCOTT K",10/01/15,12/31/15,PAYROLL & BENEFITS GENERALIST,"17,298.00",FISCAL YEAR 2016,"","","","DAVIS,SCOTT K"
,CHIEF ADMIN OFCR OF THE HOUSE,2015Q4,PERSONNEL COMPENSATION,"","DAWKINS, JOANN",10/01/15,12/31/15,SR TELECOMM ADMIN,"16,836.99",FISCAL YEAR 2016,"","","","DAWKINS, JOANN"
,CHIEF ADMIN OFCR OF THE HOUSE,2015Q4,PERSONNEL COMPENSATION,"","DEAN, JOSEPH M",10/01/15,12/31/15,JOURNEYMAN TEXTILE SPEC,"20,694.00",FISCAL YEAR 2016,"","","","DEAN, JOSEPH M"
,CHIEF ADMIN OFCR OF THE HOUSE,2015Q4,PERSONNEL COMPENSATION,"","DEAN, JOSEPH M",10/01/15,11/30/15,JOURNEYMAN TEXTILE SPEC (OVERTIME),"2,218.61",FISCAL YEAR 2016,"","","","DEAN, JOSEPH M"
,CHIEF ADMIN OFCR OF THE HOUSE,2015Q4,PERSONNEL COMPENSATION,"","DEAVER,JAMES",10/01/15,12/31/15,SENIOR SYSTEMS ENGINEER,"32,712.00",FISCAL YEAR 2016,"","","","DEAVER,JAMES"
,CHIEF ADMIN OFCR OF THE HOUSE,2015Q4,PERSONNEL COMPENSATION,"","DELISLE,KALDON A",10/01/15,12/31/15,JOURNEYMAN FURNITURE SPEC,"14,772.75",FISCAL YEAR 2016,"","","","DELISLE,KALDON A"
,CHIEF ADMIN OFCR OF THE HOUSE,2015Q4,PERSONNEL COMPENSATION,"","DELUCA, ALAN",10/01/15,12/31/15,COMPUTER FACILITIES OP MGR (A),"36,494.49",FISCAL YEAR 2016,"","","","DELUCA, ALAN"
,CHIEF ADMIN OFCR OF THE HOUSE,2015Q4,PERSONNEL COMPENSATION,"","DENT,RICHARD H",10/01/15,12/31/15,JOURNEYMAN TEXTILE SPEC,"13,043.49",FISCAL YEAR 2016,"","","","DENT,RICHARD H"
,CHIEF ADMIN OFCR OF THE HOUSE,2015Q4,PERSONNEL COMPENSATION,"","DERRICK, SCOTT",10/01/15,12/31/15,GRAPHICS & DESKTOP PUBL SPEC,"23,460.75",FISCAL YEAR 2016,"","","","DERRICK, SCOTT"
,CHIEF ADMIN OFCR OF THE HOUSE,2015Q4,PERSONNEL COMPENSATION,"","DICKIE, JAMES",10/01/15,12/31/15,ENGINEERING OPS MANAGER,"31,582.50",FISCAL YEAR 2016,"","","","DICKIE, JAMES"
,CHIEF ADMIN OFCR OF THE HOUSE,2015Q4,PERSONNEL COMPENSATION,"","DIEFFENDERFER, GARY L",10/01/15,12/31/15,SR. APPLICATION DBA SPECIALIST,"32,712.00",FISCAL YEAR 2016,"","","","DIEFFENDERFER, GARY L"
,CHIEF ADMIN OFCR OF THE HOUSE,2015Q4,PERSONNEL COMPENSATION,"","DOBBINS, MARK",10/01/15,12/31/15,"MANAGER, PURCHASING","23,916.00",FISCAL YEAR 2016,"","","","DOBBINS, MARK"
,CHIEF ADMIN OFCR OF THE HOUSE,2015Q4,PERSONNEL COMPENSATION,"","DOODY,ERICA",10/01/15,12/31/15,ADMINISTRATIVE SPECIALIST,"11,669.76",FISCAL YEAR 2016,"","","","DOODY,ERICA"
,CHIEF ADMIN OFCR OF THE HOUSE,2015Q4,PERSONNEL COMPENSATION,"","DOOLEY,GENEVA",10/01/15,12/31/15,SENIOR SOFTWARE SPECIALIST,"33,088.66",FISCAL YEAR 2016,"","","","DOOLEY,GENEVA"
,CHIEF ADMIN OFCR OF THE HOUSE,2015Q4,PERSONNEL COMPENSATION,"","DOZIER, BRIAN A",10/01/15,12/31/15,INVENTORY ADMINISTRATOR,"15,802.50",FISCAL YEAR 2016,"","","","DOZIER, BRIAN A"
,CHIEF ADMIN OFCR OF THE HOUSE,2015Q4,PERSONNEL COMPENSATION,"","DUENAS, JOSEPH E",10/01/15,12/31/15,TECHNICAL SUPPORT REP,"19,361.67",FISCAL YEAR 2016,"","","","DUENAS, JOSEPH E"
,CHIEF ADMIN OFCR OF THE HOUSE,2015Q4,PERSONNEL COMPENSATION,"","DUNKLIN, KELDA Y",10/01/15,12/31/15,SR TECHNICAL SUPPORT REP,"26,914.74",FISCAL YEAR 2016,"","","","DUNKLIN, KELDA Y"
,CHIEF ADMIN OFCR OF THE HOUSE,2015Q4,PERSONNEL COMPENSATION,"","DURAN, ROLANDO",10/01/15,12/31/15,ELECTRONICS TECHNICIAN (A),"23,004.24",FISCAL YEAR 2016,"","","","DURAN, ROLANDO"
,CHIEF ADMIN OFCR OF THE HOUSE,2015Q4,PERSONNEL COMPENSATION,"","DURAN, ROLANDO",10/01/15,11/30/15,ELECTRONICS TECHNICIAN (A) (OVERTIME),376.02,FISCAL YEAR 2016,"","","","DURAN, ROLANDO"
,CHIEF ADMIN OFCR OF THE HOUSE,2015Q4,PERSONNEL COMPENSATION,"","EAGLIN,HOPE J",10/01/15,12/31/15,SENIOR SECURITY ANALYST,"27,469.74",FISCAL YEAR 2016,"","","","EAGLIN,HOPE J"
,CHIEF ADMIN OFCR OF THE HOUSE,2015Q4,PERSONNEL COMPENSATION,"","EGERSON, TROY H",10/01/15,12/31/15,JOURNEYMAN TEXTILE SPEC,"18,885.51",FISCAL YEAR 2016,"","","","EGERSON, TROY H"
,CHIEF ADMIN OFCR OF THE HOUSE,2015Q4,PERSONNEL COMPENSATION,"","ELIAS, ANDREW C",10/01/15,12/31/15,DEPUTY DIRECTOR,"30,581.25",FISCAL YEAR 2016,"","","","ELIAS, ANDREW C"
,CHIEF ADMIN OFCR OF THE HOUSE,2015Q4,PERSONNEL COMPENSATION,"","ELLIN, JAMES B",10/01/15,12/31/15,SR NETWORK SYSTEMS ENGINEER,"31,016.25",FISCAL YEAR 2016,"","","","ELLIN, JAMES B"
,CHIEF ADMIN OFCR OF THE HOUSE,2015Q4,PERSONNEL COMPENSATION,"","ELLIOTT, RONALD",10/01/15,12/31/15,SR INFO SYST. SECURITY ANALYST,"26,004.00",FISCAL YEAR 2016,"","","","ELLIOTT, RONALD"
,CHIEF ADMIN OFCR OF THE HOUSE,2015Q4,PERSONNEL COMPENSATION,"","ELLIS,FRANKLIN M",10/01/15,12/31/15,SR SYSTEMS SUPPORT ENGINEER,"23,267.25",FISCAL YEAR 2016,"","","","ELLIS,FRANKLIN M"
,CHIEF ADMIN OFCR OF THE HOUSE,2015Q4,PERSONNEL COMPENSATION,"","ELLIS-GREGG, SHARON",10/01/15,12/31/15,PAYROLL & BENEFITS ASSISTANT,"14,418.75",FISCAL YEAR 2016,"","","","ELLIS-GREGG, SHARON"
,CHIEF ADMIN OFCR OF THE HOUSE,2015Q4,PERSONNEL COMPENSATION,"","ELLIS-JONES, DEBORAH",10/01/15,12/31/15,ADMIN-FINANCE & PAYROLL,"24,180.99",FISCAL YEAR 2016,"","","","ELLIS-JONES, DEBORAH"
,CHIEF ADMIN OFCR OF THE HOUSE,2015Q4,PERSONNEL COMPENSATION,"","EMAMALI, NICOLE S",10/01/15,12/31/15,SR TECHNICAL SUPPORT REP,"28,508.01",FISCAL YEAR 2016,"","","","EMAMALI, NICOLE S"
,CHIEF ADMIN OFCR OF THE HOUSE,2015Q4,PERSONNEL COMPENSATION,"","ENGLISH IV, JAMES H",10/01/15,12/31/15,JOURNEYMAN FURNITURE SPEC,"14,086.74",FISCAL YEAR 2016,"","","","ENGLISH IV, JAMES H"
,CHIEF ADMIN OFCR OF THE HOUSE,2015Q4,PERSONNEL COMPENSATION,"","ENGLISH, JOSEPH H",10/01/15,12/31/15,MOBILE COMM SPECIALIST (DATA),"26,004.00",FISCAL YEAR 2016,"","","","ENGLISH, JOSEPH H"
,CHIEF ADMIN OFCR OF THE HOUSE,2015Q4,PERSONNEL COMPENSATION,"","ERVING, JAMES H",10/01/15,12/31/15,COMMUNICATIONS SPECIALIST,"26,914.74",FISCAL YEAR 2016,"","","","ERVING, JAMES H"
,CHIEF ADMIN OFCR OF THE HOUSE,2015Q4,PERSONNEL COMPENSATION,"","ETCHISON,CHERYL A",10/01/15,12/31/15,"MANAGER, PAYROLL & BENEFITS","29,888.01",FISCAL YEAR 2016,"","","","ETCHISON,CHERYL A"
,CHIEF ADMIN OFCR OF THE HOUSE,2015Q4,PERSONNEL COMPENSATION,"","EVANS JR, WILLIAM R",10/01/15,12/31/15,ELECTRONICS TECHNICIAN (A),"23,460.75",FISCAL YEAR 2016,"","","","EVANS JR, WILLIAM R"
,CHIEF ADMIN OFCR OF THE HOUSE,2015Q4,PERSONNEL COMPENSATION,"","EVANS JR, WILLIAM R",10/01/15,11/30/15,ELECTRONICS TECHNICIAN (A) (OVERTIME),"1,218.14",FISCAL YEAR 2016,"","","","EVANS JR, WILLIAM R"
,CHIEF ADMIN OFCR OF THE HOUSE,2015Q4,PERSONNEL COMPENSATION,"","EVANS,THOMAS F",10/01/15,12/31/15,INFO SYSTEMS SECURITY ANALYST,"23,723.49",FISCAL YEAR 2016,"","","","EVANS,THOMAS F"
,CHIEF ADMIN OFCR OF THE HOUSE,2015Q4,PERSONNEL COMPENSATION,"","EWERS, GRETCHEN",10/01/15,12/31/15,MANAGER,"26,914.74",FISCAL YEAR 2016,"","","","EWERS, GRETCHEN"
,CHIEF ADMIN OFCR OF THE HOUSE,2015Q4,PERSONNEL COMPENSATION,"","EWING JR, JOHN C",10/01/15,12/31/15,RECEIVING/WAREHOUSE SPECIALIST,"11,200.74",FISCAL YEAR 2016,"","","","EWING JR, JOHN C"
,CHIEF ADMIN OFCR OF THE HOUSE,2015Q4,PERSONNEL COMPENSATION,"","FARLEY, JOANN I",10/01/15,12/31/15,FINANCIAL COUNSELOR,"18,487.74",FISCAL YEAR 2016,"","","","FARLEY, JOANN I"
,CHIEF ADMIN OFCR OF THE HOUSE,2015Q4,PERSONNEL COMPENSATION,"","FINUCANE,CHRISTOPHER B",10/01/15,12/31/15,DIRECTOR ENTERPRISE OPERATIONS,"40,594.26",FISCAL YEAR 2016,"","","","FINUCANE,CHRISTOPHER B"
,CHIEF ADMIN OFCR OF THE HOUSE,2015Q4,PERSONNEL COMPENSATION,"","FISHER, JEROME",10/01/15,12/31/15,SR TECH SOLUTIONS ENGINEER,"25,089.99",FISCAL YEAR 2016,"","","","FISHER, JEROME"
,CHIEF ADMIN OFCR OF THE HOUSE,2015Q4,PERSONNEL COMPENSATION,"","FITZGERALD,KATHLEEN M",10/01/15,12/31/15,BUSINESS CONTINUITY MANAGER,"31,582.50",FISCAL YEAR 2016,"","","","FITZGERALD,KATHLEEN M"
,CHIEF ADMIN OFCR OF THE HOUSE,2015Q4,PERSONNEL COMPENSATION,"","FONTNEAU, BRUCE",10/01/15,12/06/15,SYSTEMS ENGINEER,"17,732.73",FISCAL YEAR 2016,"","","","FONTNEAU, BRUCE"
,CHIEF ADMIN OFCR OF THE HOUSE,2015Q4,PERSONNEL COMPENSATION,"","FONTNEAU, BRUCE",12/07/15,12/31/15,SR SYSTEMS ENGINEER,"6,910.47",FISCAL YEAR 2016,"","","","FONTNEAU, BRUCE"
,CHIEF ADMIN OFCR OF THE HOUSE,2015Q4,PERSONNEL COMPENSATION,"","FORD, DARIN J",10/01/15,12/31/15,SR TECHNICAL SUPPORT REP (A),"23,004.24",FISCAL YEAR 2016,"","","","FORD, DARIN J"
,CHIEF ADMIN OFCR OF THE HOUSE,2015Q4,PERSONNEL COMPENSATION,"","FORGIONE, JOHN A",10/01/15,12/31/15,SR CUSTOMER SOLUTIONS REP,"19,283.25",FISCAL YEAR 2016,"","","","FORGIONE, JOHN A"
,CHIEF ADMIN OFCR OF THE HOUSE,2015Q4,PERSONNEL COMPENSATION,"","FOSTER, CHARLES J",10/01/15,12/31/15,PAYROLL & BENEFITS ASSISTANT,"14,418.75",FISCAL YEAR 2016,"","","","FOSTER, CHARLES J"
,CHIEF ADMIN OFCR OF THE HOUSE,2015Q4,PERSONNEL COMPENSATION,"","FOSTER,KRISTIN N",10/13/15,12/31/15,PAYROLL & BENEFITS GENERALIST,"13,616.41",FISCAL YEAR 2016,"","","","FOSTER,KRISTIN N"
,CHIEF ADMIN OFCR OF THE HOUSE,2015Q4,PERSONNEL COMPENSATION,"","FOUNTAIN,ANIKA",10/01/15,12/31/15,TECH SOLUTIONS TECHNICIAN,"18,092.25",FISCAL YEAR 2016,"","","","FOUNTAIN,ANIKA"
,CHIEF ADMIN OFCR OF THE HOUSE,2015Q4,PERSONNEL COMPENSATION,"","FRAVEL,DON J",10/01/15,12/31/15,TECH SOLUTIONS TECHNICIAN,"18,092.25",FISCAL YEAR 2016,"","","","FRAVEL,DON J"
,CHIEF ADMIN OFCR OF THE HOUSE,2015Q4,PERSONNEL COMPENSATION,"","FRECH, JASON L",10/01/15,12/31/15,SR SYSTEMS ENGINEER,"27,297.74",FISCAL YEAR 2016,"","","","FRECH, JASON L"
,CHIEF ADMIN OFCR OF THE HOUSE,2015Q4,PERSONNEL COMPENSATION,"","FREEMAN, ANTOINETTE P",10/01/15,12/31/15,ADMINISTRATIVE SPECIALIST,"15,104.76",FISCAL YEAR 2016,"","","","FREEMAN, ANTOINETTE P"
,CHIEF ADMIN OFCR OF THE HOUSE,2015Q4,PERSONNEL COMPENSATION,"","FREENEY, MALCOLM",10/01/15,12/31/15,PROJECT MANAGER,"26,461.26",FISCAL YEAR 2016,"","","","FREENEY, MALCOLM"
,CHIEF ADMIN OFCR OF THE HOUSE,2015Q4,PERSONNEL COMPENSATION,"","FRENCH, CAROL",12/01/15,12/31/15,PAYROLL & BENEFITS GENERALIST,839.36,FISCAL YEAR 2016,"","","","FRENCH, CAROL"
,CHIEF ADMIN OFCR OF THE HOUSE,2015Q4,PERSONNEL COMPENSATION,"","FRENCH, CHARLES",10/01/15,12/31/15,SENIOR NETWORK TECHNICIAN,"26,004.00",FISCAL YEAR 2016,"","","","FRENCH, CHARLES"
,CHIEF ADMIN OFCR OF THE HOUSE,2015Q4,PERSONNEL COMPENSATION,"","FRITZ,ERIC D",10/01/15,12/31/15,SENIOR SYSTEMS ENGINEER,"27,988.26",FISCAL YEAR 2016,"","","","FRITZ,ERIC D"
,CHIEF ADMIN OFCR OF THE HOUSE,2015Q4,PERSONNEL COMPENSATION,"","GAINES, JULIA W",10/01/15,12/31/15,SPECIAL ASSISTANT (A),"26,185.50",FISCAL YEAR 2016,"","","","GAINES, JULIA W"
,CHIEF ADMIN OFCR OF THE HOUSE,2015Q4,PERSONNEL COMPENSATION,"","GALLAGHER, RENEE",10/01/15,12/31/15,SR INFO SYST. SECURITY ANALYST,"26,004.00",FISCAL YEAR 2016,"","","","GALLAGHER, RENEE"
,CHIEF ADMIN OFCR OF THE HOUSE,2015Q4,PERSONNEL COMPENSATION,"","GALLAGHER,RYAN S",10/01/15,11/08/15,PAYROLL & BENEFITS GENERALIST,"6,237.38",FISCAL YEAR 2016,"","","","GALLAGHER,RYAN S"
,CHIEF ADMIN OFCR OF THE HOUSE,2015Q4,PERSONNEL COMPENSATION,"","GALLAGHER,RYAN S",11/09/15,12/31/15,HUMAN RESOURCES GENERALIST,"9,994.40",FISCAL YEAR 2016,"","","","GALLAGHER,RYAN S"
,CHIEF ADMIN OFCR OF THE HOUSE,2015Q4,PERSONNEL COMPENSATION,"","GARAY, GERMAN",10/01/15,12/31/15,BROADCAST PRODUCTION TECHNICIA,"23,460.75",FISCAL YEAR 2016,"","","","GARAY, GERMAN"
,CHIEF ADMIN OFCR OF THE HOUSE,2015Q4,PERSONNEL COMPENSATION,"","GARAY, GERMAN",10/01/15,11/30/15,BROADCAST PRODUCTION TECHNICIA (OVERTIME),"2,097.91",FISCAL YEAR 2016,"","","","GARAY, GERMAN"
,CHIEF ADMIN OFCR OF THE HOUSE,2015Q4,PERSONNEL COMPENSATION,"","GARCIA, JOHN",10/01/15,12/31/15,JOURNEYMAN FURNITURE SPEC,"14,086.74",FISCAL YEAR 2016,"","","","GARCIA, JOHN"
,CHIEF ADMIN OFCR OF THE HOUSE,2015Q4,PERSONNEL COMPENSATION,"","GASKINS, JAMES R",10/01/15,12/31/15,BRANCH MANAGER,"32,712.00",FISCAL YEAR 2016,"","","","GASKINS, JAMES R"
,CHIEF ADMIN OFCR OF THE HOUSE,2015Q4,PERSONNEL COMPENSATION,"","GATES, TRENA F",10/01/15,12/31/15,FINANCIAL ANALYST,"21,493.50",FISCAL YEAR 2016,"","","","GATES, TRENA F"
,CHIEF ADMIN OFCR OF THE HOUSE,2015Q4,PERSONNEL COMPENSATION,"","GATES,COREY M",10/01/15,12/31/15,JOURNEYMAN TEXTILE SPEC,"15,711.24",FISCAL YEAR 2016,"","","","GATES,COREY M"
,CHIEF ADMIN OFCR OF THE HOUSE,2015Q4,PERSONNEL COMPENSATION,"","GATES,COREY M",10/01/15,11/30/15,JOURNEYMAN TEXTILE SPEC (OVERTIME),"1,450.25",FISCAL YEAR 2016,"","","","GATES,COREY M"
,CHIEF ADMIN OFCR OF THE HOUSE,2015Q4,PERSONNEL COMPENSATION,"","GATES,THOMAS D",10/01/15,12/31/15,SENIOR SYSTEMS ENGINEER,"24,636.00",FISCAL YEAR 2016,"","","","GATES,THOMAS D"
,CHIEF ADMIN OFCR OF THE HOUSE,2015Q4,PERSONNEL COMPENSATION,"","GEPERT,DARLA M",10/01/15,10/25/15,ADMINISTRATIVE SPECIALIST (A),"3,623.19",FISCAL YEAR 2016,"","","","GEPERT,DARLA M"
,CHIEF ADMIN OFCR OF THE HOUSE,2015Q4,PERSONNEL COMPENSATION,"","GEPERT,DARLA M",10/26/15,12/31/15,ADMINISTRATIVE SPECIALIST,"10,918.01",FISCAL YEAR 2016,"","","","GEPERT,DARLA M"
,CHIEF ADMIN OFCR OF THE HOUSE,2015Q4,PERSONNEL COMPENSATION,"","GERARDEN,PAUL J",10/01/15,12/31/15,CUSTOMER SOLUTIONS REP,"14,075.76",FISCAL YEAR 2016,"","","","GERARDEN,PAUL J"
,CHIEF ADMIN OFCR OF THE HOUSE,2015Q4,PERSONNEL COMPENSATION,"","GILLIS,DANIEL",10/01/15,12/31/15,ADA AIDE,"7,135.50",FISCAL YEAR 2016,"","","","GILLIS,DANIEL"
,CHIEF ADMIN OFCR OF THE HOUSE,2015Q4,PERSONNEL COMPENSATION,"","GILLIS,DANIEL",10/01/15,11/30/15,ADA AIDE (OVERTIME),"3,136.62",FISCAL YEAR 2016,"","","","GILLIS,DANIEL"
,CHIEF ADMIN OFCR OF THE HOUSE,2015Q4,PERSONNEL COMPENSATION,"","GIZARA, MICHAEL P",10/01/15,12/31/15,TEAM LEAD OPERATNS/ADV CONTENT,"33,276.99",FISCAL YEAR 2016,"","","","GIZARA, MICHAEL P"
,CHIEF ADMIN OFCR OF THE HOUSE,2015Q4,PERSONNEL COMPENSATION,"","GOGGINS II, JAMES D",10/01/15,12/31/15,NETWORK COMM SPECIALIST (A),"23,460.75",FISCAL YEAR 2016,"","","","GOGGINS II, JAMES D"
,CHIEF ADMIN OFCR OF THE HOUSE,2015Q4,PERSONNEL COMPENSATION,"","GOLDSBOROUGH-LEE, ANGEL M",10/01/15,12/31/15,"DIR, TECH MGT & INTERNAL CTRLS","35,867.25",FISCAL YEAR 2016,"","","","GOLDSBOROUGH-LEE, ANGEL M"
,CHIEF ADMIN OFCR OF THE HOUSE,2015Q4,PERSONNEL COMPENSATION,"","GONZALEZ, ROSARIO D",10/01/15,12/31/15,SR CUSTOMER SOLUTIONS REP,"20,294.76",FISCAL YEAR 2016,"","","","GONZALEZ, ROSARIO D"
,CHIEF ADMIN OFCR OF THE HOUSE,2015Q4,PERSONNEL COMPENSATION,"","GOODIN,EMILY L",10/01/15,11/26/15,SENIOR COMMUNICATIONS SPEC,"11,633.85",FISCAL YEAR 2016,"","","","GOODIN,EMILY L"
,CHIEF ADMIN OFCR OF THE HOUSE,2015Q4,PERSONNEL COMPENSATION,"","GOODIN,EMILY L",11/01/15,11/26/15,SENIOR COMMUNICATIONS SPEC (OTHER COMPENSATION),"1,636.01",FISCAL YEAR 2016,"","","","GOODIN,EMILY L"
,CHIEF ADMIN OFCR OF THE HOUSE,2015Q4,PERSONNEL COMPENSATION,"","GOODLOW, LISA L",10/01/15,12/31/15,SR COMM SECURITY ANALYST,"25,914.24",FISCAL YEAR 2016,"","","","GOODLOW, LISA L"
,CHIEF ADMIN OFCR OF THE HOUSE,2015Q4,PERSONNEL COMPENSATION,"","GOODMAN,JESSICA L",10/01/15,12/15/15,PAYROLL & BENEFITS GENERALIST,"12,027.08",FISCAL YEAR 2016,"","","","GOODMAN,JESSICA L"
,CHIEF ADMIN OFCR OF THE HOUSE,2015Q4,PERSONNEL COMPENSATION,"","GOODMAN,JESSICA L",12/16/15,12/31/15,FINANCIAL ANALYST,"2,982.88",FISCAL YEAR 2016,"","","","GOODMAN,JESSICA L"
,CHIEF ADMIN OFCR OF THE HOUSE,2015Q4,PERSONNEL COMPENSATION,"","GOODMAN,JESSICA L",10/01/15,10/31/15,PAYROLL & BENEFITS GENERALIST (OVERTIME),41.63,FISCAL YEAR 2016,"","","","GOODMAN,JESSICA L"
,CHIEF ADMIN OFCR OF THE HOUSE,2015Q4,PERSONNEL COMPENSATION,"","GOULD, MICHAEL",10/01/15,12/31/15,"MANAGER, REMEDY MANAGEMENT","31,016.25",FISCAL YEAR 2016,"","","","GOULD, MICHAEL"
,CHIEF ADMIN OFCR OF THE HOUSE,2015Q4,PERSONNEL COMPENSATION,"","GRAEUB, ANDREW C",10/01/15,12/31/15,"MANAGER, NETWORK SYST ENGINEER","35,241.75",FISCAL YEAR 2016,"","","","GRAEUB, ANDREW C"
,CHIEF ADMIN OFCR OF THE HOUSE,2015Q4,PERSONNEL COMPENSATION,"","GRANT,LISA",10/01/15,12/31/15,CHIEF PROCUREMENT OFFICER,"42,102.75",FISCAL YEAR 2016,"","","","GRANT,LISA"
,CHIEF ADMIN OFCR OF THE HOUSE,2015Q4,PERSONNEL COMPENSATION,"","GRECO,JACQUELINE M",10/01/15,12/31/15,CUSTOMER SOLUTIONS REP,"12,703.50",FISCAL YEAR 2016,"","","","GRECO,JACQUELINE M"
,CHIEF ADMIN OFCR OF THE HOUSE,2015Q4,PERSONNEL COMPENSATION,"","GREEN, CAROLINE",10/01/15,12/31/15,TECHNICAL SUPPORT REP (A),"18,487.74",FISCAL YEAR 2016,"","","","GREEN, CAROLINE"
,CHIEF ADMIN OFCR OF THE HOUSE,2015Q4,PERSONNEL COMPENSATION,"","GREEN, MITCHELL",10/01/15,12/31/15,CONTRACT ADMINISTRATOR,"33,276.99",FISCAL YEAR 2016,"","","","GREEN, MITCHELL"
,CHIEF ADMIN OFCR OF THE HOUSE,2015Q4,PERSONNEL COMPENSATION,"","GREENE, CHANTEL T",10/01/15,12/31/15,MGR BUS SYS AND INTEGRATION,"36,494.49",FISCAL YEAR 2016,"","","","GREENE, CHANTEL T"
,CHIEF ADMIN OFCR OF THE HOUSE,2015Q4,PERSONNEL COMPENSATION,"","GRIGGS,KYLE R",10/01/15,12/31/15,CONTRACTS SPECIALIST,"20,732.25",FISCAL YEAR 2016,"","","","GRIGGS,KYLE R"
,CHIEF ADMIN OFCR OF THE HOUSE,2015Q4,PERSONNEL COMPENSATION,"","GRISWOLD,RAYMOND",10/01/15,12/04/15,"DIRECTOR, ACQ & CONTRACT MGMT","24,619.03",FISCAL YEAR 2016,"","","","GRISWOLD,RAYMOND"
,CHIEF ADMIN OFCR OF THE HOUSE,2015Q4,PERSONNEL COMPENSATION,"","GRISWOLD,RAYMOND",12/01/15,12/04/15,"DIRECTOR, ACQ & CONTRACT MGMT (OTHER COMPENSATION)","11,540.17",FISCAL YEAR 2016,"","","","GRISWOLD,RAYMOND"
,CHIEF ADMIN OFCR OF THE HOUSE,2015Q4,PERSONNEL COMPENSATION,"","GRONSKI,ROBERT S",10/01/15,12/31/15,SR BUSINESS PROCESS APPL SPEC,"30,453.99",FISCAL YEAR 2016,"","","","GRONSKI,ROBERT S"
,CHIEF ADMIN OFCR OF THE HOUSE,2015Q4,PERSONNEL COMPENSATION,"","GUARNERO,DAVID P",10/01/15,12/31/15,PAYROLL & BENEFITS GENERALIST,"16,769.66",FISCAL YEAR 2016,"","","","GUARNERO,DAVID P"
,CHIEF ADMIN OFCR OF THE HOUSE,2015Q4,PERSONNEL COMPENSATION,"","GUDURU,PRATAP K",10/01/15,12/31/15,SENIOR SYSTEMS ENGINEER,"32,145.99",FISCAL YEAR 2016,"","","","GUDURU,PRATAP K"
,CHIEF ADMIN OFCR OF THE HOUSE,2015Q4,PERSONNEL COMPENSATION,"","GUGLIOTTA,NORMAN",10/01/15,12/31/15,FINANCIAL COUNSELOR (A),"16,902.24",FISCAL YEAR 2016,"","","","GUGLIOTTA,NORMAN"
,CHIEF ADMIN OFCR OF THE HOUSE,2015Q4,PERSONNEL COMPENSATION,"","HALL,MORGAN",10/01/15,12/31/15,FACILITIES MANAGEMENT SPECIALI,"17,298.00",FISCAL YEAR 2016,"","","","HALL,MORGAN"
,CHIEF ADMIN OFCR OF THE HOUSE,2015Q4,PERSONNEL COMPENSATION,"","HAMBRIC, STEEN H",10/01/15,12/31/15,ASSISTANT CIO,"42,102.75",FISCAL YEAR 2016,"","","","HAMBRIC, STEEN H"
,CHIEF ADMIN OFCR OF THE HOUSE,2015Q4,PERSONNEL COMPENSATION,"","HAMEL,RYAN T",10/01/15,12/31/15,THIRD ASSISTANT,"17,298.00",FISCAL YEAR 2016,"","","","HAMEL,RYAN T"
,CHIEF ADMIN OFCR OF THE HOUSE,2015Q4,PERSONNEL COMPENSATION,"","HAMNER, PHILIP D",10/01/15,12/31/15,"DIRECTOR, ACCOUNTING","37,120.50",FISCAL YEAR 2016,"","","","HAMNER, PHILIP D"
,CHIEF ADMIN OFCR OF THE HOUSE,2015Q4,PERSONNEL COMPENSATION,"","HANEY, WINSTON",10/01/15,12/31/15,ACCOUNT MANAGEMENT COUNSELOR,"14,418.75",FISCAL YEAR 2016,"","","","HANEY, WINSTON"
,CHIEF ADMIN OFCR OF THE HOUSE,2015Q4,PERSONNEL COMPENSATION,"","HANEY, WINSTON",10/01/15,10/31/15,ACCOUNT MANAGEMENT COUNSELOR (OVERTIME),41.59,FISCAL YEAR 2016,"","","","HANEY, WINSTON"
,CHIEF ADMIN OFCR OF THE HOUSE,2015Q4,PERSONNEL COMPENSATION,"","HANONU, TINA M",10/01/15,12/31/15,SPECIAL ADVISOR/TRANSITION,"42,102.75",FISCAL YEAR 2016,"","","","HANONU, TINA M"
,CHIEF ADMIN OFCR OF THE HOUSE,2015Q4,PERSONNEL COMPENSATION,"","HAQ,RABIA",10/01/15,12/31/15,BUSINESS PROC APPLIC SPEC,"24,180.99",FISCAL YEAR 2016,"","","","HAQ,RABIA"
,CHIEF ADMIN OFCR OF THE HOUSE,2015Q4,PERSONNEL COMPENSATION,"","HARGROVE, BRIAN",10/01/15,12/31/15,LOGISTICS & DIST SPEC (A),"10,899.24",FISCAL YEAR 2016,"","","","HARGROVE, BRIAN"
,CHIEF ADMIN OFCR OF THE HOUSE,2015Q4,PERSONNEL COMPENSATION,"","HARRELL,VICKIE",10/01/15,12/31/15,SR NETWORK COMM SPECIALIST (A),"24,180.99",FISCAL YEAR 2016,"","","","HARRELL,VICKIE"
,CHIEF ADMIN OFCR OF THE HOUSE,2015Q4,PERSONNEL COMPENSATION,"","HARRINGTON, KEITH",10/01/15,12/31/15,FINANCIAL COUNSELOR,"23,094.51",FISCAL YEAR 2016,"","","","HARRINGTON, KEITH"
,CHIEF ADMIN OFCR OF THE HOUSE,2015Q4,PERSONNEL COMPENSATION,"","HARRIS, DONALD",10/01/15,12/31/15,NETWORK COMM SUPERVISOR,"31,016.25",FISCAL YEAR 2016,"","","","HARRIS, DONALD"
,CHIEF ADMIN OFCR OF THE HOUSE,2015Q4,PERSONNEL COMPENSATION,"","HARRIS, KEVIN",10/01/15,12/31/15,JOURNEYMAN FURNITURE SPEC,"20,076.00",FISCAL YEAR 2016,"","","","HARRIS, KEVIN"
,CHIEF ADMIN OFCR OF THE HOUSE,2015Q4,PERSONNEL COMPENSATION,"","HARTMAN,ANDREW J",10/01/15,11/30/15,STAFF ASSISTANT,"8,469.00",FISCAL YEAR 2016,"","","","HARTMAN,ANDREW J"
,CHIEF ADMIN OFCR OF THE HOUSE,2015Q4,PERSONNEL COMPENSATION,"","HARTMAN,ANDREW J",11/01/15,11/30/15,STAFF ASSISTANT (OTHER COMPENSATION),352.88,FISCAL YEAR 2016,"","","","HARTMAN,ANDREW J"
,CHIEF ADMIN OFCR OF THE HOUSE,2015Q4,PERSONNEL COMPENSATION,"","HARVEY, JAMIE",10/01/15,12/31/15,SR TELECOMMUNICATIONS ADMIN (A,"16,836.99",FISCAL YEAR 2016,"","","","HARVEY, JAMIE"
,CHIEF ADMIN OFCR OF THE HOUSE,2015Q4,PERSONNEL COMPENSATION,"","HARVEY,KINSEY B",10/01/15,12/31/15,MEDIA LOGISTICS COORDINATOR,"16,902.24",FISCAL YEAR 2016,"","","","HARVEY,KINSEY B"
,CHIEF ADMIN OFCR OF THE HOUSE,2015Q4,PERSONNEL COMPENSATION,"","HAYES,KATHLEEN M",10/01/15,12/31/15,CUSTOMER SOLUTIONS REP,"15,117.24",FISCAL YEAR 2016,"","","","HAYES,KATHLEEN M"
,CHIEF ADMIN OFCR OF THE HOUSE,2015Q4,PERSONNEL COMPENSATION,"","HAYES,MICHELLE P",10/01/15,12/31/15,SENIOR SYSTEMS ENGINEER,"32,712.00",FISCAL YEAR 2016,"","","","HAYES,MICHELLE P"
,CHIEF ADMIN OFCR OF THE HOUSE,2015Q4,PERSONNEL COMPENSATION,"","HEEB III, JOHN J",10/01/15,12/31/15,SR BUSINESS PROCESS APPL SPEC,"34,407.51",FISCAL YEAR 2016,"","","","HEEB III, JOHN J"
,CHIEF ADMIN OFCR OF THE HOUSE,2015Q4,PERSONNEL COMPENSATION,"","HERBERT, GREGORY L",10/01/15,12/31/15,REC/WAREHOUSE SPEC (A),"12,573.00",FISCAL YEAR 2016,"","","","HERBERT, GREGORY L"
,CHIEF ADMIN OFCR OF THE HOUSE,2015Q4,PERSONNEL COMPENSATION,"","HERBERT,DONNA",10/01/15,12/31/15,FINANCIAL ANALYST,"19,843.77",FISCAL YEAR 2016,"","","","HERBERT,DONNA"
,CHIEF ADMIN OFCR OF THE HOUSE,2015Q4,PERSONNEL COMPENSATION,"","HIBBS, CYNTHIA",10/01/15,12/31/15,NETWORK COORDINATOR (A),"20,076.00",FISCAL YEAR 2016,"","","","HIBBS, CYNTHIA"
,CHIEF ADMIN OFCR OF THE HOUSE,2015Q4,PERSONNEL COMPENSATION,"","HIRSCH, PATRICK A",10/01/15,12/31/15,DIR-HOUSE RECORDING STUDIO,"42,102.75",FISCAL YEAR 2016,"","","","HIRSCH, PATRICK A"
,CHIEF ADMIN OFCR OF THE HOUSE,2015Q4,PERSONNEL COMPENSATION,"","HOBBS, DENINE",10/01/15,12/31/15,SPECIAL ASSISTANT,"25,548.00",FISCAL YEAR 2016,"","","","HOBBS, DENINE"
,CHIEF ADMIN OFCR OF THE HOUSE,2015Q4,PERSONNEL COMPENSATION,"","HODGES, JOHN E",10/01/15,12/31/15,DIR. OFFICE SUPPLY & GIFT SHOP,"27,469.74",FISCAL YEAR 2016,"","","","HODGES, JOHN E"
,CHIEF ADMIN OFCR OF THE HOUSE,2015Q4,PERSONNEL COMPENSATION,"","HOKHOLD, MARK D",10/01/15,12/31/15,SYSTEMS ENGINEER,"25,548.00",FISCAL YEAR 2016,"","","","HOKHOLD, MARK D"
,CHIEF ADMIN OFCR OF THE HOUSE,2015Q4,PERSONNEL COMPENSATION,"","HOLAU,GEORGE",10/01/15,12/31/15,FINANCIAL COUNSELOR,"21,092.49",FISCAL YEAR 2016,"","","","HOLAU,GEORGE"
,CHIEF ADMIN OFCR OF THE HOUSE,2015Q4,PERSONNEL COMPENSATION,"","HOLLAND, GREGORY",10/01/15,12/31/15,LOGISTICS & DIST SPEC (A),"11,799.99",FISCAL YEAR 2016,"","","","HOLLAND, GREGORY"
,CHIEF ADMIN OFCR OF THE HOUSE,2015Q4,PERSONNEL COMPENSATION,"","HOLLEY, STEVEN M",10/01/15,12/31/15,LOGISTICS & DIST SPEC (A),"11,500.50",FISCAL YEAR 2016,"","","","HOLLEY, STEVEN M"
,CHIEF ADMIN OFCR OF THE HOUSE,2015Q4,PERSONNEL COMPENSATION,"","HOLT,CLINTON F",10/01/15,12/31/15,BROADCAST ENGINEER/PROD SPEC,"20,276.76",FISCAL YEAR 2016,"","","","HOLT,CLINTON F"
,CHIEF ADMIN OFCR OF THE HOUSE,2015Q4,PERSONNEL COMPENSATION,"","HOLT,CLINTON F",10/01/15,10/31/15,BROADCAST ENGINEER/PROD SPEC. (OVERTIME),19.50,FISCAL YEAR 2016,"","","","HOLT,CLINTON F"
,CHIEF ADMIN OFCR OF THE HOUSE,2015Q4,PERSONNEL COMPENSATION,"","HORNBURG, RICHARD A",10/01/15,12/31/15,BUSINESS PROC APPLIC SPEC,"29,025.99",FISCAL YEAR 2016,"","","","HORNBURG, RICHARD A"
,CHIEF ADMIN OFCR OF THE HOUSE,2015Q4,PERSONNEL COMPENSATION,"","HOWARD, ANTHONY T",10/01/15,12/31/15,JOURNEYMAN TEXTILE SPEC,"16,836.99",FISCAL YEAR 2016,"","","","HOWARD, ANTHONY T"
,CHIEF ADMIN OFCR OF THE HOUSE,2015Q4,PERSONNEL COMPENSATION,"","HUGHES, MICHAEL A",10/01/15,12/31/15,FINANCIAL COUNSELOR,"16,148.25",FISCAL YEAR 2016,"","","","HUGHES, MICHAEL A"
,CHIEF ADMIN OFCR OF THE HOUSE,2015Q4,PERSONNEL COMPENSATION,"","HUNT,DANIEL",10/01/15,12/31/15,SR NETWORK COMM SPECIALIST,"32,145.99",FISCAL YEAR 2016,"","","","HUNT,DANIEL"
,CHIEF ADMIN OFCR OF THE HOUSE,2015Q4,PERSONNEL COMPENSATION,"","HUNTER, STEVE",10/01/15,12/31/15,ACCOUNT MANAGEMENT COUNSELOR,"14,075.76",FISCAL YEAR 2016,"","","","HUNTER, STEVE"
,CHIEF ADMIN OFCR OF THE HOUSE,2015Q4,PERSONNEL COMPENSATION,"","HUNTER, STEVE",10/01/15,10/31/15,ACCOUNT MANAGEMENT COUNSELOR (OVERTIME),676.71,FISCAL YEAR 2016,"","","","HUNTER, STEVE"
,CHIEF ADMIN OFCR OF THE HOUSE,2015Q4,PERSONNEL COMPENSATION,"","HURDA, JACQUELINE L",10/01/15,12/31/15,FINANCIAL COUNSELOR (A),"20,294.76",FISCAL YEAR 2016,"","","","HURDA, JACQUELINE L"
,CHIEF ADMIN OFCR OF THE HOUSE,2015Q4,PERSONNEL COMPENSATION,"","ILOG,ANGELA M",10/01/15,12/31/15,CONTRACTS SUPPORT ADMIN,"14,772.75",FISCAL YEAR 2016,"","","","ILOG,ANGELA M"
,CHIEF ADMIN OFCR OF THE HOUSE,2015Q4,PERSONNEL COMPENSATION,"","INGRAM,DEXTER J",11/16/15,12/31/15,FINANCIAL COUNSELOR,"7,855.62",FISCAL YEAR 2016,"","","","INGRAM,DEXTER J"
,CHIEF ADMIN OFCR OF THE HOUSE,2015Q4,PERSONNEL COMPENSATION,"","JACKSON, REGGIE",10/01/15,12/31/15,SR TECHNICAL SUPPORT REP (A),"24,636.00",FISCAL YEAR 2016,"","","","JACKSON, REGGIE"
,CHIEF ADMIN OFCR OF THE HOUSE,2015Q4,PERSONNEL COMPENSATION,"","JACKSON, WANDA J",10/01/15,12/31/15,TELECOMMUNICATIONS BRANCH MNGR,"27,469.74",FISCAL YEAR 2016,"","","","JACKSON, WANDA J"
,CHIEF ADMIN OFCR OF THE HOUSE,2015Q4,PERSONNEL COMPENSATION,"","JACOBSON, BRADLEY J",10/01/15,12/31/15,BRANCH MANAGER,"35,241.75",FISCAL YEAR 2016,"","","","JACOBSON, BRADLEY J"
,CHIEF ADMIN OFCR OF THE HOUSE,2015Q4,PERSONNEL COMPENSATION,"","JANIFER, ROLAND S",10/01/15,12/31/15,"SUPERVISOR,LOGIS & DIST (A)","18,487.74",FISCAL YEAR 2016,"","","","JANIFER, ROLAND S"
,CHIEF ADMIN OFCR OF THE HOUSE,2015Q4,PERSONNEL COMPENSATION,"","JECKO,BRITTANY E",10/01/15,12/31/15,SR BUSINESS PROC APPL SPEC,"25,914.24",FISCAL YEAR 2016,"","","","JECKO,BRITTANY E"
,CHIEF ADMIN OFCR OF THE HOUSE,2015Q4,PERSONNEL COMPENSATION,"","JEFFERSON,KENYATTA",10/01/15,12/31/15,TECHNICAL SUPPORT REP (A),"19,095.51",FISCAL YEAR 2016,"","","","JEFFERSON,KENYATTA"
,CHIEF ADMIN OFCR OF THE HOUSE,2015Q4,PERSONNEL COMPENSATION,"","JENKINS, JAMES",10/01/15,12/31/15,WORKFLOW COORDINATOR,"19,811.75",FISCAL YEAR 2016,"","","","JENKINS, JAMES"
,CHIEF ADMIN OFCR OF THE HOUSE,2015Q4,PERSONNEL COMPENSATION,"","JENNINGS, ARACELI",10/01/15,12/31/15,FINANCE ASSISTANT,"16,836.99",FISCAL YEAR 2016,"","","","JENNINGS, ARACELI"
,CHIEF ADMIN OFCR OF THE HOUSE,2015Q4,PERSONNEL COMPENSATION,"","JOHANN, DEREK",10/01/15,12/31/15,SR RECEIVING & WAREHOUSIN SPEC,"16,836.99",FISCAL YEAR 2016,"","","","JOHANN, DEREK"
,CHIEF ADMIN OFCR OF THE HOUSE,2015Q4,PERSONNEL COMPENSATION,"","JOHNSON, DWAYNE",10/01/15,12/31/15,RETAIL INVENTORY SPECIALIST,"14,875.92",FISCAL YEAR 2016,"","","","JOHNSON, DWAYNE"
,CHIEF ADMIN OFCR OF THE HOUSE,2015Q4,PERSONNEL COMPENSATION,"","JOHNSON, ERIC C",10/01/15,12/31/15,LOGISTICS & DIST SPEC (A),"12,872.76",FISCAL YEAR 2016,"","","","JOHNSON, ERIC C"
,CHIEF ADMIN OFCR OF THE HOUSE,2015Q4,PERSONNEL COMPENSATION,"","JOHNSON, MARGARET K",10/01/15,12/31/15,SR MODULAR FURNITURE SPEC,"18,092.25",FISCAL YEAR 2016,"","","","JOHNSON, MARGARET K"
,CHIEF ADMIN OFCR OF THE HOUSE,2015Q4,PERSONNEL COMPENSATION,"","JOHNSON, REGINALD",10/01/15,12/31/15,FINANCIAL COUNSELOR (A),"18,092.25",FISCAL YEAR 2016,"","","","JOHNSON, REGINALD"
,CHIEF ADMIN OFCR OF THE HOUSE,2015Q4,PERSONNEL COMPENSATION,"","JOHNSON, ROBERT C",10/01/15,12/31/15,SENIOR SYSTEMS ENGINEER,"30,581.25",FISCAL YEAR 2016,"","","","JOHNSON, ROBERT C"
,CHIEF ADMIN OFCR OF THE HOUSE,2015Q4,PERSONNEL COMPENSATION,"","JOHNSON,ANDRE D",10/01/15,12/31/15,SENIOR NETWORK TECHNICIAN,"17,897.25",FISCAL YEAR 2016,"","","","JOHNSON,ANDRE D"
,CHIEF ADMIN OFCR OF THE HOUSE,2015Q4,PERSONNEL COMPENSATION,"","JOHNSON,KWASI Z",10/01/15,12/31/15,LOGISTICS & DIST SPEC (A),"9,441.24",FISCAL YEAR 2016,"","","","JOHNSON,KWASI Z"
,CHIEF ADMIN OFCR OF THE HOUSE,2015Q4,PERSONNEL COMPENSATION,"","JONES III,CLARENCE",10/01/15,12/31/15,SENIOR NETWORK TECHNICIAN,"19,894.50",FISCAL YEAR 2016,"","","","JONES III,CLARENCE"
,CHIEF ADMIN OFCR OF THE HOUSE,2015Q4,PERSONNEL COMPENSATION,"","JONES JR, CHARLES J",10/01/15,12/31/15,NETWORK COMM SPECIALIST,"25,089.99",FISCAL YEAR 2016,"","","","JONES JR, CHARLES J"
,CHIEF ADMIN OFCR OF THE HOUSE,2015Q4,PERSONNEL COMPENSATION,"","JONES, DEBORAH D",10/01/15,12/31/15,FINANCIAL COUNSELOR,"21,493.50",FISCAL YEAR 2016,"","","","JONES, DEBORAH D"
,CHIEF ADMIN OFCR OF THE HOUSE,2015Q4,PERSONNEL COMPENSATION,"","JONES, MITCHAEL",10/01/15,12/31/15,TECHNICAL TRAINER,"20,694.00",FISCAL YEAR 2016,"","","","JONES, MITCHAEL"
,CHIEF ADMIN OFCR OF THE HOUSE,2015Q4,PERSONNEL COMPENSATION,"","JONES, MOLLY C",10/01/15,12/31/15,ASSISTANT DIRECTOR,"18,092.25",FISCAL YEAR 2016,"","","","JONES, MOLLY C"
,CHIEF ADMIN OFCR OF THE HOUSE,2015Q4,PERSONNEL COMPENSATION,"","JONES, STEPHEN E",10/01/15,12/31/15,SENIOR SYSTEMS ENGINEER,"31,582.50",FISCAL YEAR 2016,"","","","JONES, STEPHEN E"
,CHIEF ADMIN OFCR OF THE HOUSE,2015Q4,PERSONNEL COMPENSATION,"","JONES, WESLEY D",10/01/15,12/31/15,LOGISTICS & DIST SPEC (A),"11,500.50",FISCAL YEAR 2016,"","","","JONES, WESLEY D"
,CHIEF ADMIN OFCR OF THE HOUSE,2015Q4,PERSONNEL COMPENSATION,"","JONES,RODNEY B",10/01/15,12/31/15,SR TECHNICAL SUPPORT REP,"22,098.51",FISCAL YEAR 2016,"","","","JONES,RODNEY B"
,CHIEF ADMIN OFCR OF THE HOUSE,2015Q4,PERSONNEL COMPENSATION,"","JONES,YOLANDA S",10/01/15,12/31/15,PAYROLL & BENEFITS GENERALIST,"16,902.24",FISCAL YEAR 2016,"","","","JONES,YOLANDA S"
,CHIEF ADMIN OFCR OF THE HOUSE,2015Q4,PERSONNEL COMPENSATION,"","JORDAN, YONG O",10/01/15,12/31/15,SR TECH SOLUTIONS ENGINEER,"25,548.00",FISCAL YEAR 2016,"","","","JORDAN, YONG O"
,CHIEF ADMIN OFCR OF THE HOUSE,2015Q4,PERSONNEL COMPENSATION,"","JORDAN,CHRISTOPHER",10/01/15,12/31/15,DIRECTOR BUSINESS CONTINUITY,"40,594.26",FISCAL YEAR 2016,"","","","JORDAN,CHRISTOPHER"
,CHIEF ADMIN OFCR OF THE HOUSE,2015Q4,PERSONNEL COMPENSATION,"","JOYCE, ERIC",10/01/15,12/31/15,SUPERVISOR,"29,025.99",FISCAL YEAR 2016,"","","","JOYCE, ERIC"
,CHIEF ADMIN OFCR OF THE HOUSE,2015Q4,PERSONNEL COMPENSATION,"","JUDGE, NANCY",10/01/15,12/31/15,CUSTOMER SOLUTIONS REP,"15,802.50",FISCAL YEAR 2016,"","","","JUDGE, NANCY"
,CHIEF ADMIN OFCR OF THE HOUSE,2015Q4,PERSONNEL COMPENSATION,"","KAHLER, KENT",10/01/15,12/31/15,SYSTEMS ENGINEER,"26,004.00",FISCAL YEAR 2016,"","","","KAHLER, KENT"
,CHIEF ADMIN OFCR OF THE HOUSE,2015Q4,PERSONNEL COMPENSATION,"","KAPLAN,LEAH",10/01/15,12/31/15,MEDIA LOGISTICS ASSISTANT,"13,730.49",FISCAL YEAR 2016,"","","","KAPLAN,LEAH"
,CHIEF ADMIN OFCR OF THE HOUSE,2015Q4,PERSONNEL COMPENSATION,"","KEANE, MICHAEL T",10/01/15,12/31/15,"MANAGER, WORKFLOW MANAGEMENT","24,180.99",FISCAL YEAR 2016,"","","","KEANE, MICHAEL T"
,CHIEF ADMIN OFCR OF THE HOUSE,2015Q4,PERSONNEL COMPENSATION,"","KELLAHER,ANTHONY",10/01/15,12/31/15,MEDIA LOGISTICS COORDINATOR,"19,095.51",FISCAL YEAR 2016,"","","","KELLAHER,ANTHONY"
,CHIEF ADMIN OFCR OF THE HOUSE,2015Q4,PERSONNEL COMPENSATION,"","KELLEY, KEVIN S",10/01/15,12/31/15,CUSTOMER SOLUTIONS REP,"16,836.99",FISCAL YEAR 2016,"","","","KELLEY, KEVIN S"
,CHIEF ADMIN OFCR OF THE HOUSE,2015Q4,PERSONNEL COMPENSATION,"","KELLEY, MARY M",10/01/15,12/31/15,RESOURCE MANAGER,"30,063.24",FISCAL YEAR 2016,"","","","KELLEY, MARY M"
,CHIEF ADMIN OFCR OF THE HOUSE,2015Q4,PERSONNEL COMPENSATION,"","KELLEY, TARA A",10/01/15,12/31/15,COMMUNICATIONS SPEC (A),"21,493.50",FISCAL YEAR 2016,"","","","KELLEY, TARA A"
,CHIEF ADMIN OFCR OF THE HOUSE,2015Q4,PERSONNEL COMPENSATION,"","KEMP, DAVID S",10/01/15,12/31/15,SENIOR SYSTEMS ENGINEER,"33,840.51",FISCAL YEAR 2016,"","","","KEMP, DAVID S"
,CHIEF ADMIN OFCR OF THE HOUSE,2015Q4,PERSONNEL COMPENSATION,"","KENEALY, PATRICK T",10/01/15,12/31/15,FINANCIAL ANALYST,"35,536.74",FISCAL YEAR 2016,"","","","KENEALY, PATRICK T"
,CHIEF ADMIN OFCR OF THE HOUSE,2015Q4,PERSONNEL COMPENSATION,"","KILSON,FRANKLIN P",10/01/15,12/31/15,NETWORK TECHNICIAN,"22,098.51",FISCAL YEAR 2016,"","","","KILSON,FRANKLIN P"
,CHIEF ADMIN OFCR OF THE HOUSE,2015Q4,PERSONNEL COMPENSATION,"","KIMBALL, MARK E",10/01/15,12/31/15,SR TECHNICAL SUPPORT REP (A),"22,551.24",FISCAL YEAR 2016,"","","","KIMBALL, MARK E"
,CHIEF ADMIN OFCR OF THE HOUSE,2015Q4,PERSONNEL COMPENSATION,"","KLEMP, CAROLINE",10/01/15,12/31/15,DIRECTOR MEMBERS' SERVICES,"36,288.58",FISCAL YEAR 2016,"","","","KLEMP, CAROLINE"
,CHIEF ADMIN OFCR OF THE HOUSE,2015Q4,PERSONNEL COMPENSATION,"","KLUSSENDORF, KATHLEEN M",10/01/15,12/31/15,SPECIAL ASSISTANT,"27,828.75",FISCAL YEAR 2016,"","","","KLUSSENDORF, KATHLEEN M"
,CHIEF ADMIN OFCR OF THE HOUSE,2015Q4,PERSONNEL COMPENSATION,"","KNELL, KATHERINE A",10/01/15,12/31/15,HRIS APPLICATIONS MANAGER,"41,778.99",FISCAL YEAR 2016,"","","","KNELL, KATHERINE A"
,CHIEF ADMIN OFCR OF THE HOUSE,2015Q4,PERSONNEL COMPENSATION,"","KNOERL, THOMAS K",10/01/15,12/31/15,NETWORK COMMUNICATIONS SPEC,"26,914.74",FISCAL YEAR 2016,"","","","KNOERL, THOMAS K"
,CHIEF ADMIN OFCR OF THE HOUSE,2015Q4,PERSONNEL COMPENSATION,"","KORNACKI, OLGA R",10/01/15,12/31/15,DIRECTOR,"33,840.51",FISCAL YEAR 2016,"","","","KORNACKI, OLGA R"
,CHIEF ADMIN OFCR OF THE HOUSE,2015Q4,PERSONNEL COMPENSATION,"","KOZTOSKI, DOUGLAS W",10/01/15,12/31/15,BROADCAST PRODUCTION TECHNICIA,"19,894.50",FISCAL YEAR 2016,"","","","KOZTOSKI, DOUGLAS W"
,CHIEF ADMIN OFCR OF THE HOUSE,2015Q4,PERSONNEL COMPENSATION,"","KOZTOSKI, DOUGLAS W",10/01/15,11/30/15,BROADCAST PRODUCTION TECHNICIA (OVERTIME),497.36,FISCAL YEAR 2016,"","","","KOZTOSKI, DOUGLAS W"
,CHIEF ADMIN OFCR OF THE HOUSE,2015Q4,PERSONNEL COMPENSATION,"","KRAFT,NORMAN R",10/01/15,12/31/15,INTERNET SYSTEMS SPECIALIST,"23,875.99",FISCAL YEAR 2016,"","","","KRAFT,NORMAN R"
,CHIEF ADMIN OFCR OF THE HOUSE,2015Q4,PERSONNEL COMPENSATION,"","KRALY,ELIZABETH A",10/01/15,12/31/15,"MANAGER, CAO HUMAN RESOURCES","27,988.26",FISCAL YEAR 2016,"","","","KRALY,ELIZABETH A"
,CHIEF ADMIN OFCR OF THE HOUSE,2015Q4,PERSONNEL COMPENSATION,"","KRAMER, STEPHEN",10/01/15,10/01/15,NETWORK COMMUNICATIONS SPEC,288.93,FISCAL YEAR 2016,"","","","KRAMER, STEPHEN"
,CHIEF ADMIN OFCR OF THE HOUSE,2015Q4,PERSONNEL COMPENSATION,"","KRAMER, STEPHEN",10/01/15,10/01/15,NETWORK COMMUNICATIONS SPEC (OTHER COMPENSATION),"8,668.00",FISCAL YEAR 2016,"","","","KRAMER, STEPHEN"
,CHIEF ADMIN OFCR OF THE HOUSE,2015Q4,PERSONNEL COMPENSATION,"","KREMKAU,REBECCA K",10/01/15,12/31/15,FINANCIAL ANALYST,"22,098.51",FISCAL YEAR 2016,"","","","KREMKAU,REBECCA K"
,CHIEF ADMIN OFCR OF THE HOUSE,2015Q4,PERSONNEL COMPENSATION,"","KUPER, KAREN",10/01/15,12/31/15,SPECIAL ASSISTANT/OPER SUPERVI,"25,548.00",FISCAL YEAR 2016,"","","","KUPER, KAREN"
,CHIEF ADMIN OFCR OF THE HOUSE,2015Q4,PERSONNEL COMPENSATION,"","LAGASSE, DANIEL",10/01/15,12/31/15,BCDR OPERATIONS MANAGER,"33,372.24",FISCAL YEAR 2016,"","","","LAGASSE, DANIEL"
,CHIEF ADMIN OFCR OF THE HOUSE,2015Q4,PERSONNEL COMPENSATION,"","LAU,DAVID E",10/01/15,12/31/15,INFORMATION SECURITY MANAGER,"34,202.17",FISCAL YEAR 2016,"","","","LAU,DAVID E"
,CHIEF ADMIN OFCR OF THE HOUSE,2015Q4,PERSONNEL COMPENSATION,"","LEBER, DENNIS",10/01/15,12/31/15,SR NETWORK SYSTEMS ENGINEER,"29,025.99",FISCAL YEAR 2016,"","","","LEBER, DENNIS"
,CHIEF ADMIN OFCR OF THE HOUSE,2015Q4,PERSONNEL COMPENSATION,"","LEE, DARNELL A",10/01/15,12/31/15,ASSISTANT CAO,"39,365.49",FISCAL YEAR 2016,"","","","LEE, DARNELL A"
,CHIEF ADMIN OFCR OF THE HOUSE,2015Q4,PERSONNEL COMPENSATION,"","LEIBY,FREDERICK",10/01/15,12/31/15,CONTRACT ADMINISTRATOR,"19,095.51",FISCAL YEAR 2016,"","","","LEIBY,FREDERICK"
,CHIEF ADMIN OFCR OF THE HOUSE,2015Q4,PERSONNEL COMPENSATION,"","LEON-CAMPOS, CARLOS",10/01/15,12/31/15,MANAGER,"25,548.00",FISCAL YEAR 2016,"","","","LEON-CAMPOS, CARLOS"
,CHIEF ADMIN OFCR OF THE HOUSE,2015Q4,PERSONNEL COMPENSATION,"","LEONARD,DENISE D",10/01/15,12/31/15,WORKFLOW COORDINATOR,"16,769.66",FISCAL YEAR 2016,"","","","LEONARD,DENISE D"
,CHIEF ADMIN OFCR OF THE HOUSE,2015Q4,PERSONNEL COMPENSATION,"","LESNEWSKY,ERIK",10/01/15,12/31/15,ADA AIDE,"6,661.14",FISCAL YEAR 2016,"","","","LESNEWSKY,ERIK"
,CHIEF ADMIN OFCR OF THE HOUSE,2015Q4,PERSONNEL COMPENSATION,"","LESNEWSKY,ERIK",10/01/15,11/30/15,ADA AIDE (OVERTIME),"5,367.17",FISCAL YEAR 2016,"","","","LESNEWSKY,ERIK"
,CHIEF ADMIN OFCR OF THE HOUSE,2015Q4,PERSONNEL COMPENSATION,"","LEWIS, JOHN T",10/01/15,12/31/15,DIRECTOR FURNISHINGS,"29,025.99",FISCAL YEAR 2016,"","","","LEWIS, JOHN T"
,CHIEF ADMIN OFCR OF THE HOUSE,2015Q4,PERSONNEL COMPENSATION,"","LEWIS, ROBERT M",10/01/15,12/31/15,PHOTOGRAPHIC LAB TECHNICIAN,"18,207.24",FISCAL YEAR 2016,"","","","LEWIS, ROBERT M"
,CHIEF ADMIN OFCR OF THE HOUSE,2015Q4,PERSONNEL COMPENSATION,"","LIM,CHAU T",10/01/15,12/31/15,SENIOR ACCOUNTANT (A),"25,852.00",FISCAL YEAR 2016,"","","","LIM,CHAU T"
,CHIEF ADMIN OFCR OF THE HOUSE,2015Q4,PERSONNEL COMPENSATION,"","LINVILLE, RAY A",10/01/15,12/31/15,SENIOR SYSTEMS ENGINEER,"31,270.25",FISCAL YEAR 2016,"","","","LINVILLE, RAY A"
,CHIEF ADMIN OFCR OF THE HOUSE,2015Q4,PERSONNEL COMPENSATION,"","LITTLE, ANDREAL P",10/01/15,12/31/15,ADMINISTRATIVE SPECIALIST,"16,491.99",FISCAL YEAR 2016,"","","","LITTLE, ANDREAL P"
,CHIEF ADMIN OFCR OF THE HOUSE,2015Q4,PERSONNEL COMPENSATION,"","LITTLE, HAROLD M",10/01/15,12/31/15,SR TECH SOLUTIONS ENGINEER,"25,089.99",FISCAL YEAR 2016,"","","","LITTLE, HAROLD M"
,CHIEF ADMIN OFCR OF THE HOUSE,2015Q4,PERSONNEL COMPENSATION,"","LOGAN, KATHERINE J",10/01/15,12/31/15,DIRECTOR PAYROLL AND BENEFITS,"40,989.17",FISCAL YEAR 2016,"","","","LOGAN, KATHERINE J"
,CHIEF ADMIN OFCR OF THE HOUSE,2015Q4,PERSONNEL COMPENSATION,"","LONG, JOHN P",10/01/15,12/31/15,SR MODULAR FURNITURE SPEC,"26,185.50",FISCAL YEAR 2016,"","","","LONG, JOHN P"
,CHIEF ADMIN OFCR OF THE HOUSE,2015Q4,PERSONNEL COMPENSATION,"","LOVING, ANTHONY",10/01/15,12/31/15,APPLICATION DBA SPECIALIST,"29,025.99",FISCAL YEAR 2016,"","","","LOVING, ANTHONY"
,CHIEF ADMIN OFCR OF THE HOUSE,2015Q4,PERSONNEL COMPENSATION,"","MAAS, JENNIFER A",10/01/15,12/31/15,"MGR, USER EXPERIENCE & DESIGN","27,469.74",FISCAL YEAR 2016,"","","","MAAS, JENNIFER A"
,CHIEF ADMIN OFCR OF THE HOUSE,2015Q4,PERSONNEL COMPENSATION,"","MAGNOTTI IV,LOUIS",10/01/15,12/31/15,AUDIO SPECIALIST,"18,298.50",FISCAL YEAR 2016,"","","","MAGNOTTI IV,LOUIS"
,CHIEF ADMIN OFCR OF THE HOUSE,2015Q4,PERSONNEL COMPENSATION,"","MAGNOTTI IV,LOUIS",10/01/15,11/30/15,AUDIO SPECIALIST (OVERTIME),413.47,FISCAL YEAR 2016,"","","","MAGNOTTI IV,LOUIS"
,CHIEF ADMIN OFCR OF THE HOUSE,2015Q4,PERSONNEL COMPENSATION,"","MAGRUDER, TIMOTHY",10/01/15,12/31/15,JOURNEYMAN FURNITURE SPEC,"16,148.25",FISCAL YEAR 2016,"","","","MAGRUDER, TIMOTHY"
,CHIEF ADMIN OFCR OF THE HOUSE,2015Q4,PERSONNEL COMPENSATION,"","MAHAR,EDWARD A",10/01/15,12/31/15,"DIR, INFO SYSTEMS SECURITY","40,594.26",FISCAL YEAR 2016,"","","","MAHAR,EDWARD A"
,CHIEF ADMIN OFCR OF THE HOUSE,2015Q4,PERSONNEL COMPENSATION,"","MAIDEN III, LEWIS L",10/01/15,12/31/15,LOGISTICS & DIST SPEC (A),"15,104.76",FISCAL YEAR 2016,"","","","MAIDEN III, LEWIS L"
,CHIEF ADMIN OFCR OF THE HOUSE,2015Q4,PERSONNEL COMPENSATION,"","MALASPINA,KIMBERLY J",10/01/15,12/31/15,JOURNEYMAN TEXTILE SPEC,"17,693.01",FISCAL YEAR 2016,"","","","MALASPINA,KIMBERLY J"
,CHIEF ADMIN OFCR OF THE HOUSE,2015Q4,PERSONNEL COMPENSATION,"","MALLON, MICHAEL P",10/01/15,10/31/15,RESOURCE ANALYST,"7,820.25",FISCAL YEAR 2016,"","","","MALLON, MICHAEL P"
,CHIEF ADMIN OFCR OF THE HOUSE,2015Q4,PERSONNEL COMPENSATION,"","MALLON, MICHAEL P",11/01/15,12/31/15,"MANAGER, CENT REC & WAREHOUSE","16,726.66",FISCAL YEAR 2016,"","","","MALLON, MICHAEL P"
,CHIEF ADMIN OFCR OF THE HOUSE,2015Q4,PERSONNEL COMPENSATION,"","MALLOY, DEON",10/01/15,12/31/15,SR TECHNICAL SUPPORT REP (A),"23,004.24",FISCAL YEAR 2016,"","","","MALLOY, DEON"
,CHIEF ADMIN OFCR OF THE HOUSE,2015Q4,PERSONNEL COMPENSATION,"","MARCUS, RALPH J",10/01/15,12/31/15,TECHNICAL DIRECTOR (A),"25,089.99",FISCAL YEAR 2016,"","","","MARCUS, RALPH J"
,CHIEF ADMIN OFCR OF THE HOUSE,2015Q4,PERSONNEL COMPENSATION,"","MARCUS, RALPH J",10/01/15,11/30/15,TECHNICAL DIRECTOR (A) (OVERTIME),361.87,FISCAL YEAR 2016,"","","","MARCUS, RALPH J"
,CHIEF ADMIN OFCR OF THE HOUSE,2015Q4,PERSONNEL COMPENSATION,"","MARSH, STEVE W",10/01/15,12/31/15,"MANAGER, ACCOUNTING","30,063.24",FISCAL YEAR 2016,"","","","MARSH, STEVE W"
,CHIEF ADMIN OFCR OF THE HOUSE,2015Q4,PERSONNEL COMPENSATION,"","MARTIN, CHRISTOPHER W",10/01/15,12/31/15,JOURNEYMAN FURNITURE SPEC,"20,076.00",FISCAL YEAR 2016,"","","","MARTIN, CHRISTOPHER W"
,CHIEF ADMIN OFCR OF THE HOUSE,2015Q4,PERSONNEL COMPENSATION,"","MARTINEZ, JAIME D",10/01/15,12/31/15,SENIOR SYSTEMS ENGINEER,"29,025.99",FISCAL YEAR 2016,"","","","MARTINEZ, JAIME D"
,CHIEF ADMIN OFCR OF THE HOUSE,2015Q4,PERSONNEL COMPENSATION,"","MARTINS, RICHARD",10/01/15,12/31/15,MANAGER NETWORK CONFIG. MNGMNT,"36,494.49",FISCAL YEAR 2016,"","","","MARTINS, RICHARD"
,CHIEF ADMIN OFCR OF THE HOUSE,2015Q4,PERSONNEL COMPENSATION,"","MASHETER JR, FREDERICK J",10/01/15,12/31/15,PURCHASING AGENT,"15,792.00",FISCAL YEAR 2016,"","","","MASHETER JR, FREDERICK J"
